Workbook

Sheet Admin
B4: Process Year
B5: 2022 | C5: I1
B7: First True Up Month
B8: =B5*100+1 -> 202201 | C8: I2 | D8: I3
B10: Second True Up Month
B11: =B8+1 -> 202202 | C11: I4 | D11: I5
B13: Third True Up Month
B14: =B11+1 -> 202203 | C14: I6 | D14: I7
B16: Fourth True Up Month
B17: =B14+1 -> 202204 | C17: I8 | D17: I9
B19: Fifth True Up Month
B20: =B17+1 -> 202205 | C20: I10 | D20: I11
B22: Sixth True Up Month
B23: =B20+1 -> 202206 | C23: I12 | D23: I13
B25: Seventh True Up Month
B26: =B23+1 -> 202207 | C26: I14 | D26: I15
B28: Eighth True Up Month
B29: =B26+1 -> 202208 | C29: I16 | D29: I17
B31: Ninth True Up Month
B32: =B29+1 -> 202209 | C32: I18 | D32: I19
B34: Tenth True Up Month
B35: =B32+1 -> 202210 | C35: I20 | D35: I21
B37: Eleventh True Up Month
B38: =B35+1 -> 202211 | C38: I22 | D38: I23
B40: Twelveth True Up Month
B41: =B38+1 -> 202212 | C41: I24 | D41: I25

Sheet I1 Reconciliation
C2: =Admin!$B$8 -> 202201 | D2: =Admin!$B$8 -> 202201 | E2: =C2+1 -> 202202 | F2: =D2+1 -> 202202 | G2: =E2+1 -> 202203 | H2: 202203 | I2: 202204 | J2: 202204 | K2: 202205 | L2: 202205 | M2: 202206 | N2: 202206 | O2: 202207 | P2: 202207 | Q2: 202208 | R2: 202208 | S2: 202209 | T2: 202209 | U2: 202210 | V2: 202210 | W2: 202211 | X2: 202211 | Y2: 202212 | Z2: 202212 | AA2: =Admin!B5 -> 2022
C3: =A4 & "Input "& C2 & " Trueup Sett" -> Input 202201 Trueup Sett | D3: =D4 & " Input Rev " & D2 & " Init" -> I3 Input Rev 202201 Init | E3: =C4 & "Input "& E2 & " Trueup Sett" -> I2Input 202202 Trueup Sett | F3: =F4 & " Input Rev " & F2 & " Init" -> I5 Input Rev 202202 Init | G3: =E4 & "Input "& G2 & " Trueup Sett" -> I4Input 202203 Trueup Sett | H3: =H4 & " Input Rev " & H2 & " Init" -> I7 Input Rev 202203 Init | I3: =G4 & "Input "& I2 & " Trueup Sett" -> I6Input 202204 Trueup Sett | J3: =J4 & " Input Rev " & J2 & " Init" -> I9 Input Rev 202204 Init | K3: =I4 & "Input "& K2 & " Trueup Sett" -> I8Input 202205 Trueup Sett | L3: =L4 & " Input Rev " & L2 & " Init" -> I11 Input Rev 202205 Init | M3: =K4 & "Input "& M2 & " Trueup Sett" -> I10Input 202206 Trueup Sett | N3: =N4 & " Input Rev " & N2 & " Init" -> I13 Input Rev 202206 Init | O3: =M4 & "Input "& O2 & " Trueup Sett" -> I12Input 202207 Trueup Sett | P3: =P4 & " Input Rev " & P2 & " Init" -> I15 Input Rev 202207 Init | Q3: =O4 & "Input "& Q2 & " Trueup Sett" -> I14Input 202208 Trueup Sett | R3: =R4 & " Input Rev " & R2 & " Init" -> I17 Input Rev 202208 Init | S3: =Q4 & "Input "& S2 & " Trueup Sett" -> I16Input 202209 Trueup Sett | T3: =T4 & " Input Rev " & T2 & " Init" -> I19 Input Rev 202209 Init | U3: =S4 & "Input "& U2 & " Trueup Sett" -> I18Input 202210 Trueup Sett | V3: =V4 & " Input Rev " & V2 & " Init" -> I21 Input Rev 202210 Init | W3: =U4 & "Input "& W2 & " Trueup Sett" -> I20Input 202211 Trueup Sett | X3: =X4 & " Input Rev " & X2 & " Init" -> I23 Input Rev 202211 Init | Y3: =W4 & "Input "& Y2 & " Trueup Sett" -> I22Input 202212 Trueup Sett | Z3: =Z4 & " Input Rev " & Z2 & " Init" -> I25 Input Rev 202212 Init | AA3: Total IESO Settlement
C4: I2 | D4: I3 | E4: I4 | F4: I5 | G4: I6 | H4: I7 | I4: I8 | J4: I9 | K4: I10 | L4: I11 | M4: I12 | N4: I13 | O4: I14 | P4: I15 | Q4: I16 | R4: I17 | S4: I18 | T4: I19 | U4: I20 | V4: I21 | W4: I22 | X4: I23 | Y4: I24 | Z4: I25
B5: RPP Revenue Prices
B6: RPPT1 | C6: ='I2 Input 01 Trueup Sett '!Z6 -> 6254.191289 | D6: ='I3 Input Rev 01 Init'!C7 -> 2945.52 | E6: ='I4 Input 02 Trueup Sett'!Z6 -> 3067.319816 | F6: ='I5 Input Rev 02 Init'!C7 -> -3338.48 | G6: ='I6 Input 03 Trueup Sett'!Z6 -> -485.1322055 | H6: ='I7 Input Rev 03 Init'!C7 -> 1234.46 | I6: ='I8 Input 04 Trueup Sett'!Z6 -> -13152.22748 | J6: ='I9 Input Rev 04 Init'!C7 -> 407.36 | K6: ='I10 Input 05 Trueup Sett'!Z6 -> -12666.21536 | L6: ='I11 Input Rev 05 Init'!C7 -> 11741.03 | M6: ='I12 Input 06 Trueup Sett'!Z6 -> -13025.91648 | N6: ='I13 Input Rev 06 Init'!C7 -> 11440.93 | O6: ='I14 Input 07 Trueup Sett'!Z6 -> -4377.602827 | P6: ='I15 Input Rev 07 Init'!C7 -> 11721.09 | Q6: ='I16 Input 08 Trueup Sett'!Z6 -> 5351.815889 | R6: ='I17 Input Rev 08 Init'!C7 -> 4687.86 | S6: ='I18 Input 09 Trueup Sett'!Z6 -> 1492.337242 | T6: ='I19 Input Rev 09 Init'!C7 -> -1491.6 | U6: ='I20 Input 10 Trueup Sett'!Z6 -> -3787.108014 | V6: ='I21 Input Rev 10 Init'!C7 -> -1044.09 | W6: ='I22 Input 11 Trueup Sett'!Z6 -> -15000.85049 | X6: ='I23 Input Rev 11 Init'!C7 -> 2210.78 | Y6: ='I24 Input 12 Trueup Sett'!Z6 -> -2125.118041 | Z6: ='I25 Input Rev 12 Init'!C7 -> 10871.9 | AA6: =SUM(C6:Z6) -> 2932.253341
B7: RPPT2 | C7: ='I2 Input 01 Trueup Sett '!Z7 -> 8294.37858 | D7: ='I3 Input Rev 01 Init'!C8 -> -3969.66 | E7: ='I4 Input 02 Trueup Sett'!Z7 -> 6857.086803 | F7: ='I5 Input Rev 02 Init'!C8 -> -6082.63 | G7: ='I6 Input 03 Trueup Sett'!Z7 -> 5211.173655 | H7: ='I7 Input Rev 03 Init'!C8 -> -4681.82 | I7: ='I8 Input 04 Trueup Sett'!Z7 -> 324.0380297 | J7: ='I9 Input Rev 04 Init'!C8 -> -5257.76 | K7: ='I10 Input 05 Trueup Sett'!Z7 -> -323.0291939 | L7: ='I11 Input Rev 05 Init'!C8 -> -863.22 | M7: ='I12 Input 06 Trueup Sett'!Z7 -> -533.7810369 | N7: ='I13 Input Rev 06 Init'!C8 -> 69.73 | O7: ='I14 Input 07 Trueup Sett'!Z7 -> 2387.243337 | P7: ='I15 Input Rev 07 Init'!C8 -> 181.08 | Q7: ='I16 Input 08 Trueup Sett'!Z7 -> 5832.159646 | R7: ='I17 Input Rev 08 Init'!C8 -> -2032.39 | S7: ='I18 Input 09 Trueup Sett'!Z7 -> 2389.446604 | T7: ='I19 Input Rev 09 Init'!C8 -> -4831.71 | U7: ='I20 Input 10 Trueup Sett'!Z7 -> 2299.578985 | V7: ='I21 Input Rev 10 Init'!C8 -> -2400.01 | W7: ='I22 Input 11 Trueup Sett'!Z7 -> -122.3629045 | X7: ='I23 Input Rev 11 Init'!C8 -> -2564.26 | Y7: ='I24 Input 12 Trueup Sett'!Z7 -> 4501.938947 | Z7: ='I25 Input Rev 12 Init'!C8 -> -800.24 | AA7: =SUM(C7:Z7) -> 3884.981451
B8: RPPTOUMID | C8: ='I2 Input 01 Trueup Sett '!Z8 -> 24063.66663 | D8: ='I3 Input Rev 01 Init'!C9 -> -20630.83 | E8: ='I4 Input 02 Trueup Sett'!Z8 -> 17199.20592 | F8: ='I5 Input Rev 02 Init'!C9 -> -20777.5 | G8: ='I6 Input 03 Trueup Sett'!Z8 -> 25523.17944 | H8: ='I7 Input Rev 03 Init'!C9 -> -12878.08 | I8: ='I8 Input 04 Trueup Sett'!Z8 -> 756.5436123 | J8: ='I9 Input Rev 04 Init'!C9 -> -25981.45 | K8: ='I10 Input 05 Trueup Sett'!Z8 -> -6011.865738 | L8: ='I11 Input Rev 05 Init'!C9 -> -4049.79 | M8: ='I12 Input 06 Trueup Sett'!Z8 -> -9097.18197 | N8: ='I13 Input Rev 06 Init'!C9 -> 2687.58 | O8: ='I14 Input 07 Trueup Sett'!Z8 -> 14052.76548 | P8: ='I15 Input Rev 07 Init'!C9 -> 4392.96 | Q8: ='I16 Input 08 Trueup Sett'!Z8 -> 40186.4267 | R8: ='I17 Input Rev 08 Init'!C9 -> -11529.83 | S8: ='I18 Input 09 Trueup Sett'!Z8 -> 22839.96995 | T8: ='I19 Input Rev 09 Init'!C9 -> -26868.26 | U8: ='I20 Input 10 Trueup Sett'!Z8 -> 12880.79882 | V8: ='I21 Input Rev 10 Init'!C9 -> -22627.72 | W8: ='I22 Input 11 Trueup Sett'!Z8 -> -3998.668098 | X8: ='I23 Input Rev 11 Init'!C9 -> -17732.78 | Y8: ='I24 Input 12 Trueup Sett'!Z8 -> 24187.57475 | Z8: ='I25 Input Rev 12 Init'!C9 -> -5152.41 | AA8: 1434.305494
B9: RPPTOUOFF | C9: ='I2 Input 01 Trueup Sett '!Z9 -> -27703.13388 | D9: ='I3 Input Rev 01 Init'!C10 -> 113517.23 | E9: ='I4 Input 02 Trueup Sett'!Z9 -> -84639.06088 | F9: ='I5 Input Rev 02 Init'!C10 -> 153296.47 | G9: ='I6 Input 03 Trueup Sett'!Z9 -> -99483.5587 | H9: ='I7 Input Rev 03 Init'!C10 -> -29365.52 | I9: ='I8 Input 04 Trueup Sett'!Z9 -> -151850.5248 | J9: ='I9 Input Rev 04 Init'!C10 -> 96738.83 | K9: ='I10 Input 05 Trueup Sett'!Z9 -> -162494.2738 | L9: ='I11 Input Rev 05 Init'!C10 -> 142229.99 | M9: ='I12 Input 06 Trueup Sett'!Z9 -> -176506.632 | N9: ='I13 Input Rev 06 Init'!C10 -> 145425.95 | O9: ='I14 Input 07 Trueup Sett'!Z9 -> -131934.2684 | P9: ='I15 Input Rev 07 Init'!C10 -> 160070.95 | Q9: ='I16 Input 08 Trueup Sett'!Z9 -> -54127.68254 | R9: ='I17 Input Rev 08 Init'!C10 -> 130944.6 | S9: ='I18 Input 09 Trueup Sett'!Z9 -> -69962.72177 | T9: ='I19 Input Rev 09 Init'!C10 -> 93786.75 | U9: ='I20 Input 10 Trueup Sett'!Z9 -> -100450.1901 | V9: ='I21 Input Rev 10 Init'!C10 -> 76329.15 | W9: ='I22 Input 11 Trueup Sett'!Z9 -> -142309.7302 | X9: ='I23 Input Rev 11 Init'!C10 -> 78523.48 | Y9: ='I24 Input 12 Trueup Sett'!Z9 -> -93370.75989 | Z9: ='I25 Input Rev 12 Init'!C10 -> 124916.73 | AA9: -8417.92705
B10: RPPTOUON | C10: ='I2 Input 01 Trueup Sett '!Z10 -> 84341.95389 | D10: ='I3 Input Rev 01 Init'!C11 -> -119844.29 | E10: ='I4 Input 02 Trueup Sett'!Z10 -> 89257.43474 | F10: ='I5 Input Rev 02 Init'!C11 -> -85030.23 | G10: ='I6 Input 03 Trueup Sett'!Z10 -> 131711.8784 | H10: ='I7 Input Rev 03 Init'!C11 -> -76069.04 | I10: ='I8 Input 04 Trueup Sett'!Z10 -> 86074.42886 | J10: ='I9 Input Rev 04 Init'!C11 -> -132445.93 | K10: ='I10 Input 05 Trueup Sett'!Z10 -> 74550.69426 | L10: ='I11 Input Rev 05 Init'!C11 -> -88888.27 | M10: ='I12 Input 06 Trueup Sett'!Z10 -> 79418.20307 | N10: ='I13 Input Rev 06 Init'!C11 -> -73442.26 | O10: ='I14 Input 07 Trueup Sett'!Z10 -> 124258.8859 | P10: ='I15 Input Rev 07 Init'!C11 -> -84379.26 | Q10: ='I16 Input 08 Trueup Sett'!Z10 -> 167681.6883 | R10: ='I17 Input Rev 08 Init'!C11 -> -114848.6 | S10: ='I18 Input 09 Trueup Sett'!Z10 -> 110345.5652 | T10: ='I19 Input Rev 09 Init'!C11 -> -148987.54 | U10: ='I20 Input 10 Trueup Sett'!Z10 -> 90002.82671 | V10: ='I21 Input Rev 10 Init'!C11 -> -116921.52 | W10: ='I22 Input 11 Trueup Sett'!Z10 -> 72065.87055 | X10: ='I23 Input Rev 11 Init'!C11 -> -91676.93 | Y10: ='I24 Input 12 Trueup Sett'!Z10 -> 114254.1847 | Z10: ='I25 Input Rev 12 Init'!C11 -> -87736.77 | AA10: 3692.974619
B11: RPPULOMID
B12: RPPULOOFF
B13: RPPULOON
B14: RPPULOOVN
B15: Total RPP For Settlement | C15: =SUM(C6:C14) -> 95251.05651 | D15: =SUM(D6:D14) -> -27982.03 | E15: 31741.9864 | F15: 38067.63 | G15: 62477.5406 | H15: -121760 | I15: -77847.74177 | J15: -66538.95 | K15: -106944.6899 | L15: 60169.74 | M15: -119745.3084 | N15: 86181.93 | O15: 4387.023462 | P15: 91986.82 | Q15: 164924.408 | R15: 7221.64 | S15: 67104.59728 | T15: -88392.36 | U15: 945.9063519 | V15: -66664.19 | W15: -89365.74115 | X15: -31239.71 | Y15: 47447.82046 | Z15: 42099.21 | AA15: 3526.587854
D16: =C15+D15 -> 67269.02651 | F16: =E15+F15 -> 69809.6164 | H16: =G15+H15 -> -59282.4594 | J16: =I15+J15 -> -144386.6918 | L16: =K15+L15 -> -46774.94987 | N16: =M15+N15 -> -33563.37841 | P16: =O15+P15 -> 96373.84346 | R16: =Q15+R15 -> 172146.048 | T16: =S15+T15 -> -21287.76272 | V16: =U15+V15 -> -65718.28365 | X16: =W15+X15 -> -120605.4512 | Z16: =Y15+Z15 -> 89547.03046
B18: Total RPP kWh For Settlement Reported
B19: Tier 1 | C19: ='I2 Input 01 Trueup Sett '!V6 -> 1025926.003 | D19: =-'I3 Input Rev 01 Init'!B7 -> -905074.27 | E19: ='I4 Input 02 Trueup Sett'!V6 -> 768188.5059 | F19: =-'I5 Input Rev 02 Init'!B7 -> -1017721.24 | G19: ='I6 Input 03 Trueup Sett'!V6 -> 989219.8335 | H19: =-'I7 Input Rev 03 Init'!B7 -> -1101847.86 | I19: ='I8 Input 04 Trueup Sett'!V6 -> 850333.0647 | J19: =-'I9 Input Rev 04 Init'!B7 -> -967362.49 | K19: ='I10 Input 05 Trueup Sett'!V6 -> 667152.919 | L19: =-'I11 Input Rev 05 Init'!B7 -> -900329.36 | M19: ='I12 Input 06 Trueup Sett'!V6 -> 641770.1795 | N19: =-'I13 Input Rev 06 Init'!B7 -> -655199.2 | O19: ='I14 Input 07 Trueup Sett'!V6 -> 750963.4178 | P19: =-'I15 Input Rev 07 Init'!B7 -> -647505.15 | Q19: ='I16 Input 08 Trueup Sett'!V6 -> 784843.308 | R19: =-'I17 Input Rev 08 Init'!B7 -> -738836.31 | S19: ='I18 Input 09 Trueup Sett'!V6 -> 668450.2788 | T19: =-'I19 Input Rev 09 Init'!B7 -> -774035.46 | U19: ='I20 Input 10 Trueup Sett'!V6 -> 720257.6291 | V19: =-'I21 Input Rev 10 Init'!B7 -> -678957.35 | W19: ='I22 Input 11 Trueup Sett'!V6 -> 856859.922 | X19: =-'I23 Input Rev 11 Init'!B7 -> -706392.66 | Y19: ='I24 Input 12 Trueup Sett'!V6 -> 1497657.91 | Z19: =-'I25 Input Rev 12 Init'!B7 -> -822235.84 | AA19: =SUM(C19:Z19) -> 306125.7816
B20: Tier 2 | C20: ='I2 Input 01 Trueup Sett '!V7 -> 469453.866 | D20: =-'I3 Input Rev 01 Init'!B8 -> -288269.01 | E20: ='I4 Input 02 Trueup Sett'!V7 -> 329245.3301 | F20: =-'I5 Input Rev 02 Init'!B8 -> -435736.62 | G20: ='I6 Input 03 Trueup Sett'!V7 -> 315640.6799 | H20: =-'I7 Input Rev 03 Init'!B8 -> -483735.77 | I20: ='I8 Input 04 Trueup Sett'!V7 -> 211507.7476 | J20: =-'I9 Input Rev 04 Init'!B8 -> -318453.62 | K20: ='I10 Input 05 Trueup Sett'!V7 -> 162717.8767 | L20: =-'I11 Input Rev 05 Init'!B8 -> -217350.37 | M20: ='I12 Input 06 Trueup Sett'!V7 -> 161846.7699 | N20: =-'I13 Input Rev 06 Init'!B8 -> -151750.41 | O20: ='I14 Input 07 Trueup Sett'!V7 -> 213716.9091 | P20: =-'I15 Input Rev 07 Init'!B8 -> -163140.38 | Q20: ='I16 Input 08 Trueup Sett'!V7 -> 244856.053 | R20: =-'I17 Input Rev 08 Init'!B8 -> -190737.65 | S20: ='I18 Input 09 Trueup Sett'!V7 -> 124247.7646 | T20: =-'I19 Input Rev 09 Init'!B8 -> -225007.43 | U20: ='I20 Input 10 Trueup Sett'!V7 -> 196998.9635 | V20: =-'I21 Input Rev 10 Init'!B8 -> -129756.8 | W20: ='I22 Input 11 Trueup Sett'!V7 -> 181240.7092 | X20: =-'I23 Input Rev 11 Init'!B8 -> -184722.04 | Y20: ='I24 Input 12 Trueup Sett'!V7 -> 308762.9923 | Z20: =-'I25 Input Rev 12 Init'!B8 -> -198450.94 | AA20: =SUM(C20:Z20) -> -66875.37808
B21: TOU Off-peak | C21: ='I2 Input 01 Trueup Sett '!V8 -> 2059048.917 | D21: =-'I3 Input Rev 01 Init'!B9 -> -1705635.77 | E21: ='I4 Input 02 Trueup Sett'!V8 -> 1638605.333 | F21: =-'I5 Input Rev 02 Init'!B9 -> -1917375.95 | G21: ='I6 Input 03 Trueup Sett'!V8 -> 1817745.015 | H21: =-'I7 Input Rev 03 Init'!B9 -> -1691294.14 | I21: ='I8 Input 04 Trueup Sett'!V8 -> 1460541.738 | J21: =-'I9 Input Rev 04 Init'!B9 -> -1804099.98 | K21: ='I10 Input 05 Trueup Sett'!V8 -> 1400615.452 | L21: =-'I11 Input Rev 05 Init'!B9 -> -1468863.86 | M21: ='I12 Input 06 Trueup Sett'!V8 -> 1470478.185 | N21: =-'I13 Input Rev 06 Init'!B9 -> -1333388.04 | O21: ='I14 Input 07 Trueup Sett'!V8 -> 1706630.888 | P21: =-'I15 Input Rev 07 Init'!B9 -> -1476150.28 | Q21: ='I16 Input 08 Trueup Sett'!V8 -> 1837685.835 | R21: =-'I17 Input Rev 08 Init'!B9 -> -1616828.63 | S21: ='I18 Input 09 Trueup Sett'!V8 -> 1422737.888 | T21: =-'I19 Input Rev 09 Init'!B9 -> -1786856.34 | U21: ='I20 Input 10 Trueup Sett'!V8 -> 1415613.803 | V21: =-'I21 Input Rev 10 Init'!B9 -> -1496185.03 | W21: ='I22 Input 11 Trueup Sett'!V8 -> 1448848.05 | X21: =-'I23 Input Rev 11 Init'!B9 -> -1315562.34 | Y21: ='I24 Input 12 Trueup Sett'!V8 -> 1734630.685 | Z21: =-'I25 Input Rev 12 Init'!B9 -> -1563852.26 | AA21: 237089.1681
B22: TOU Mid-peak | C22: ='I2 Input 01 Trueup Sett '!V9 -> 6304453.094 | D22: =-'I3 Input Rev 01 Init'!B10 -> -6014985.28 | E22: ='I4 Input 02 Trueup Sett'!V9 -> 6946251.296 | F22: =-'I5 Input Rev 02 Init'!B10 -> -7071867.63 | G22: ='I6 Input 03 Trueup Sett'!V9 -> 5889417.684 | H22: =-'I7 Input Rev 03 Init'!B10 -> -6018730.1 | I22: ='I8 Input 04 Trueup Sett'!V9 -> 4982070.801 | J22: =-'I9 Input Rev 04 Init'!B10 -> -5819420.16 | K22: ='I10 Input 05 Trueup Sett'!V9 -> 4604250.082 | L22: =-'I11 Input Rev 05 Init'!B10 -> -413034.99 | M22: ='I12 Input 06 Trueup Sett'!V9 -> 4746496.254 | N22: =-'I13 Input Rev 06 Init'!B10 -> -4405257.96 | O22: ='I14 Input 07 Trueup Sett'!V9 -> 5795212.048 | P22: =-'I15 Input Rev 07 Init'!B10 -> -4712086.82 | Q22: ='I16 Input 08 Trueup Sett'!V9 -> 5927360.19 | R22: =-'I17 Input Rev 08 Init'!B10 -> -5486943.25 | S22: ='I18 Input 09 Trueup Sett'!V9 -> 4680837.724 | T22: =-'I19 Input Rev 09 Init'!B10 -> -5873602.53 | U22: ='I20 Input 10 Trueup Sett'!V9 -> 4708825.688 | V22: =-'I21 Input Rev 10 Init'!B10 -> -4806850.29 | W22: ='I22 Input 11 Trueup Sett'!V9 -> 4584108.123 | X22: =-'I23 Input Rev 11 Init'!B10 -> -4512234.16 | Y22: ='I24 Input 12 Trueup Sett'!V9 -> 6643051.309 | Z22: =-'I25 Input Rev 12 Init'!B10 -> -4936617.72 | AA22: 5740703.402
B23: TOU On-peak | C23: ='I2 Input 01 Trueup Sett '!V10 -> 2112283.341 | D23: =-'I3 Input Rev 01 Init'!B11 -> -1734648.43 | E23: ='I4 Input 02 Trueup Sett'!V10 -> 1694568.703 | F23: =-'I5 Input Rev 02 Init'!B11 -> -1961008.87 | G23: ='I6 Input 03 Trueup Sett'!V10 -> 1857667.463 | H23: =-'I7 Input Rev 03 Init'!B11 -> -1745394.05 | I23: ='I8 Input 04 Trueup Sett'!V10 -> 1496603.281 | J23: =-'I9 Input Rev 04 Init'!B11 -> -1855147.35 | K23: ='I10 Input 05 Trueup Sett'!V10 -> 1414393.141 | L23: =-'I11 Input Rev 05 Init'!B11 -> -1487951.27 | M23: ='I12 Input 06 Trueup Sett'!V10 -> 1562922.717 | N23: =-'I13 Input Rev 06 Init'!B11 -> -1335638.86 | O23: ='I14 Input 07 Trueup Sett'!V10 -> 1904813.113 | P23: =-'I15 Input Rev 07 Init'!B11 -> -1562114.93 | Q23: ='I16 Input 08 Trueup Sett'!V10 -> 2126092.158 | R23: =-'I17 Input Rev 08 Init'!B11 -> -1790748.31 | S23: ='I18 Input 09 Trueup Sett'!V10 -> 1510479.262 | T23: =-'I19 Input Rev 09 Init'!B11 -> -2068029.07 | U23: ='I20 Input 10 Trueup Sett'!V10 -> 1381485.896 | V23: =-'I21 Input Rev 10 Init'!B11 -> -1621302.96 | W23: ='I22 Input 11 Trueup Sett'!V10 -> 1535338.225 | X23: =-'I23 Input Rev 11 Init'!B11 -> -1303859.18 | Y23: ='I24 Input 12 Trueup Sett'!V10 -> 1815112.025 | Z23: =-'I25 Input Rev 12 Init'!B11 -> -1635224.76 | AA23: 310691.2843
W24: ='I22 Input 11 Trueup Sett'!V11 -> 0 | Y24: ='I24 Input 12 Trueup Sett'!V11 -> 0 | AA24: 0
W25: ='I22 Input 11 Trueup Sett'!V12 -> 0 | Y25: ='I24 Input 12 Trueup Sett'!V12 -> 0 | AA25: 0
W26: ='I22 Input 11 Trueup Sett'!V13 -> 0 | Y26: ='I24 Input 12 Trueup Sett'!V13 -> 0 | AA26: 0
W27: ='I22 Input 11 Trueup Sett'!V14 -> 0 | Y27: ='I24 Input 12 Trueup Sett'!V14 -> 0 | AA27: 0
B28: Total RPP For Settlement | C28: =SUM(C19:C27) -> 11971165.22 | D28: -10648612.76 | E28: 11376859.17 | F28: -12403710.31 | G28: 10869690.67 | H28: -11041001.92 | I28: 9001056.631 | J28: -10764483.6 | K28: 8249129.471 | L28: -4487529.85 | M28: 8583514.105 | N28: -7881234.47 | O28: 10371336.38 | P28: -8560997.56 | Q28: 10920837.55 | R28: -9824094.15 | S28: 8406752.917 | T28: -10727530.83 | U28: 8423181.979 | V28: -8733052.43 | W28: =SUM(W19:W27) -> 8606395.028 | X28: =SUM(X19:X27) -> -8022770.38 | Y28: =SUM(Y19:Y27) -> 11999214.92 | Z28: =SUM(Z19:Z27) -> -9156381.52 | AA28: =SUM(AA19:AA27) -> 6527734.258
D29: =C28+D28 -> 1322552.461 | F29: =E28+F28 -> -1026851.142 | H29: =G28+H28 -> -171311.2451 | J29: =I28+J28 -> -1763426.969 | L29: =K28+L28 -> 3761599.621 | N29: =M28+N28 -> 702279.6352 | P29: =O28+P28 -> 1810338.815 | R29: =Q28+R28 -> 1096743.395 | T29: =S28+T28 -> -2320777.913 | V29: =U28+V28 -> -309870.4508 | X29: =W28+X28 -> 583624.6485 | Z29: =Y28+Z28 -> 2842833.401

Sheet I1a ER Summary
B4: kWh Volumes | C4: $ RPP Revenue | D4: $ RPP Energy | E4: $ GA | F4: $ RPP Settlement | G4: Rev RPP Settlement | H4: Net RPP Sett | J4: IESO Energy kWh | K4: IESO Energy Cost | L4: FIT/mFIT kWh | M4: FIT/mFIT kWh | N4: Total Energy kWh | O4: Total Energy Cost | Q4: CT 148 | S4: Wholesale kWh | T4: Retail kWh | U4: Diff kWh | V4: Diff % | X4: RPP kWh | Y4: COP kWh | Z4: Diff kWh | AA4: Diff % | AC4: RPP/WHSL | AE4: Energy Purchases | AF4: Energy Revenue | AG4: RPP Revenue | AH4: Non RPP Revenue | AJ4: RPP kWh | AK4: Non RPP kWh | AL4: Total kWh | AN4: Class A kWh | AP4: Non RPP Class B
A5: =Admin!B8 -> 202201 | B5: ='I2 Input 01 Trueup Sett '!V15 -> 11971165.22 | C5: ='I2 Input 01 Trueup Sett '!W15 -> 1129443.382 | D5: ='I2 Input 01 Trueup Sett '!X15 -> 513446.6499 | E5: ='I2 Input 01 Trueup Sett '!Y15 -> 520745.6757 | F5: ='I2 Input 01 Trueup Sett '!Z15 -> 95251.05651 | G5: ='I3 Input Rev 01 Init'!C12 -> -27982.03 | H5: =F5+G5 -> 67269.02651 | J5: ='I2 Input 01 Trueup Sett '!C10 -> 24694867.72 | K5: ='I2 Input 01 Trueup Sett '!D10 -> 1103037.86 | L5: =N5-J5 -> 137977.12 | M5: =O5-K5 -> 6028.74 | N5: ='I2 Input 01 Trueup Sett '!C11 -> 24832844.84 | O5: ='I2 Input 01 Trueup Sett '!D11 -> 1109066.6 | Q5: ='I2 Input 01 Trueup Sett '!B65 -> 855471.19 | S5: ='I2 Input 01 Trueup Sett '!$C$11 -> 24832844.84 | T5: ='I2 Input 01 Trueup Sett '!$C$30 -> 23589286.32 | U5: =S5-T5 -> 1243558.52 | V5: =T5/S5-1 -> -0.05007716707 | X5: =SUM('I2 Input 01 Trueup Sett '!C20:C25) -> 11211768.91 | Y5: ='I2 Input 01 Trueup Sett '!C41 -> 10495565.71 | Z5: =X5-Y5 -> 716203.1986 | AA5: =Y5/X5-1 -> -0.06387958979 | AC5: =X5/S5 -> 0.4514895083 | AE5: ='I2 Input 01 Trueup Sett '!D11 -> 1109066.6 | AF5: ='I2 Input 01 Trueup Sett '!D30 -> 1594601.591 | AG5: =C5 -> 1129443.382 | AH5: =AF5-AG5 -> 465158.2084 | AJ5: =X5 -> 11211768.91 | AK5: =T5-X5 -> 12377517.41 | AL5: =SUM(AJ5:AK5) -> 23589286.32 | AN5: ='I2 Input 01 Trueup Sett '!B57 -> 5229320.02 | AP5: =AK5-AN5 -> 7148197.394
A6: =A5+1 -> 202202 | B6: ='I4 Input 02 Trueup Sett'!V15 -> 11376859.17 | C6: ='I4 Input 02 Trueup Sett'!W15 -> 1102783.676 | D6: ='I4 Input 02 Trueup Sett'!X15 -> 473756.583 | E6: ='I4 Input 02 Trueup Sett'!Y15 -> 597285.1063 | F6: ='I4 Input 02 Trueup Sett'!Z15 -> 31741.9864 | G6: ='I5 Input Rev 02 Init'!C12 -> 38067.63 | H6: =F6+G6 -> 69809.6164 | J6: ='I4 Input 02 Trueup Sett'!C10 -> 22162879.02 | K6: ='I4 Input 02 Trueup Sett'!D10 -> 906990.38 | L6: =N6-J6 -> 247127.19 | M6: =O6-K6 -> 10245.39 | N6: ='I4 Input 02 Trueup Sett'!C11 -> 22410006.21 | O6: ='I4 Input 02 Trueup Sett'!D11 -> 917235.77 | Q6: ='I4 Input 02 Trueup Sett'!B77 -> 894892.81 | S6: ='I4 Input 02 Trueup Sett'!C11 -> 22410006.21 | T6: ='I4 Input 02 Trueup Sett'!C30 -> 23175841.15 | U6: =S6-T6 -> -765834.9376 | V6: =T6/S6-1 -> 0.03417379408 | X6: =SUM('I4 Input 02 Trueup Sett'!C20:C25) -> 11887577.87 | Y6: ='I4 Input 02 Trueup Sett'!C44 -> 2343267.623 | Z6: =X6-Y6 -> 9544310.244 | AA6: =Y6/X6-1 -> -0.8028809864 | AC6: =X6/S6 -> 0.5304584816 | AE6: ='I4 Input 02 Trueup Sett'!D11 -> 917235.77 | AF6: ='I4 Input 02 Trueup Sett'!D30 -> 1611591 | AG6: 1102783.676 | AH6: =AF6-AG6 -> 508807.3243 | AJ6: =X6 -> 11887577.87 | AK6: =T6-X6 -> 11288263.28 | AL6: =SUM(AJ6:AK6) -> 23175841.15 | AN6: ='I4 Input 02 Trueup Sett'!B64 -> 5350133.02 | AP6: =AK6-AN6 -> 5938130.261
A7: =A6+1 -> 202203 | B7: ='I6 Input 03 Trueup Sett'!V15 -> 10869690.67 | C7: ='I6 Input 03 Trueup Sett'!W15 -> 1136877.916 | D7: ='I6 Input 03 Trueup Sett'!X15 -> 428740.7434 | E7: ='I6 Input 03 Trueup Sett'!Y15 -> 645659.6323 | F7: ='I6 Input 03 Trueup Sett'!Z15 -> 62477.5406 | G7: ='I7 Input Rev 03 Init'!C12 -> -121760 | H7: =F7+G7 -> -59282.4594 | J7: ='I6 Input 03 Trueup Sett'!C10 -> 23152586.01 | K7: ='I6 Input 03 Trueup Sett'!D10 -> 888860.74 | L7: 424494.86 | M7: 15895.25 | N7: ='I6 Input 03 Trueup Sett'!C11 -> 23577080.87 | O7: ='I6 Input 03 Trueup Sett'!D11 -> 904755.99 | Q7: ='I6 Input 03 Trueup Sett'!B76 -> 1039095.69 | S7: ='I6 Input 03 Trueup Sett'!C11 -> 23577080.87 | T7: ='I6 Input 03 Trueup Sett'!C30 -> 23333231.19 | U7: 243849.6848 | V7: -0.01034265803 | X7: =SUM('I6 Input 03 Trueup Sett'!C20:C25) -> 10718127.15 | Y7: ='I6 Input 03 Trueup Sett'!C44 -> 10372955.15 | Z7: 345171.996 | AA7: -0.03220450655 | AC7: 0.4545994141 | AE7: ='I6 Input 03 Trueup Sett'!D11 -> 904755.99 | AF7: ='I6 Input 03 Trueup Sett'!D30 -> 1605296.391 | AG7: 1136877.916 | AH7: 468418.4751 | AJ7: 10718127.15 | AK7: 12615104.04 | AL7: 23333231.19 | AN7: ='I6 Input 03 Trueup Sett'!B64 -> 6088898.04 | AP7: 6526205.996
A8: 202204 | B8: ='I8 Input 04 Trueup Sett'!V15 -> 9001056.631 | C8: ='I8 Input 04 Trueup Sett'!W15 -> 935635.5154 | D8: ='I8 Input 04 Trueup Sett'!X15 -> 267295.6658 | E8: ='I8 Input 04 Trueup Sett'!Y15 -> 746187.5913 | F8: ='I8 Input 04 Trueup Sett'!Z15 -> -77847.74177 | G8: ='I9 Input Rev 04 Init'!C12 -> -66538.95 | H8: -144386.6918 | J8: ='I8 Input 04 Trueup Sett'!C10 -> 19726222.85 | K8: ='I8 Input 04 Trueup Sett'!D10 -> 574730.45 | L8: 651319.27 | M8: 20430.02 | N8: ='I8 Input 04 Trueup Sett'!C11 -> 20377542.12 | O8: ='I8 Input 04 Trueup Sett'!D11 -> 595160.47 | Q8: ='I8 Input 04 Trueup Sett'!B76 -> 1225503.02 | S8: ='I8 Input 04 Trueup Sett'!C11 -> 20377542.12 | T8: ='I8 Input 04 Trueup Sett'!C30 -> 20181338.08 | U8: 196204.0357 | V8: -0.009628444615 | X8: =SUM('I8 Input 04 Trueup Sett'!C20:C25) -> 8881239.85 | Y8: ='I8 Input 04 Trueup Sett'!C44 -> 8886213.512 | Z8: -4973.661416 | AA8: 0.0005600188149 | AC8: 0.4358346948 | AE8: ='I8 Input 04 Trueup Sett'!D11 -> 595160.47 | AF8: ='I8 Input 04 Trueup Sett'!D30 -> 1253285.244 | AG8: 935635.5154 | AH8: 317649.7289 | AJ8: 8881239.85 | AK8: 11300098.23 | AL8: 20181338.08 | AN8: ='I8 Input 04 Trueup Sett'!B64 -> 5638007.14 | AP8: 5662091.094
A9: 202205 | B9: ='I10 Input 05 Trueup Sett'!V15 -> 8249129.471 | C9: ='I10 Input 05 Trueup Sett'!W15 -> 860359.9351 | D9: ='I10 Input 05 Trueup Sett'!X15 -> 267778.4836 | E9: ='I10 Input 05 Trueup Sett'!Y15 -> 699526.1414 | F9: ='I10 Input 05 Trueup Sett'!Z15 -> -106944.6899 | G9: ='I11 Input Rev 05 Init'!C12 -> 60169.74 | H9: -46774.94987 | J9: ='I10 Input 05 Trueup Sett'!C10 -> 19301261.85 | K9: ='I10 Input 05 Trueup Sett'!D10 -> 637919.72 | L9: 812468.05 | M9: 28878.52 | N9: ='I10 Input 05 Trueup Sett'!C11 -> 20113729.9 | O9: ='I10 Input 05 Trueup Sett'!D11 -> 666798.24 | Q9: ='I10 Input 05 Trueup Sett'!B76 -> 1205257.49 | S9: ='I10 Input 05 Trueup Sett'!C11 -> 20113729.9 | T9: ='I10 Input 05 Trueup Sett'!C30 -> 19886600.45 | U9: 227129.4542 | V9: -0.01129225933 | X9: =SUM('I10 Input 05 Trueup Sett'!C20:C25) -> 8117374.419 | Y9: ='I10 Input 05 Trueup Sett'!C44 -> 8120181.301 | Z9: -2806.882354 | AA9: 0.0003457869761 | AC9: 0.4035738005 | AE9: ='I10 Input 05 Trueup Sett'!D11 -> 666798.24 | AF9: ='I10 Input 05 Trueup Sett'!D30 -> 1228137.833 | AG9: 860359.9351 | AH9: 367777.8982 | AJ9: 8117374.419 | AK9: 11769226.03 | AL9: 19886600.45 | AN9: ='I10 Input 05 Trueup Sett'!B64 -> 5893248.45 | AP9: 5875977.577
A10: 202206 | B10: ='I12 Input 06 Trueup Sett'!V15 -> 8583514.105 | C10: ='I12 Input 06 Trueup Sett'!W15 -> 902580.0904 | D10: ='I12 Input 06 Trueup Sett'!X15 -> 346802.8485 | E10: ='I12 Input 06 Trueup Sett'!Y15 -> 675522.5503 | F10: ='I12 Input 06 Trueup Sett'!Z15 -> -119745.3084 | G10: ='I13 Input Rev 06 Init'!C12 -> 86181.93 | H10: -33563.37841 | J10: ='I12 Input 06 Trueup Sett'!C10 -> 19514417.53 | K10: ='I12 Input 06 Trueup Sett'!D10 -> 748397.89 | L10: 826201.83 | M10: 34875.12 | N10: ='I12 Input 06 Trueup Sett'!C11 -> 20340619.36 | O10: ='I12 Input 06 Trueup Sett'!D11 -> 783273.01 | Q10: ='I12 Input 06 Trueup Sett'!B76 -> 1167237.5 | S10: ='I12 Input 06 Trueup Sett'!C11 -> 20340619.36 | T10: ='I12 Input 06 Trueup Sett'!C30 -> 20079632.99 | U10: 260986.374 | V10: -0.01283079779 | X10: =SUM('I12 Input 06 Trueup Sett'!C20:C25) -> 8432508.484 | Y10: ='I12 Input 06 Trueup Sett'!C44 -> 8440489.462 | Z10: -7980.978212 | AA10: 0.0009464536238 | AC10: 0.4145649812 | AE10: ='I12 Input 06 Trueup Sett'!D11 -> 783273.01 | AF10: ='I12 Input 06 Trueup Sett'!D30 -> 1322857.452 | AG10: 902580.0904 | AH10: 420277.3616 | AJ10: 8432508.484 | AK10: 11647124.5 | AL10: 20079632.99 | AN10: ='I12 Input 06 Trueup Sett'!B64 -> 5505541.05 | AP10: 6141583.452
A11: 202207 | B11: ='I14 Input 07 Trueup Sett'!V15 -> 10371336.38 | C11: ='I14 Input 07 Trueup Sett'!W15 -> 1090047.708 | D11: ='I14 Input 07 Trueup Sett'!X15 -> 669770.072 | E11: ='I14 Input 07 Trueup Sett'!Y15 -> 415890.6124 | F11: ='I14 Input 07 Trueup Sett'!Z15 -> 4387.023462 | G11: ='I15 Input Rev 07 Init'!C12 -> 91986.82 | H11: 96373.84346 | J11: ='I14 Input 07 Trueup Sett'!C10 -> 21059284.24 | K11: ='I14 Input 07 Trueup Sett'!D10 -> 1286544.3 | L11: 830645.87 | M11: 54788.11 | N11: ='I14 Input 07 Trueup Sett'!C11 -> 21889930.11 | O11: ='I14 Input 07 Trueup Sett'!D11 -> 1341332.41 | Q11: ='I14 Input 07 Trueup Sett'!B76 -> 681398.01 | S11: ='I14 Input 07 Trueup Sett'!C11 -> 21889930.11 | T11: ='I14 Input 07 Trueup Sett'!C30 -> 21629578.86 | U11: 260351.2507 | V11: -0.01189365381 | X11: =SUM('I14 Input 07 Trueup Sett'!C20:C25) -> 10212520.89 | Y11: ='I14 Input 07 Trueup Sett'!C44 -> 10217792.14 | Z11: -5271.247681 | AA11: 0.0005161553879 | AC11: 0.4665396754 | AE11: ='I14 Input 07 Trueup Sett'!D11 -> 1341332.41 | AF11: ='I14 Input 07 Trueup Sett'!D30 -> 1764587.194 | AG11: 1090047.708 | AH11: 674539.4864 | AJ11: 10212520.89 | AK11: 11417057.97 | AL11: 21629578.86 | AN11: ='I14 Input 07 Trueup Sett'!B64 -> 4887870.38 | AP11: 6529187.591
A12: 202208 | B12: ='I16 Input 08 Trueup Sett'!V15 -> 10920837.55 | C12: ='I16 Input 08 Trueup Sett'!W15 -> 1160210.989 | D12: ='I16 Input 08 Trueup Sett'!X15 -> 940682.3935 | E12: ='I16 Input 08 Trueup Sett'!Y15 -> 54604.18773 | F12: ='I16 Input 08 Trueup Sett'!Z15 -> 164924.408 | G12: ='I17 Input Rev 08 Init'!C12 -> 7221.64 | H12: 172146.048 | J12: ='I16 Input 08 Trueup Sett'!C10 -> 22479185.13 | K12: ='I16 Input 08 Trueup Sett'!D10 -> 1943497.44 | L12: 805647.89 | M12: 74832.4 | N12: ='I16 Input 08 Trueup Sett'!C11 -> 23284833.02 | O12: ='I16 Input 08 Trueup Sett'!D11 -> 2018329.84 | Q12: ='I16 Input 08 Trueup Sett'!B76 -> 90717.34 | S12: ='I16 Input 08 Trueup Sett'!C11 -> 23284833.02 | T12: ='I16 Input 08 Trueup Sett'!C30 -> 22761801.77 | U12: 523031.2455 | V12: -0.02246231464 | X12: =SUM('I16 Input 08 Trueup Sett'!C20:C25) -> 10605807.55 | Y12: ='I16 Input 08 Trueup Sett'!C44 -> 10603251.46 | Z12: 2556.088925 | AA12: -0.0002410084205 | AC12: 0.455481366 | AE12: ='I16 Input 08 Trueup Sett'!D11 -> 2018329.84 | AF12: ='I16 Input 08 Trueup Sett'!D30 -> 2145218.992 | AG12: 1160210.989 | AH12: 985008.003 | AJ12: 10605807.55 | AK12: 12155994.22 | AL12: 22761801.77 | AN12: ='I16 Input 08 Trueup Sett'!B64 -> 5153419.01 | AP12: 7002575.214
A13: 202209 | B13: ='I18 Input 09 Trueup Sett'!V15 -> 8406752.917 | C13: ='I18 Input 09 Trueup Sett'!W15 -> 881173.5314 | D13: ='I18 Input 09 Trueup Sett'!X15 -> 541690.1388 | E13: ='I18 Input 09 Trueup Sett'!Y15 -> 272378.7953 | F13: ='I18 Input 09 Trueup Sett'!Z15 -> 67104.59728 | G13: ='I19 Input Rev 09 Init'!C12 -> -88392.36 | H13: -21287.76272 | J13: ='I18 Input 09 Trueup Sett'!C10 -> 19445268.28 | K13: ='I18 Input 09 Trueup Sett'!D10 -> 1188438.71 | L13: 611669.94 | M13: 43035.24 | N13: ='I18 Input 09 Trueup Sett'!C11 -> 20056938.22 | O13: ='I18 Input 09 Trueup Sett'!D11 -> 1231473.95 | Q13: ='I18 Input 09 Trueup Sett'!B76 -> 476593.5 | S13: ='I18 Input 09 Trueup Sett'!C11 -> 20056938.22 | T13: ='I18 Input 09 Trueup Sett'!C30 -> 20036824.19 | U13: 20114.02921 | V13: -0.001002846446 | X13: =SUM('I18 Input 09 Trueup Sett'!C20:C25) -> 8395254.637 | Y13: ='I18 Input 09 Trueup Sett'!C44 -> 8398127.547 | Z13: -2872.910061 | AA13: 0.0003422064232 | AC13: 0.4185710972 | AE13: ='I18 Input 09 Trueup Sett'!D11 -> 1231473.95 | AF13: ='I18 Input 09 Trueup Sett'!D30 -> 1581660.879 | AG13: 881173.5314 | AH13: 700487.348 | AJ13: 8395254.637 | AK13: 11641569.55 | AL13: 20036824.19 | AN13: ='I18 Input 09 Trueup Sett'!B64 -> 5350939.96 | AP13: 6290629.593
A14: 202210 | B14: ='I20 Input 10 Trueup Sett'!V15 -> 8423181.979 | C14: ='I20 Input 10 Trueup Sett'!W15 -> 865223.9805 | D14: ='I20 Input 10 Trueup Sett'!X15 -> 378260.4756 | E14: ='I20 Input 10 Trueup Sett'!Y15 -> 486017.5986 | F14: ='I20 Input 10 Trueup Sett'!Z15 -> 945.9063519 | G14: ='I21 Input Rev 10 Init'!C12 -> -66664.19 | H14: -65718.28365 | J14: ='I20 Input 10 Trueup Sett'!C10 -> 19032538.2 | K14: ='I20 Input 10 Trueup Sett'!D10 -> 865607.42 | L14: 514643.19 | M14: 23771.42 | N14: ='I20 Input 10 Trueup Sett'!C11 -> 19547181.39 | O14: ='I20 Input 10 Trueup Sett'!D11 -> 889378.84 | Q14: ='I20 Input 10 Trueup Sett'!B76 -> 842405.45 | S14: ='I20 Input 10 Trueup Sett'!C11 -> 19547181.39 | T14: ='I20 Input 10 Trueup Sett'!C30 -> 19366628.19 | U14: 180553.1967 | V14: -0.009236789338 | X14: =SUM('I20 Input 10 Trueup Sett'!C20:C25) -> 8319001.053 | Y14: ='I20 Input 10 Trueup Sett'!C44 -> 8323741.549 | Z14: -4740.495448 | AA14: 0.0005698395057 | AC14: 0.4255857091 | AE14: ='I20 Input 10 Trueup Sett'!D11 -> 889378.84 | AF14: ='I20 Input 10 Trueup Sett'!D30 -> 1353078.166 | AG14: 865223.9805 | AH14: 487854.1855 | AJ14: 8319001.053 | AK14: 11047627.14 | AL14: 19366628.19 | AN14: ='I20 Input 10 Trueup Sett'!B64 -> 4949188.36 | AP14: 6098438.78
A15: 202211 | B15: ='I22 Input 11 Trueup Sett'!V15 -> 8606395.028 | C15: ='I22 Input 11 Trueup Sett'!W15 -> 819973.1724 | D15: ='I22 Input 11 Trueup Sett'!X15 -> 307751.9207 | E15: ='I22 Input 11 Trueup Sett'!Y15 -> 601586.9928 | F15: ='I22 Input 11 Trueup Sett'!Z15 -> -89365.74115 | G15: ='I23 Input Rev 11 Init'!C12 -> -31239.71 | H15: -120605.4512 | J15: ='I22 Input 11 Trueup Sett'!C10 -> 20702365.44 | K15: ='I22 Input 11 Trueup Sett'!D10 -> 669517.77 | L15: 263692.76 | M15: 8086.32 | N15: ='I22 Input 11 Trueup Sett'!C11 -> 20966058.2 | O15: ='I22 Input 11 Trueup Sett'!D11 -> 677604.09 | Q15: ='I22 Input 11 Trueup Sett'!B76 -> 1112296.4 | S15: ='I22 Input 11 Trueup Sett'!C11 -> 20966058.2 | T15: ='I22 Input 11 Trueup Sett'!C31 -> 22362843.5 | U15: -1396785.304 | V15: 0.06662126428 | X15: =SUM('I22 Input 11 Trueup Sett'!C20:C25) -> 7691654.069 | Y15: ='I22 Input 11 Trueup Sett'!C44 -> 9967766.763 | Z15: -2276112.694 | AA15: 0.2959197948 | AC15: 0.366862192 | AE15: ='I22 Input 11 Trueup Sett'!D11 -> 677604.09 | AF15: ='I22 Input 11 Trueup Sett'!D31 -> 1265824.48 | AG15: 819973.1724 | AH15: 445851.3079 | AJ15: 7691654.069 | AK15: 14671189.44 | AL15: 22362843.5 | AN15: ='I22 Input 11 Trueup Sett'!B64 -> 5051150.44 | AP15: 9620038.996
A16: 202212 | B16: ='I24 Input 12 Trueup Sett'!V15 -> 11999214.92 | C16: ='I24 Input 12 Trueup Sett'!W15 -> 1104677.166 | D16: ='I24 Input 12 Trueup Sett'!X15 -> 645656.2654 | E16: ='I24 Input 12 Trueup Sett'!Y15 -> 411573.0798 | F16: ='I24 Input 12 Trueup Sett'!Z15 -> 47447.82046 | G16: ='I25 Input Rev 12 Init'!C12 -> 42099.21 | H16: 89547.03046 | J16: ='I24 Input 12 Trueup Sett'!C10 -> 21635057.81 | K16: ='I24 Input 12 Trueup Sett'!D10 -> 1211664.07 | L16: 92878 | M16: 4657.42 | N16: ='I24 Input 12 Trueup Sett'!C11 -> 21727935.81 | O16: ='I24 Input 12 Trueup Sett'!D11 -> 1216321.49 | Q16: ='I24 Input 12 Trueup Sett'!B76 -> 615623.38 | S16: ='I24 Input 12 Trueup Sett'!C11 -> 21727935.81 | T16: ='I24 Input 12 Trueup Sett'!C31 -> 21152728.19 | U16: 575207.6193 | V16: -0.02647318293 | X16: =SUM('I24 Input 12 Trueup Sett'!C20:C25) -> 9858022.124 | Y16: ='I24 Input 12 Trueup Sett'!C44 -> 9866157.04 | Z16: -8134.915835 | AA16: 0.0008252077073 | AC16: 0.4537026531 | AE16: ='I24 Input 12 Trueup Sett'!D11 -> 1216321.49 | AF16: ='I24 Input 12 Trueup Sett'!D31 -> 1593054.368 | AG16: 1104677.166 | AH16: 488377.202 | AJ16: 9858022.124 | AK16: 11294706.07 | AL16: 21152728.19 | AN16: ='I24 Input 12 Trueup Sett'!B64 -> 3763142.8 | AP16: 7531563.267
B17: =SUM(B5:B16) -> 118779134 | C17: 11988987.06 | D17: 5781632.24 | E17: 6126977.964 | F17: =SUM(F5:F16) -> 80376.85785 | G17: =SUM(G5:G16) -> -76850.27 | H17: =SUM(H5:H16) -> 3526.587854 | J17: 252905934.1 | K17: 12025206.75 | L17: 6218765.97 | M17: 325523.95 | N17: 259124700.1 | O17: 12350730.7 | Q17: 10206491.78 | S17: =SUM(S5:S16) -> 259124700.1 | T17: 257556334.9 | U17: 1568365.168 | V17: =T17/S17-1 -> -0.006052549864 | X17: =SUM(X5:X16) -> 114330857 | Y17: 106035509.3 | Z17: 8295347.742 | AA17: =Y17/X17-1 -> -0.07255563336 | AC17: 0.4412194475 | AE17: =SUM(AE5:AE16) -> 12350730.7 | AF17: 18319193.59 | AG17: 11988987.06 | AH17: 6330206.529 | AJ17: =SUM(AJ5:AJ16) -> 114330857 | AK17: 143225477.9 | AL17: 257556334.9 | AN17: 62860858.67 | AP17: =SUM(AP5:AP16) -> 80364619.22
A20: 4705 GA | B20: ='Rec1 1588 Commodity'!F23 -> -507241.7061
A22: 4707 GA | B22: ='Rec2 1589 Class B'!J23 -> 507240.9761
A24: Should Be $0 | B24: =SUM(B20:B22) -> -0.7300000004
A26: (Owed To)/Owed From IESO | B26: =-H17 -> -3526.587854
A28: (Owed To)/Owed From Power Consumer | B28: ='Rec1 1588 Commodity'!L20 -> 238891.9304
A30: (Owed To)/Owed From Class B | B30: ='Rec2 1589 Class B'!K20 -> 10145.76782
A32: (Owed To)/Owed From | B32: =SUM(B26:B31) -> 245511.1104
A35: Unresolved Difference as % of Expected GA Payments to IESO | B35: ='Rev3 GA Analysis '!D67 -> 0.002500707001
A37: Account 1588 as % of Account 4705 | B37: ='Rev3 GA Analysis '!G99 -> 0.01287266028

Sheet I1b RPP Rates
A3: RPP Rates | P3: RPP Rates Split
B4: =Admin!B8 -> 202201 | C4: =B4+1 -> 202202 | D4: =C4+1 -> 202203 | E4: 202204 | F4: 202205 | G4: 202206 | H4: 202207 | I4: 202208 | J4: 202209 | K4: 202210 | L4: 202211 | M4: 202212 | Q4: =B4 -> 202201 | R4: =Q4+1 -> 202202 | S4: =R4+1 -> 202203 | T4: =S4+1 -> 202204 | U4: =T4+1 -> 202205 | V4: =U4+1 -> 202206 | W4: =V4+1 -> 202207 | X4: =W4+1 -> 202208 | Y4: =X4+1 -> 202209 | Z4: =Y4+1 -> 202210 | AA4: =Z4+1 -> 202211 | AB4: =AA4+1 -> 202212
A5: RPPT1 | B5: ='I2 Input 01 Trueup Sett '!Q6 -> 0.09245746022 | C5: ='I4 Input 02 Trueup Sett'!Q6 -> 0.09773379814 | D5: ='I6 Input 03 Trueup Sett'!Q6 -> 0.09799984848 | E5: ='I8 Input 04 Trueup Sett'!Q6 -> 0.09800008548 | F5: ='I10 Input 05 Trueup Sett'!Q6 -> 0.09799985113 | G5: ='I12 Input 06 Trueup Sett'!Q6 -> 0.09800001889 | H5: ='I14 Input 07 Trueup Sett'!Q6 -> 0.09800001691 | I5: ='I16 Input 08 Trueup Sett'!Q6 -> 0.09800009188 | J5: ='I18 Input 09 Trueup Sett'!Q6 -> 0.09799979579 | K5: ='I20 Input 10 Trueup Sett'!Q6 -> 0.09731515613 | L5: ='I22 Input 11 Trueup Sett'!Q6 -> 0.0874493896 | M5: ='I24 Input 12 Trueup Sett'!Q6 -> 0.08700040379 | P5: RPPT1 | Q5: ='I2 Input 01 Trueup Sett '!L18 -> 0.0856997614 | R5: ='I4 Input 02 Trueup Sett'!L18 -> 0.06752201944 | S5: ='I6 Input 03 Trueup Sett'!L18 -> 0.09100717427 | T5: ='I8 Input 04 Trueup Sett'!L18 -> 0.09447036048 | U5: ='I10 Input 05 Trueup Sett'!L18 -> 0.08087555437 | V5: ='I12 Input 06 Trueup Sett'!L18 -> 0.07476776663 | W5: ='I14 Input 07 Trueup Sett'!L18 -> 0.07240758477 | X5: ='I16 Input 08 Trueup Sett'!L18 -> 0.07186658576 | Y5: ='I18 Input 09 Trueup Sett'!L18 -> 0.07951349177 | Z5: ='I20 Input 10 Trueup Sett'!L18 -> 0.08550897165 | AA5: ='I22 Input 11 Trueup Sett'!L18 -> 0.09956084042 | AB5: ='I24 Input 12 Trueup Sett'!L18 -> 0.1248129915
A6: RPPT2 | B6: ='I2 Input 01 Trueup Sett '!Q7 -> 0.1040294617 | C6: ='I4 Input 02 Trueup Sett'!Q7 -> 0.1145675512 | D6: ='I6 Input 03 Trueup Sett'!Q7 -> 0.1150000965 | E6: ='I8 Input 04 Trueup Sett'!Q7 -> 0.1149992722 | F6: ='I10 Input 05 Trueup Sett'!Q7 -> 0.1150001163 | G6: ='I12 Input 06 Trueup Sett'!Q7 -> 0.11499881 | H6: ='I14 Input 07 Trueup Sett'!Q7 -> 0.1149994517 | I6: ='I16 Input 08 Trueup Sett'!Q7 -> 0.1149998586 | J6: ='I18 Input 09 Trueup Sett'!Q7 -> 0.1149985675 | K6: ='I20 Input 10 Trueup Sett'!Q7 -> 0.1142461982 | L6: ='I22 Input 11 Trueup Sett'!Q7 -> 0.1042810204 | M6: ='I24 Input 12 Trueup Sett'!Q7 -> 0.1029999299 | P6: RPPT2 | Q6: ='I2 Input 01 Trueup Sett '!L19 -> 0.03921538608 | R6: ='I4 Input 02 Trueup Sett'!L19 -> 0.02893991437 | S6: ='I6 Input 03 Trueup Sett'!L19 -> 0.02903860738 | T6: ='I8 Input 04 Trueup Sett'!L19 -> 0.02349810209 | U6: ='I10 Input 05 Trueup Sett'!L19 -> 0.0197254604 | V6: ='I12 Input 06 Trueup Sett'!L19 -> 0.01885553724 | W6: ='I14 Input 07 Trueup Sett'!L19 -> 0.02060649673 | X6: ='I16 Input 08 Trueup Sett'!L19 -> 0.02242099582 | Y6: ='I18 Input 09 Trueup Sett'!L19 -> 0.01477951902 | Z6: ='I20 Input 10 Trueup Sett'!L19 -> 0.0233877131 | AA6: ='I22 Input 11 Trueup Sett'!L19 -> 0.02105884155 | AB6: ='I24 Input 12 Trueup Sett'!L19 -> 0.02573193283
A7: RPPTOUMID | B7: ='I2 Input 01 Trueup Sett '!Q8 -> 0.09808120252 | C7: ='I4 Input 02 Trueup Sett'!Q8 -> 0.1046812088 | D7: ='I6 Input 03 Trueup Sett'!Q8 -> 0.112933031 | E7: ='I8 Input 04 Trueup Sett'!Q8 -> 0.1129974999 | F7: ='I10 Input 05 Trueup Sett'!Q8 -> 0.1129999977 | G7: ='I12 Input 06 Trueup Sett'!Q8 -> 0.1130001221 | H7: ='I14 Input 07 Trueup Sett'!Q8 -> 0.1130003044 | I7: ='I16 Input 08 Trueup Sett'!Q8 -> 0.112999773 | J7: ='I18 Input 09 Trueup Sett'!Q8 -> 0.1129998285 | K7: ='I20 Input 10 Trueup Sett'!Q8 -> 0.1117103134 | L7: ='I22 Input 11 Trueup Sett'!Q8 -> 0.1029949577 | M7: ='I24 Input 12 Trueup Sett'!Q8 -> 0.1019969986 | P7: RPPTOUMID | Q7: ='I2 Input 01 Trueup Sett '!L20 -> 0.1720007099 | R7: ='I4 Input 02 Trueup Sett'!L20 -> 0.1440296754 | S7: ='I6 Input 03 Trueup Sett'!L20 -> 0.1672306112 | T7: ='I8 Input 04 Trueup Sett'!L20 -> 0.162263365 | U7: ='I10 Input 05 Trueup Sett'!L20 -> 0.1697894859 | V7: ='I12 Input 06 Trueup Sett'!L20 -> 0.1713142387 | W7: ='I14 Input 07 Trueup Sett'!L20 -> 0.1645526503 | X7: ='I16 Input 08 Trueup Sett'!L20 -> 0.1682733424 | Y7: ='I18 Input 09 Trueup Sett'!L20 -> 0.1692375049 | Z7: ='I20 Input 10 Trueup Sett'!L20 -> 0.1680616431 | AA7: ='I22 Input 11 Trueup Sett'!L20 -> 0.1683455204 | AB7: ='I24 Input 12 Trueup Sett'!L20 -> 0.1445620148
A8: RPPTOUOFF | B8: ='I2 Input 01 Trueup Sett '!Q9 -> 0.08200019843 | C8: ='I4 Input 02 Trueup Sett'!Q9 -> 0.08200010758 | D8: ='I6 Input 03 Trueup Sett'!Q9 -> 0.0819999914 | E8: ='I8 Input 04 Trueup Sett'!Q9 -> 0.08200011237 | F8: ='I10 Input 05 Trueup Sett'!Q9 -> 0.08200006607 | G8: ='I12 Input 06 Trueup Sett'!Q9 -> 0.08199994779 | H8: ='I14 Input 07 Trueup Sett'!Q9 -> 0.08200000829 | I8: ='I16 Input 08 Trueup Sett'!Q9 -> 0.08199998421 | J8: ='I18 Input 09 Trueup Sett'!Q9 -> 0.08199967124 | K8: ='I20 Input 10 Trueup Sett'!Q9 -> 0.08127889944 | L8: ='I22 Input 11 Trueup Sett'!Q9 -> 0.07471070458 | M8: ='I24 Input 12 Trueup Sett'!Q9 -> 0.07399766274 | P8: RPPTOUOFF | Q8: ='I2 Input 01 Trueup Sett '!L21 -> 0.5266365452 | R8: ='I4 Input 02 Trueup Sett'!L21 -> 0.6105596627 | S8: ='I6 Input 03 Trueup Sett'!L21 -> 0.5418201731 | T8: ='I8 Input 04 Trueup Sett'!L21 -> 0.5534984397 | U8: ='I10 Input 05 Trueup Sett'!L21 -> 0.5581498143 | V8: ='I12 Input 06 Trueup Sett'!L21 -> 0.5529782087 | W8: ='I14 Input 07 Trueup Sett'!L21 -> 0.558771969 | X8: ='I16 Input 08 Trueup Sett'!L21 -> 0.5427569237 | Y8: ='I18 Input 09 Trueup Sett'!L21 -> 0.5567949684 | Z8: ='I20 Input 10 Trueup Sett'!L21 -> 0.5590316936 | AA8: ='I22 Input 11 Trueup Sett'!L21 -> 0.5326397531 | AB8: ='I24 Input 12 Trueup Sett'!L21 -> 0.5536238289
A9: RPPTOUON | B9: ='I2 Input 01 Trueup Sett '!Q10 -> 0.1263236957 | C9: ='I4 Input 02 Trueup Sett'!Q10 -> 0.1468576182 | D9: ='I6 Input 03 Trueup Sett'!Q10 -> 0.1697936614 | E9: ='I8 Input 04 Trueup Sett'!Q10 -> 0.1699927016 | F9: ='I10 Input 05 Trueup Sett'!Q10 -> 0.1700009091 | G9: ='I12 Input 06 Trueup Sett'!Q10 -> 0.1700005716 | H9: ='I14 Input 07 Trueup Sett'!Q10 -> 0.1700002509 | I9: ='I16 Input 08 Trueup Sett'!Q10 -> 0.1700003152 | J9: ='I18 Input 09 Trueup Sett'!Q10 -> 0.1699996421 | K9: ='I20 Input 10 Trueup Sett'!Q10 -> 0.1677605134 | L9: ='I22 Input 11 Trueup Sett'!Q10 -> 0.1526929598 | M9: ='I24 Input 12 Trueup Sett'!Q10 -> 0.1509991441 | P9: RPPTOUON | Q9: ='I2 Input 01 Trueup Sett '!L22 -> 0.1764475974 | R9: ='I4 Input 02 Trueup Sett'!L22 -> 0.1489487282 | S9: ='I6 Input 03 Trueup Sett'!L22 -> 0.170903434 | T9: ='I8 Input 04 Trueup Sett'!L22 -> 0.1662697328 | U9: ='I10 Input 05 Trueup Sett'!L22 -> 0.171459685 | V9: ='I12 Input 06 Trueup Sett'!L22 -> 0.1820842487 | W9: ='I14 Input 07 Trueup Sett'!L22 -> 0.1836612992 | X9: ='I16 Input 08 Trueup Sett'!L22 -> 0.1946821523 | Y9: ='I18 Input 09 Trueup Sett'!L22 -> 0.179674516 | Z9: ='I20 Input 10 Trueup Sett'!L22 -> 0.1640099785 | AA9: ='I22 Input 11 Trueup Sett'!L22 -> 0.1783950446 | AB9: ='I24 Input 12 Trueup Sett'!L22 -> 0.1512692319
A10: RPPULOMID | B10: ='I2 Input 01 Trueup Sett '!Q11 -> 0 | C10: ='I4 Input 02 Trueup Sett'!Q11 -> 0 | D10: ='I6 Input 03 Trueup Sett'!Q11 -> 0 | E10: ='I8 Input 04 Trueup Sett'!Q11 -> 0 | F10: ='I10 Input 05 Trueup Sett'!Q11 -> 0 | G10: ='I12 Input 06 Trueup Sett'!Q11 -> 0 | H10: ='I14 Input 07 Trueup Sett'!Q11 -> 0 | I10: ='I16 Input 08 Trueup Sett'!Q11 -> 0 | J10: ='I18 Input 09 Trueup Sett'!Q11 -> 0 | K10: ='I20 Input 10 Trueup Sett'!Q11 -> 0 | L10: ='I22 Input 11 Trueup Sett'!Q11 -> 0 | M10: ='I24 Input 12 Trueup Sett'!Q11 -> 0 | P10: RPPULOMID | Q10: ='I2 Input 01 Trueup Sett '!AF11 -> 0 | R10: ='I4 Input 02 Trueup Sett'!AF11 -> 0 | S10: ='I6 Input 03 Trueup Sett'!AF11 -> 0 | T10: ='I8 Input 04 Trueup Sett'!AF11 -> 0 | U10: ='I10 Input 05 Trueup Sett'!AF11 -> 0 | V10: ='I12 Input 06 Trueup Sett'!AF11 -> 0 | W10: ='I14 Input 07 Trueup Sett'!AF11 -> 0 | X10: ='I16 Input 08 Trueup Sett'!AF11 -> 0 | Y10: ='I18 Input 09 Trueup Sett'!AF11 -> 0 | Z10: ='I20 Input 10 Trueup Sett'!AF11 -> 0 | AA10: ='I22 Input 11 Trueup Sett'!AF11 -> 0 | AB10: ='I24 Input 12 Trueup Sett'!AF11 -> 0
A11: RPPULOOFF | B11: ='I2 Input 01 Trueup Sett '!Q12 -> 0 | C11: ='I4 Input 02 Trueup Sett'!Q12 -> 0 | D11: ='I6 Input 03 Trueup Sett'!Q12 -> 0 | E11: ='I8 Input 04 Trueup Sett'!Q12 -> 0 | F11: ='I10 Input 05 Trueup Sett'!Q12 -> 0 | G11: ='I12 Input 06 Trueup Sett'!Q12 -> 0 | H11: ='I14 Input 07 Trueup Sett'!Q12 -> 0 | I11: ='I16 Input 08 Trueup Sett'!Q12 -> 0 | J11: ='I18 Input 09 Trueup Sett'!Q12 -> 0 | K11: ='I20 Input 10 Trueup Sett'!Q12 -> 0 | L11: ='I22 Input 11 Trueup Sett'!Q12 -> 0 | M11: ='I24 Input 12 Trueup Sett'!Q12 -> 0 | P11: RPPULOOFF | Q11: ='I2 Input 01 Trueup Sett '!AF12 -> 0 | R11: ='I4 Input 02 Trueup Sett'!AF12 -> 0 | S11: ='I6 Input 03 Trueup Sett'!AF12 -> 0 | T11: ='I8 Input 04 Trueup Sett'!AF12 -> 0 | U11: ='I10 Input 05 Trueup Sett'!AF12 -> 0 | V11: ='I12 Input 06 Trueup Sett'!AF12 -> 0 | W11: ='I14 Input 07 Trueup Sett'!AF12 -> 0 | X11: ='I16 Input 08 Trueup Sett'!AF12 -> 0 | Y11: ='I18 Input 09 Trueup Sett'!AF12 -> 0 | Z11: ='I20 Input 10 Trueup Sett'!AF12 -> 0 | AA11: ='I22 Input 11 Trueup Sett'!AF12 -> 0 | AB11: ='I24 Input 12 Trueup Sett'!AF12 -> 0
A12: RPPULOON | B12: ='I2 Input 01 Trueup Sett '!Q13 -> 0 | C12: ='I4 Input 02 Trueup Sett'!Q13 -> 0 | D12: ='I6 Input 03 Trueup Sett'!Q13 -> 0 | E12: ='I8 Input 04 Trueup Sett'!Q13 -> 0 | F12: ='I10 Input 05 Trueup Sett'!Q13 -> 0 | G12: ='I12 Input 06 Trueup Sett'!Q13 -> 0 | H12: ='I14 Input 07 Trueup Sett'!Q13 -> 0 | I12: ='I16 Input 08 Trueup Sett'!Q13 -> 0 | J12: ='I18 Input 09 Trueup Sett'!Q13 -> 0 | K12: ='I20 Input 10 Trueup Sett'!Q13 -> 0 | L12: ='I22 Input 11 Trueup Sett'!Q13 -> 0 | M12: ='I24 Input 12 Trueup Sett'!Q13 -> 0 | P12: RPPULOON | Q12: ='I2 Input 01 Trueup Sett '!AF13 -> 0 | R12: ='I4 Input 02 Trueup Sett'!AF13 -> 0 | S12: ='I6 Input 03 Trueup Sett'!AF13 -> 0 | T12: ='I8 Input 04 Trueup Sett'!AF13 -> 0 | U12: ='I10 Input 05 Trueup Sett'!AF13 -> 0 | V12: ='I12 Input 06 Trueup Sett'!AF13 -> 0 | W12: ='I14 Input 07 Trueup Sett'!AF13 -> 0 | X12: ='I16 Input 08 Trueup Sett'!AF13 -> 0 | Y12: ='I18 Input 09 Trueup Sett'!AF13 -> 0 | Z12: ='I20 Input 10 Trueup Sett'!AF13 -> 0 | AA12: ='I22 Input 11 Trueup Sett'!AF13 -> 0 | AB12: ='I24 Input 12 Trueup Sett'!AF13 -> 0
A13: RPPULOOVN | B13: ='I2 Input 01 Trueup Sett '!Q14 -> 0 | C13: ='I4 Input 02 Trueup Sett'!Q14 -> 0 | D13: ='I6 Input 03 Trueup Sett'!Q14 -> 0 | E13: ='I8 Input 04 Trueup Sett'!Q14 -> 0 | F13: ='I10 Input 05 Trueup Sett'!Q14 -> 0 | G13: ='I12 Input 06 Trueup Sett'!Q14 -> 0 | H13: ='I14 Input 07 Trueup Sett'!Q14 -> 0 | I13: ='I16 Input 08 Trueup Sett'!Q14 -> 0 | J13: ='I18 Input 09 Trueup Sett'!Q14 -> 0 | K13: ='I20 Input 10 Trueup Sett'!Q14 -> 0 | L13: ='I22 Input 11 Trueup Sett'!Q14 -> 0 | M13: ='I24 Input 12 Trueup Sett'!Q14 -> 0 | P13: RPPULOOVN | Q13: ='I2 Input 01 Trueup Sett '!AF14 -> 0 | R13: ='I4 Input 02 Trueup Sett'!AF14 -> 0 | S13: ='I6 Input 03 Trueup Sett'!AF14 -> 0 | T13: ='I8 Input 04 Trueup Sett'!AF14 -> 0 | U13: ='I10 Input 05 Trueup Sett'!AF14 -> 0 | V13: ='I12 Input 06 Trueup Sett'!AF14 -> 0 | W13: ='I14 Input 07 Trueup Sett'!AF14 -> 0 | X13: ='I16 Input 08 Trueup Sett'!AF14 -> 0 | Y13: ='I18 Input 09 Trueup Sett'!AF14 -> 0 | Z13: ='I20 Input 10 Trueup Sett'!AF14 -> 0 | AA13: ='I22 Input 11 Trueup Sett'!AF14 -> 0 | AB13: ='I24 Input 12 Trueup Sett'!AF14 -> 0
Q14: =SUM(Q5:Q13) -> 1 | R14: =SUM(R5:R13) -> 1 | S14: 1 | T14: 1 | U14: 1 | V14: 1 | W14: 1 | X14: 1 | Y14: 1 | Z14: 1 | AA14: 1 | AB14: 1

Sheet I2 Input 01 Trueup Sett
A1: Date: | B1: =Admin!B8 -> 202201 | C1: Trueup | K1: ="Data for 1st True up of RPP Settlement based on Actual IESO Invoice" -> Data for 1st True up of RPP Settlement based on Actual IESO Invoice | P1: For Reconciliation
A3: Wholesale Electricty | B3: Year | C3: 2022 | E3: Rate | P3: Actual RPP Revenue and GA
A4: Redshift Wholesale Report.xlsm | B4: dateref | C4: 202201 | K4: Wholesale Volume data per IESO Power Bill: | L4: GA RPP/non-RPP Ratios | M4: GA Volumes | N4: Energy Volumes | P4: =B1 -> 202201
K5: AQEW | M5: =C10 -> 24694867.72 | N5: =+M5 -> 24694867.72 | P5: RPP Revenue Prices | Q5: RPP Rate | R5: Estimated RPP Energy Price | S5: GA actual IESO billed | T5: Total Commodity | U5: Difference | V5: kWh Volumes | W5: $ Estimated RPP Revenue | X5: $ Estimated RPP Energy | Y5: $ Estimated GA | Z5: $ Estimated RPP Settlement
B6: Wholesale | K6: Embedded Generation | M6: =SUM(C8:C9) -> 137977.12 | N6: =+M6 -> 137977.12 | P6: RPPT1 | Q6: =E20 -> 0.09245746022 | R6: =E39 -> 0.04286131849 | S6: =L32 -> 0.04349999905 | T6: =R6+S6 -> 0.08636131754 | U6: =+Q6-T6 -> 0.006096142674 | V6: =M18 -> 1025926.003 | W6: =Q6*V6 -> 94854.51262 | X6: =R6*V6 -> 43972.54117 | Y6: =+V6*S6 -> 44627.78016 | Z6: =W6-X6-Y6 -> 6254.191289
B7: Source | C7: kWh | D7: Total Cost | K7: Class A customer Volumes for GA (TLF included) | M7: =-B57 -> -5229320.02 | P7: RPPT2 | Q7: =E21 -> 0.1040294617 | R7: =R6 -> 0.04286131849 | S7: =S6 -> 0.04349999905 | T7: =R7+S7 -> 0.08636131754 | U7: =+Q7-T7 -> 0.01766814416 | V7: =M19 -> 469453.866 | W7: =Q7*V7 -> 48837.03297 | X7: =R7*V7 -> 20121.41167 | Y7: =+V7*S7 -> 20421.24272 | Z7: =W7-X7-Y7 -> 8294.37858
B8: FIT | C8: 126399.54 | D8: 5502.14 | E8: =D8/C8 -> 0.04352974702 | M8: =+M5+M6+M7 -> 19603524.82 | N8: =+N5+N6+N7 -> 24832844.84 | P8: RPPTOUMID | Q8: =E23 -> 0.09808120252 | R8: =E40 -> 0.04289441622 | S8: =S7 -> 0.04349999905 | T8: 0.08639441526 | U8: 0.01168678725 | V8: 2059048.917 | W8: 201953.9938 | X8: 88321.70124 | Y8: 89568.62591 | Z8: 24063.66663
B9: microFIT | C9: 11577.58 | D9: 526.6 | E9: =D9/C9 -> 0.04548446221 | P9: RPPTOUOFF | Q9: =E24 -> 0.08200019843 | R9: =R8 -> 0.04289441622 | S9: 0.04349999905 | T9: 0.08639441526 | U9: -0.004394216828 | V9: 6304453.094 | W9: 516966.4047 | X9: 270425.835 | Y9: 274243.7036 | Z9: -27703.13388
B10: WHOLESALE | C10: 24694867.72 | D10: 1103037.86 | E10: =D10/C10 -> 0.04466668429 | K10: Estimated Retail Volume Revenue Data (TLF Included) | L10: RPP/non-RPP Ratios | M10: GA Volumes | N10: Energy Volumes | P10: RPPTOUON | Q10: 0.1263236957 | R10: =R9 -> 0.04289441622 | S10: 0.04349999905 | T10: 0.08639441526 | U10: 0.03992928043 | V10: 2112283.341 | W10: 266831.438 | X10: 90605.16081 | Y10: 91884.32333 | Z10: 84341.95389
B11: Grand Total | C11: 24832844.84 | D11: 1109066.6 | K11: Estimated Retail Revenue Data (Net of Retail Billed/Unbilled) | M11: =+M15 -> 19603524.82 | N11: =+N15 -> 24832844.84 | P11: RPPULOMID | Q11: 0 | R11: 0 | S11: 0 | T11: 0 | U11: 0 | V11: 0 | W11: 0 | X11: 0 | Y11: 0 | Z11: 0
P12: RPPULOOFF | Q12: 0 | R12: 0 | S12: 0 | T12: 0 | U12: 0 | V12: 0 | W12: 0 | X12: 0 | Y12: 0 | Z12: 0
K13: Estimated RPP Sales Quantities | L13: =SUM(C20:C25)/(C30-B57) -> 0.6106639153 | M13: =M8*L13 -> 11971165.22 | N13: =M13 -> 11971165.22 | P13: RPPULOON | Q13: 0 | R13: 0 | S13: 0 | T13: 0 | U13: 0 | V13: 0 | W13: 0 | X13: 0 | Y13: 0 | Z13: 0
A14: RPP Revenue Volume and Price Data | K14: Estimated non-RPP Sales Quantities | L14: =1-L13 -> 0.3893360847 | M14: =M8*L14 -> 7632359.599 | N14: =N8-N13 -> 12861679.62 | P14: RPPULOOVN | Q14: 0 | R14: 0 | S14: 0 | T14: 0 | U14: 0 | V14: 0 | W14: 0 | X14: 0 | Y14: 0 | Z14: 0
A15: ER Summary.xlsm | B15: bill_year | C15: 2022 | K15: Estimated Retail Revenue kWh Volumes | L15: =+L13+L14 -> 1 | M15: =+M13+M14 -> 19603524.82 | N15: =+N13+N14 -> 24832844.84 | V15: =SUM(V6:V14) -> 11971165.22 | W15: =SUM(W6:W14) -> 1129443.382 | X15: =SUM(X6:X14) -> 513446.6499 | Y15: =SUM(Y6:Y14) -> 520745.6757 | Z15: =SUM(Z6:Z14) -> 95251.05651
B16: bill_month | C16: 1 | Z16: =W15-X15-Y15-Z15 -> 0
K17: Estimated RPP Revenue Volume and Price Data | L17: Actual % | M17: kWh Volumes
B18: Row Labels | C18: usagebilled | D18: amountbilled | E18: Rate | K18: RPPT1 | L18: =C20/SUM($C$20:$C$25) -> 0.0856997614 | M18: =$M$13*L18 -> 1025926.003
B19: RPPTIER | K19: RPPT2 | L19: =C21/SUM($C$20:$C$25) -> 0.03921538608 | M19: =$M$13*L19 -> 469453.866
B20: RPPT1 | C20: 960845.9202 | D20: 88837.37344 | E20: =D20/C20 -> 0.09245746022 | K20: RPPTOUMID | L20: =C23/SUM($C$20:$C$25) -> 0.1720007099 | M20: 2059048.917
B21: RPPT2 | C21: 439673.8463 | D21: 45739.03356 | E21: =D21/C21 -> 0.1040294617 | K21: RPPTOUOFF | L21: =C24/SUM($C$20:$C$25) -> 0.5266365452 | M21: 6304453.094
B22: RPPTOU | K22: RPPTOUON | L22: 0.1764475974 | M22: 2112283.341
B23: RPPTOUMID | C23: 1928432.211 | D23: 189142.9503 | E23: 0.09808120252 | K23: RPPULOMID | L23: 0 | M23: 0
B24: RPPTOUOFF | C24: 5904527.242 | D24: 484172.4055 | E24: 0.08200019843 | K24: RPPULOOFF | L24: 0 | M24: 0
B25: RPPTOUON | C25: 1978289.686 | D25: 249904.8643 | E25: 0.1263236957 | K25: RPPULOON | L25: 0 | M25: 0
B26: RETAIL | K26: RPPULOOVN | L26: 0 | M26: 0
B27: NSLS | C27: 3441454.075 | D27: 150722.015 | E27: 0.04379602684 | L27: =SUM(L18:L26) -> 1 | M27: =SUM(M18:M26) -> 11971165.22
B28: INTERVAL
B29: HOEP | C29: 8936063.339 | D29: 386082.9484 | E29: 0.04320503714
B30: Grand Total | C30: 23589286.32 | D30: 1594601.591
K31: Global Adjustment | L31: per kWh
C32: =C30/C11-1 -> -0.05007716707 | K32: Class B - GA actual8 | L32: =B49/100 -> 0.04349999905 | N32: GA Posted Price
K33: Class B - GA actual IESO billed | L33: =+M33/M8 -> 0.04363864141 | M33: =B65 -> 855471.19 | N33: GA Billed by IESO CT 148
A34: RPP COP Volume and Price Data
A35: ER COP Summary.xlsm | B35: bill_year | C35: 2022
B36: bill_month | C36: 1
B38: Row Labels | C38: usagebilled | D38: amountbilled | E38: Rate
B39: RPPTIERED | C39: 1261166.267 | D39: 54055.24906 | E39: =D39/C39 -> 0.04286131849
B40: RPPTOU | C40: 9234399.44 | D40: 396104.1731 | E40: 0.04289441622
B41: Grand Total | C41: 10495565.71 | D41: 450159.4222
C43: =SUM(C20:C25)-C41 -> 716203.1986
C44: =C43/C41 -> 0.06823864654
A45: Global Adjustment - Actual
A46: IESO GA Reconciliation.xlsm
A47: ga_actual | B47: year
A48: month | B48: 2022
A49: 202201 | B49: 4.349999905
A51: Class A kWh
A52: Redshift Class A Report.xlsm
A53: Year | B53: 2022
A55: Class A | B55: Value
A56: kWh
A57: 202201 | B57: 5229320.02
A59: IESO Class B
A60: IESO Invoice Reconciliation.xlsm
A61: chargetype | B61: 148
A63: Sum of chargeamount | B63: year
A64: month | B64: 2022
A65: 202201 | B65: 855471.19

Sheet I3 Input Rev 01 Init
A1: Reverse IESO Posted
A2: Reverse Previously submitted CT142 By Date Ref.xlsx
A5: =Admin!B8 -> 202201
A6: RPP Revenue Prices | B6: kWh Volumes | C6: $ RPP Settlement
A7: RPPTiered_1 | B7: 905074.27 | C7: 2945.52
A8: RPPTiered_2 | B8: 288269.01 | C8: -3969.66
A9: RPPTOU_MID | B9: 1705635.77 | C9: -20630.83
A10: RPPTOU_OFF | B10: 6014985.28 | C10: 113517.23
A11: RPPTOU_ON | B11: 1734648.43 | C11: -119844.29
A12: Grand Total | B12: 10648612.76 | C12: -27982.03

Sheet I4 Input 02 Trueup Sett
A1: Date: | B1: =Admin!B8+1 -> 202202 | C1: Trueup | K1: ="Data for 1st True up of RPP Settlement based on Actual IESO Invoice" -> Data for 1st True up of RPP Settlement based on Actual IESO Invoice | P1: For Reconciliation
A3: Wholesale Electricty | B3: Year | C3: 2022 | E3: Rate | P3: Actual RPP Revenue and GA
B4: dateref | C4: 202202 | K4: Wholesale Volume data per IESO Power Bill: | L4: GA RPP/non-RPP Ratios | M4: GA Volumes | N4: Energy Volumes | P4: =B1 -> 202202
K5: AQEW | M5: =C10 -> 22162879.02 | N5: =+M5 -> 22162879.02 | P5: RPP Revenue Prices | Q5: RPP Rate | R5: Estimated RPP Energy Price | S5: GA actual IESO billed | T5: Total Commodity | U5: Difference | V5: kWh Volumes | W5: $ Estimated RPP Revenue | X5: $ Estimated RPP Energy | Y5: $ Estimated GA | Z5: $ Estimated RPP Settlement
B6: Wholesale | K6: Embedded Generation | M6: =SUM(C8:C9) -> 247127.19 | N6: =+M6 -> 247127.19 | P6: RPPT1 | Q6: =E20 -> 0.09773379814 | R6: =E42 -> 0.0412408722 | S6: =L32 -> 0.0525 | T6: =R6+S6 -> 0.0937408722 | U6: =+Q6-T6 -> 0.003992925945 | V6: =M18 -> 768188.5059 | W6: =Q6*V6 -> 75077.98037 | X6: =R6*V6 -> 31680.764 | Y6: =+V6*S6 -> 40329.89656 | Z6: =W6-X6-Y6 -> 3067.319816
A7: FIT/mFIT | B7: Source | C7: kWh | D7: Total Cost | K7: Class A customer Volumes for GA (TLF included) | M7: =-B64 -> -5350133.02 | P7: RPPT2 | Q7: =E21 -> 0.1145675512 | R7: =R6 -> 0.0412408722 | S7: =S6 -> 0.0525 | T7: =R7+S7 -> 0.0937408722 | U7: =+Q7-T7 -> 0.020826679 | V7: =M19 -> 329245.3301 | W7: =Q7*V7 -> 37720.83121 | X7: =R7*V7 -> 13578.36458 | Y7: =+V7*S7 -> 17285.37983 | Z7: =W7-X7-Y7 -> 6857.086803
B8: FIT | C8: 230378.32 | D8: 9553.31 | E8: =D8/C8 -> 0.04146792111 | M8: =+M5+M6+M7 -> 17059873.19 | N8: =+N5+N6+N7 -> 22410006.21 | P8: RPPTOUMID | Q8: =E23 -> 0.1046812088 | R8: =E43 -> 0.04168496201 | S8: =S7 -> 0.0525 | T8: 0.09418496201 | U8: 0.01049624676 | V8: 1638605.333 | W8: 171531.1869 | X8: 68305.20105 | Y8: 86026.77997 | Z8: 17199.20592
B9: microFIT | C9: 16748.87 | D9: 692.08 | E9: =D9/C9 -> 0.04132099658 | P9: RPPTOUOFF | Q9: =E24 -> 0.08200010758 | R9: =R8 -> 0.04168496201 | S9: 0.0525 | T9: 0.09418496201 | U9: -0.01218485443 | V9: 6946251.296 | W9: 569593.3535 | X9: 289554.2214 | Y9: 364678.193 | Z9: -84639.06088
B10: WHOLESALE | C10: 22162879.02 | D10: 906990.38 | E10: =D10/C10 -> 0.04092385196 | K10: Estimated Retail Volume Revenue Data (TLF Included) | L10: RPP/non-RPP Ratios | M10: GA Volumes | N10: Energy Volumes | P10: RPPTOUON | Q10: 0.1468576182 | R10: =R9 -> 0.04168496201 | S10: 0.0525 | T10: 0.09418496201 | U10: 0.05267265621 | V10: 1694568.703 | W10: 248860.3237 | X10: 70638.03203 | Y10: 88964.85693 | Z10: 89257.43474
A11: Total Wholesale Electricity | B11: Grand Total | C11: 22410006.21 | D11: 917235.77 | K11: Estimated Retail Revenue Data (Net of Retail Billed/Unbilled) | M11: =+M15 -> 17059873.19 | N11: =+N15 -> 22410006.21 | P11: RPPULOMID | Q11: 0 | R11: 0 | S11: 0 | T11: 0 | U11: 0 | V11: 0 | W11: 0 | X11: 0 | Y11: 0 | Z11: 0
P12: RPPULOOFF | Q12: 0 | R12: 0 | S12: 0 | T12: 0 | U12: 0 | V12: 0 | W12: 0 | X12: 0 | Y12: 0 | Z12: 0
K13: Estimated RPP Sales Quantities | L13: =SUM(C20:C25)/(C30-B64) -> 0.6668782963 | M13: =M8*L13 -> 11376859.17 | N13: =M13 -> 11376859.17 | P13: RPPULOON | Q13: 0 | R13: 0 | S13: 0 | T13: 0 | U13: 0 | V13: 0 | W13: 0 | X13: 0 | Y13: 0 | Z13: 0
A14: RPP Revenue Volume and Price Data | K14: Estimated non-RPP Sales Quantities | L14: =1-L13 -> 0.3331217037 | M14: =M8*L14 -> 5683014.022 | N14: =N8-N13 -> 11033147.04 | P14: RPPULOOVN | Q14: 0 | R14: 0 | S14: 0 | T14: 0 | U14: 0 | V14: 0 | W14: 0 | X14: 0 | Y14: 0 | Z14: 0
B15: bill_year | C15: 2022 | K15: Estimated Retail Revenue kWh Volumes | L15: =+L13+L14 -> 1 | M15: =+M13+M14 -> 17059873.19 | N15: =+N13+N14 -> 22410006.21 | V15: =SUM(V6:V14) -> 11376859.17 | W15: =SUM(W6:W14) -> 1102783.676 | X15: =SUM(X6:X14) -> 473756.583 | Y15: =SUM(Y6:Y14) -> 597285.1063 | Z15: =SUM(Z6:Z14) -> 31741.9864
B16: bill_month | C16: 2 | Z16: =W15-X15-Y15-Z15 -> 0
K17: Estimated RPP Revenue Volume and Price Data | L17: Actual % | M17: kWh Volumes
B18: Row Labels | C18: usagebilled | D18: amountbilled | E18: Rate | K18: RPPT1 | L18: =C20/SUM($C$20:$C$25) -> 0.06752201944 | M18: =$M$13*L18 -> 768188.5059
B19: RPPTIER | K19: RPPT2 | L19: =C21/SUM($C$20:$C$25) -> 0.02893991437 | M19: =$M$13*L19 -> 329245.3301
B20: RPPT1 | C20: 802673.2638 | D20: 78448.30674 | E20: =D20/C20 -> 0.09773379814 | K20: RPPTOUMID | L20: =C23/SUM($C$20:$C$25) -> 0.1440296754 | M20: 1638605.333
B21: RPPT2 | C21: 344025.4855 | D21: 39414.15742 | E21: =D21/C21 -> 0.1145675512 | K21: RPPTOUOFF | L21: =C24/SUM($C$20:$C$25) -> 0.6105596627 | M21: 6946251.296
B22: RPPTOU | K22: RPPTOUON | L22: 0.1489487282 | M22: 1694568.703
B23: RPPTOUMID | C23: 1712163.981 | D23: 179231.3952 | E23: 0.1046812088 | K23: RPPULOMID | L23: 0 | M23: 0
B24: RPPTOUOFF | C24: 7258075.532 | D24: 595162.9745 | E24: 0.08200010758 | K24: RPPULOOFF | L24: 0 | M24: 0
B25: RPPTOUON | C25: 1770639.604 | D25: 260031.915 | E25: 0.1468576182 | K25: RPPULOON | L25: 0 | M25: 0
B26: RETAIL | K26: RPPULOOVN | L26: 0 | M26: 0
B27: NSLS | C27: 3206098.636 | D27: 132750.9338 | E27: 0.04140575475 | L27: =SUM(L18:L26) -> 1 | M27: =SUM(M18:M26) -> 11376859.17
B28: INTERVAL
B29: HOEP | C29: 8082164.645 | D29: 326551.3174 | E29: 0.04040394273
B30: Grand Total | C30: 23175841.15 | D30: 1611591
K31: Global Adjustment | L31: per kWh
C32: =C30/C11-1 -> 0.03417379408 | K32: Class B - GA actual8 | L32: =B69/100 -> 0.0525 | N32: GA Posted Price
K33: Class B - GA actual IESO billed | L33: =+M33/M8 -> 0.05245600598 | M33: =B77 -> 894892.81 | N33: GA Billed by IESO CT 148
A37: RPP COP Volume and Price Data
B38: bill_year | C38: 2022
B39: bill_month | C39: 2
B41: Row Labels | C41: usagebilled | D41: amountbilled | E41: Rate
B42: RPPTIERED | C42: 204975.5897 | D42: 8453.3721 | E42: =D42/C42 -> 0.0412408722
B43: RPPTOU | C43: 2138292.033 | D43: 89134.62216 | E43: 0.04168496201
B44: Grand Total | C44: 2343267.623 | D44: 97587.99426
C46: =SUM(C20:C25)-C44 -> 9544310.244
C47: =C46/C44 -> 4.073077335
A60: Year | B60: 2022
A62: Class A | B62: Value
A63: kWh
A64: 202202 | B64: 5350133.02
A67: ga_actual | B67: year
A68: month | B68: 2022
A69: 202202 | B69: 5.25
A73: chargetype | B73: 148
A75: Sum of chargeamount | B75: year
A76: month | B76: 2022
A77: 202202 | B77: 894892.81

Sheet I5 Input Rev 02 Init
A1: Reverse IESO Posted
A5: =Admin!B11 -> 202202
A6: RPP Revenue Prices | B6: kWh Volumes | C6: $ RPP Settlement
A7: RPPTiered_1 | B7: 1017721.24 | C7: -3338.48
A8: RPPTiered_2 | B8: 435736.62 | C8: -6082.63
A9: RPPTOU_MID | B9: 1917375.95 | C9: -20777.5
A10: RPPTOU_OFF | B10: 7071867.63 | C10: 153296.47
A11: RPPTOU_ON | B11: 1961008.87 | C11: -85030.23
A12: Grand Total | B12: 12403710.31 | C12: 38067.63

Sheet I6 Input 03 Trueup Sett
A1: Date: | B1: =Admin!B8+2 -> 202203 | C1: Trueup | K1: ="Data for 1st True up of RPP Settlement based on Actual IESO Invoice" -> Data for 1st True up of RPP Settlement based on Actual IESO Invoice | P1: For Reconciliation
A3: Wholesale Electricty | B3: Year | C3: 2022 | E3: Rate | P3: Actual RPP Revenue and GA
B4: dateref | C4: 202203 | K4: Wholesale Volume data per IESO Power Bill: | L4: GA RPP/non-RPP Ratios | M4: GA Volumes | N4: Energy Volumes | P4: =B1 -> 202203
K5: AQEW | M5: =C10 -> 23152586.01 | N5: =+M5 -> 23152586.01 | P5: RPP Revenue Prices | Q5: RPP Rate | R5: Estimated RPP Energy Price | S5: GA actual IESO billed | T5: Total Commodity | U5: Difference | V5: kWh Volumes | W5: $ Estimated RPP Revenue | X5: $ Estimated RPP Energy | Y5: $ Estimated GA | Z5: $ Estimated RPP Settlement
B6: Wholesale | K6: Embedded Generation | M6: =SUM(C8:C9) -> 424494.86 | N6: =+M6 -> 424494.86 | P6: RPPT1 | Q6: =E20 -> 0.09799984848 | R6: =E42 -> 0.03909026691 | S6: =L32 -> 0.05940000057 | T6: =R6+S6 -> 0.09849026748 | U6: =+Q6-T6 -> -0.000490419004 | V6: =M18 -> 989219.8335 | W6: =Q6*V6 -> 96943.3938 | X6: =R6*V6 -> 38668.86733 | Y6: =+V6*S6 -> 58759.65868 | Z6: =W6-X6-Y6 -> -485.1322055
A7: FIT/mFIT | B7: Source | C7: kWh | D7: Total Cost | K7: Class A customer Volumes for GA (TLF included) | M7: =-B64 -> -6088898.04 | P7: RPPT2 | Q7: =E21 -> 0.1150000965 | R7: =R6 -> 0.03909026691 | S7: =S6 -> 0.05940000057 | T7: =R7+S7 -> 0.09849026748 | U7: =+Q7-T7 -> 0.01650982901 | V7: =M19 -> 315640.6799 | W7: =Q7*V7 -> 36298.70864 | X7: =R7*V7 -> 12338.47842 | Y7: =+V7*S7 -> 18749.05657 | Z7: =W7-X7-Y7 -> 5211.173655
B8: FIT | C8: 400205.39 | D8: 14981.03 | E8: =D8/C8 -> 0.03743335391 | M8: =+M5+M6+M7 -> 17488182.83 | N8: =+N5+N6+N7 -> 23577080.87 | P8: RPPTOUMID | Q8: =E23 -> 0.112933031 | R8: =E43 -> 0.03949190851 | S8: =S7 -> 0.05940000057 | T8: 0.09889190909 | U8: 0.01404112195 | V8: 1817745.015 | W8: 205283.4542 | X8: 71786.21984 | Y8: 107974.0549 | Z8: 25523.17944
B9: microFIT | C9: 24289.47 | D9: 914.22 | E9: =D9/C9 -> 0.03763853225 | P9: RPPTOUOFF | Q9: =E24 -> 0.0819999914 | R9: =R8 -> 0.03949190851 | S9: 0.05940000057 | T9: 0.09889190909 | U9: -0.01689191768 | V9: 5889417.684 | W9: 482932.1994 | X9: 232584.3444 | Y9: 349831.4138 | Z9: -99483.5587
B10: WHOLESALE | C10: 23152586.01 | D10: 888860.74 | E10: =D10/C10 -> 0.03839142373 | K10: Estimated Retail Volume Revenue Data (TLF Included) | L10: RPP/non-RPP Ratios | M10: GA Volumes | N10: Energy Volumes | P10: RPPTOUON | Q10: 0.1697936614 | R10: =R9 -> 0.03949190851 | S10: 0.05940000057 | T10: 0.09889190909 | U10: 0.07090175236 | V10: 1857667.463 | W10: 315420.1602 | X10: 73362.83349 | Y10: 110345.4483 | Z10: 131711.8784
A11: Total Wholesale Electricity | B11: Grand Total | C11: 23577080.87 | D11: 904755.99 | K11: Estimated Retail Revenue Data (Net of Retail Billed/Unbilled) | M11: =+M15 -> 17488182.83 | N11: =+N15 -> 23577080.87 | P11: RPPULOMID | Q11: 0 | R11: 0 | S11: 0 | T11: 0 | U11: 0 | V11: 0 | W11: 0 | X11: 0 | Y11: 0 | Z11: 0
P12: RPPULOOFF | Q12: 0 | R12: 0 | S12: 0 | T12: 0 | U12: 0 | V12: 0 | W12: 0 | X12: 0 | Y12: 0 | Z12: 0
K13: Estimated RPP Sales Quantities | L13: =SUM(C20:C25)/(C30-B64) -> 0.6215448901 | M13: =M8*L13 -> 10869690.67 | N13: =M13 -> 10869690.67 | P13: RPPULOON | Q13: 0 | R13: 0 | S13: 0 | T13: 0 | U13: 0 | V13: 0 | W13: 0 | X13: 0 | Y13: 0 | Z13: 0
A14: RPP Revenue Volume and Price Data | K14: Estimated non-RPP Sales Quantities | L14: =1-L13 -> 0.3784551099 | M14: =M8*L14 -> 6618492.155 | N14: =N8-N13 -> 12707390.2 | P14: RPPULOOVN | Q14: 0 | R14: 0 | S14: 0 | T14: 0 | U14: 0 | V14: 0 | W14: 0 | X14: 0 | Y14: 0 | Z14: 0
B15: bill_year | C15: 2022 | K15: Estimated Retail Revenue kWh Volumes | L15: =+L13+L14 -> 1 | M15: =+M13+M14 -> 17488182.83 | N15: =+N13+N14 -> 23577080.87 | V15: =SUM(V6:V14) -> 10869690.67 | W15: =SUM(W6:W14) -> 1136877.916 | X15: =SUM(X6:X14) -> 428740.7434 | Y15: =SUM(Y6:Y14) -> 645659.6323 | Z15: =SUM(Z6:Z14) -> 62477.5406
B16: bill_month | C16: 3 | Z16: =W15-X15-Y15-Z15 -> 0
K17: Estimated RPP Revenue Volume and Price Data | L17: Actual % | M17: kWh Volumes
B18: Row Labels | C18: usagebilled | D18: amountbilled | E18: Rate | K18: RPPT1 | L18: =C20/SUM($C$20:$C$25) -> 0.09100717427 | M18: =$M$13*L18 -> 989219.8335
B19: RPPTIER | K19: RPPT2 | L19: =C21/SUM($C$20:$C$25) -> 0.02903860738 | M19: =$M$13*L19 -> 315640.6799
B20: RPPT1 | C20: 975426.4654 | D20: 95591.64581 | E20: =D20/C20 -> 0.09799984848 | K20: RPPTOUMID | L20: =C23/SUM($C$20:$C$25) -> 0.1672306112 | M20: 1817745.015
B21: RPPT2 | C21: 311239.4862 | D21: 35792.57094 | E21: =D21/C21 -> 0.1150000965 | K21: RPPTOUOFF | L21: =C24/SUM($C$20:$C$25) -> 0.5418201731 | M21: 5889417.684
B22: RPPTOU | K22: RPPTOUON | L22: 0.170903434 | M22: 1857667.463
B23: RPPTOUMID | C23: 1792398.954 | D23: 202421.0467 | E23: 0.112933031 | K23: RPPULOMID | L23: 0 | M23: 0
B24: RPPTOUOFF | C24: 5807297.508 | D24: 476198.3457 | E24: 0.0819999914 | K24: RPPULOOFF | L24: 0 | M24: 0
B25: RPPTOUON | C25: 1831764.736 | D25: 311022.0414 | E25: 0.1697936614 | K25: RPPULOON | L25: 0 | M25: 0
B26: RETAIL | K26: RPPULOOVN | L26: 0 | M26: 0
B27: NSLS | C27: 3582291.487 | D27: 138274.9631 | E27: 0.03859958454 | L27: =SUM(L18:L26) -> 1 | M27: =SUM(M18:M26) -> 10869690.67
B28: INTERVAL
B29: HOEP | C29: 9032812.549 | D29: 345995.7777 | E29: 0.03830432391
B30: Grand Total | C30: 23333231.19 | D30: 1605296.391
K31: Global Adjustment | L31: per kWh
C32: =C30/C11-1 -> -0.01034265803 | K32: Class B - GA actual8 | L32: =B69/100 -> 0.05940000057 | N32: GA Posted Price
K33: Class B - GA actual IESO billed | L33: =+M33/M8 -> 0.05941701892 | M33: =B76 -> 1039095.69 | N33: GA Billed by IESO CT 148
A37: RPP COP Volume and Price Data
B38: bill_year | C38: 2022
B39: bill_month | C39: 3
B41: Row Labels | C41: usagebilled | D41: amountbilled | E41: Rate
B42: RPPTIERED | C42: 1281983.903 | D42: 50113.09295 | E42: =D42/C42 -> 0.03909026691
B43: RPPTOU | C43: 9090971.25 | D43: 359019.8049 | E43: 0.03949190851
B44: Grand Total | C44: 10372955.15 | D44: 409132.8979
C46: =SUM(C20:C25)-C44 -> 345171.996
C47: =C46/C44 -> 0.0332761485
A60: Year | B60: 2022
A62: Class A | B62: Value
A63: kWh
A64: 202203 | B64: 6088898.04
A67: ga_actual | B67: year
A68: month | B68: 2022
A69: 202203 | B69: 5.940000057
A72: chargetype | B72: 148
A74: Sum of chargeamount | B74: year
A75: month | B75: 2022
A76: 202203 | B76: 1039095.69

Sheet I7 Input Rev 03 Init
A1: Reverse IESO Posted
A5: =Admin!B14 -> 202203
A6: RPP Revenue Prices | B6: kWh Volumes | C6: $ RPP Settlement
A7: RPPTiered_1 | B7: 1101847.86 | C7: 1234.46
A8: RPPTiered_2 | B8: 483735.77 | C8: -4681.82
A9: RPPTOU_MID | B9: 1691294.14 | C9: -12878.08
A10: RPPTOU_OFF | B10: 6018730.1 | C10: -29365.52
A11: RPPTOU_ON | B11: 1745394.05 | C11: -76069.04
A12: Grand Total | B12: 11041001.92 | C12: -121760

Sheet I8 Input 04 Trueup Sett
A1: Date: | B1: =Admin!B8+3 -> 202204 | C1: Trueup | K1: ="Data for 1st True up of RPP Settlement based on Actual IESO Invoice" -> Data for 1st True up of RPP Settlement based on Actual IESO Invoice | P1: For Reconciliation
A3: Wholesale Electricty | B3: Year | C3: 2022 | E3: Rate | P3: Actual RPP Revenue and GA
B4: dateref | C4: 202204 | K4: Wholesale Volume data per IESO Power Bill: | L4: GA RPP/non-RPP Ratios | M4: GA Volumes | N4: Energy Volumes | P4: =B1 -> 202204
K5: AQEW | M5: =C10 -> 19726222.85 | N5: =+M5 -> 19726222.85 | P5: RPP Revenue Prices | Q5: RPP Rate | R5: Estimated RPP Energy Price | S5: GA actual IESO billed | T5: Total Commodity | U5: Difference | V5: kWh Volumes | W5: $ Estimated RPP Revenue | X5: $ Estimated RPP Energy | Y5: $ Estimated GA | Z5: $ Estimated RPP Settlement
B6: Wholesale | K6: Embedded Generation | M6: =SUM(C8:C9) -> 651319.27 | N6: =+M6 -> 651319.27 | P6: RPPT1 | Q6: =E20 -> 0.09800008548 | R6: =E42 -> 0.030567234 | S6: =L32 -> 0.08289999962 | T6: =R6+S6 -> 0.1134672336 | U6: =+Q6-T6 -> -0.01546714814 | V6: =M18 -> 850333.0647 | W6: =Q6*V6 -> 83332.71303 | X6: =R6*V6 -> 25992.32977 | Y6: =+V6*S6 -> 70492.61074 | Z6: =W6-X6-Y6 -> -13152.22748
A7: FIT/mFIT | B7: Source | C7: kWh | D7: Total Cost | K7: Class A customer Volumes for GA (TLF included) | M7: =-B64 -> -5638007.14 | P7: RPPT2 | Q7: =E21 -> 0.1149992722 | R7: =R6 -> 0.030567234 | S7: =S6 -> 0.08289999962 | T7: =R7+S7 -> 0.1134672336 | U7: =+Q7-T7 -> 0.001532038582 | V7: =M19 -> 211507.7476 | W7: =Q7*V7 -> 24323.23704 | X7: =R7*V7 -> 6465.206814 | Y7: =+V7*S7 -> 17533.9922 | Z7: =W7-X7-Y7 -> 324.0380297
B8: FIT | C8: 615347.95 | D8: 19301.01 | E8: =D8/C8 -> 0.03136601008 | M8: =+M5+M6+M7 -> 14739534.98 | N8: =+N5+N6+N7 -> 20377542.12 | P8: RPPTOUMID | Q8: =E23 -> 0.1129974999 | R8: =E43 -> 0.02957951196 | S8: =S7 -> 0.08289999962 | T8: 0.1124795116 | U8: 0.0005179883551 | V8: 1460541.738 | W8: 165037.5649 | X8: 43202.11179 | Y8: 121078.9095 | Z8: 756.5436123
B9: microFIT | C9: 35971.32 | D9: 1129.01 | E9: =D9/C9 -> 0.03138639338 | P9: RPPTOUOFF | Q9: =E24 -> 0.08200011237 | R9: =R8 -> 0.02957951196 | S9: 0.08289999962 | T9: 0.1124795116 | U9: -0.0304793992 | V9: 4982070.801 | W9: 408530.3655 | X9: 147367.2228 | Y9: 413013.6675 | Z9: -151850.5248
B10: WHOLESALE | C10: 19726222.85 | D10: 574730.45 | E10: =D10/C10 -> 0.02913535218 | K10: Estimated Retail Volume Revenue Data (TLF Included) | L10: RPP/non-RPP Ratios | M10: GA Volumes | N10: Energy Volumes | P10: RPPTOUON | Q10: 0.1699927016 | R10: =R9 -> 0.02957951196 | S10: 0.08289999962 | T10: 0.1124795116 | U10: 0.05751319002 | V10: 1496603.281 | W10: 254411.6349 | X10: 44268.79463 | Y10: 124068.4114 | Z10: 86074.42886
A11: Total Wholesale Electricity | B11: Grand Total | C11: 20377542.12 | D11: 595160.47 | K11: Estimated Retail Revenue Data (Net of Retail Billed/Unbilled) | M11: =+M15 -> 14739534.98 | N11: =+N15 -> 20377542.12 | P11: RPPULOMID | Q11: 0 | R11: 0 | S11: 0 | T11: 0 | U11: 0 | V11: 0 | W11: 0 | X11: 0 | Y11: 0 | Z11: 0
P12: RPPULOOFF | Q12: 0 | R12: 0 | S12: 0 | T12: 0 | U12: 0 | V12: 0 | W12: 0 | X12: 0 | Y12: 0 | Z12: 0
K13: Estimated RPP Sales Quantities | L13: =SUM(C20:C25)/(C30-B64) -> 0.6106743967 | M13: =M8*L13 -> 9001056.631 | N13: =M13 -> 9001056.631 | P13: RPPULOON | Q13: 0 | R13: 0 | S13: 0 | T13: 0 | U13: 0 | V13: 0 | W13: 0 | X13: 0 | Y13: 0 | Z13: 0
A14: RPP Revenue Volume and Price Data | K14: Estimated non-RPP Sales Quantities | L14: =1-L13 -> 0.3893256033 | M14: =M8*L14 -> 5738478.349 | N14: =N8-N13 -> 11376485.49 | P14: RPPULOOVN | Q14: 0 | R14: 0 | S14: 0 | T14: 0 | U14: 0 | V14: 0 | W14: 0 | X14: 0 | Y14: 0 | Z14: 0
B15: bill_year | C15: 2022 | K15: Estimated Retail Revenue kWh Volumes | L15: =+L13+L14 -> 1 | M15: =+M13+M14 -> 14739534.98 | N15: =+N13+N14 -> 20377542.12 | V15: =SUM(V6:V14) -> 9001056.631 | W15: =SUM(W6:W14) -> 935635.5154 | X15: =SUM(X6:X14) -> 267295.6658 | Y15: =SUM(Y6:Y14) -> 746187.5913 | Z15: =SUM(Z6:Z14) -> -77847.74177
B16: bill_month | C16: 4 | Z16: =W15-X15-Y15-Z15 -> -1.600710675e-10
K17: Estimated RPP Revenue Volume and Price Data | L17: Actual % | M17: kWh Volumes
B18: Row Labels | C18: usagebilled | D18: amountbilled | E18: Rate | K18: RPPT1 | L18: =C20/SUM($C$20:$C$25) -> 0.09447036048 | M18: =$M$13*L18 -> 850333.0647
B19: RPPTIER | K19: RPPT2 | L19: =C21/SUM($C$20:$C$25) -> 0.02349810209 | M19: =$M$13*L19 -> 211507.7476
B20: RPPT1 | C20: 839013.9302 | D20: 82223.43688 | E20: =D20/C20 -> 0.09800008548 | K20: RPPTOUMID | L20: =C23/SUM($C$20:$C$25) -> 0.162263365 | M20: 1460541.738
B21: RPPT2 | C21: 208692.2807 | D21: 23999.46039 | E21: =D21/C21 -> 0.1149992722 | K21: RPPTOUOFF | L21: =C24/SUM($C$20:$C$25) -> 0.5534984397 | M21: 4982070.801
B22: RPPTOU | K22: RPPTOUON | L22: 0.1662697328 | M22: 1496603.281
B23: RPPTOUMID | C23: 1441099.864 | D23: 162840.6817 | E23: 0.1129974999 | K23: RPPULOMID | L23: 0 | M23: 0
B24: RPPTOUOFF | C24: 4915752.399 | D24: 403092.2491 | E24: 0.08200011237 | K24: RPPULOOFF | L24: 0 | M24: 0
B25: RPPTOUON | C25: 1476681.376 | D25: 251025.0566 | E25: 0.1699927016 | K25: RPPULOON | L25: 0 | M25: 0
B26: RETAIL | K26: RPPULOOVN | L26: 0 | M26: 0
B27: NSLS | C27: 3098022.353 | D27: 93977.12196 | E27: 0.03033455258 | L27: =SUM(L18:L26) -> 1 | M27: =SUM(M18:M26) -> 9001056.631
B28: INTERVAL
B29: HOEP | C29: 8202075.881 | D29: 236127.2376 | E29: 0.02878871654
B30: Grand Total | C30: 20181338.08 | D30: 1253285.244
K31: Global Adjustment | L31: per kWh
C32: =C30/C11-1 -> -0.009628444615 | K32: Class B - GA actual8 | L32: =B69/100 -> 0.08289999962 | N32: GA Posted Price
K33: Class B - GA actual IESO billed | L33: =+M33/M8 -> 0.08314394054 | M33: =B76 -> 1225503.02 | N33: GA Billed by IESO CT 148
A37: RPP COP Volume and Price Data
B38: bill_year | C38: 2022
B39: bill_month | C39: 4
B41: Row Labels | C41: usagebilled | D41: amountbilled | E41: Rate
B42: RPPTIERED | C42: 1051622.206 | D42: 32145.18206 | E42: =D42/C42 -> 0.030567234
B43: RPPTOU | C43: 7834591.305 | D43: 231743.3872 | E43: 0.02957951196
B44: Grand Total | C44: 8886213.512 | D44: 263888.5692
C46: =SUM(C20:C25)-C44 -> -4973.661416
C47: =C46/C44 -> -0.0005597053694
A60: Year | B60: 2022
A62: Class A | B62: Value
A63: kWh
A64: 202204 | B64: 5638007.14
A67: ga_actual | B67: year
A68: month | B68: 2022
A69: 202204 | B69: 8.289999962
A72: chargetype | B72: 148
A74: Sum of chargeamount | B74: year
A75: month | B75: 2022
A76: 202204 | B76: 1225503.02

Sheet I9 Input Rev 04 Init
A1: Reverse IESO Posted
A5: =Admin!B17 -> 202204
A6: RPP Revenue Prices | B6: kWh Volumes | C6: $ RPP Settlement
A7: RPPTiered_1 | B7: 967362.49 | C7: 407.36
A8: RPPTiered_2 | B8: 318453.62 | C8: -5257.76
A9: RPPTOU_MID | B9: 1804099.98 | C9: -25981.45
A10: RPPTOU_OFF | B10: 5819420.16 | C10: 96738.83
A11: RPPTOU_ON | B11: 1855147.35 | C11: -132445.93
A12: Grand Total | B12: 10764483.6 | C12: -66538.95

Sheet I10 Input 05 Trueup Sett
A1: Date: | B1: =Admin!B8+4 -> 202205 | C1: Trueup | K1: ="Data for 1st True up of RPP Settlement based on Actual IESO Invoice" -> Data for 1st True up of RPP Settlement based on Actual IESO Invoice | P1: For Reconciliation
A3: Wholesale Electricty | B3: Year | C3: 2022 | E3: Rate | P3: Actual RPP Revenue and GA
B4: dateref | C4: 202205 | K4: Wholesale Volume data per IESO Power Bill: | L4: GA RPP/non-RPP Ratios | M4: GA Volumes | N4: Energy Volumes | P4: =B1 -> 202205
K5: AQEW | M5: =C10 -> 19301261.85 | N5: =+M5 -> 19301261.85 | P5: RPP Revenue Prices | Q5: RPP Rate | R5: Estimated RPP Energy Price | S5: GA actual IESO billed | T5: Total Commodity | U5: Difference | V5: kWh Volumes | W5: $ Estimated RPP Revenue | X5: $ Estimated RPP Energy | Y5: $ Estimated GA | Z5: $ Estimated RPP Settlement
B6: Wholesale | K6: Embedded Generation | M6: =SUM(C8:C9) -> 812468.05 | N6: =+M6 -> 812468.05 | P6: RPPT1 | Q6: =E20 -> 0.09799985113 | R6: =E42 -> 0.03218533115 | S6: =L32 -> 0.08479999542 | T6: =R6+S6 -> 0.1169853266 | U6: =+Q6-T6 -> -0.01898547544 | V6: =M18 -> 667152.919 | W6: =Q6*V6 -> 65380.88674 | X6: =R6*V6 -> 21472.53763 | Y6: =+V6*S6 -> 56574.56448 | Z6: =W6-X6-Y6 -> -12666.21536
A7: FIT/mFIT | B7: Source | C7: kWh | D7: Total Cost | K7: Class A customer Volumes for GA (TLF included) | M7: =-B64 -> -5893248.45 | P7: RPPT2 | Q7: =E21 -> 0.1150001163 | R7: =R6 -> 0.03218533115 | S7: =S6 -> 0.08479999542 | T7: =R7+S7 -> 0.1169853266 | U7: =+Q7-T7 -> -0.001985210233 | V7: =M19 -> 162717.8767 | W7: =Q7*V7 -> 18712.57475 | X7: =R7*V7 -> 5237.128745 | Y7: =+V7*S7 -> 13798.4752 | Z7: =W7-X7-Y7 -> -323.0291939
B8: FIT | C8: 767033.3 | D8: 27251.61 | E8: =D8/C8 -> 0.03552858787 | M8: =+M5+M6+M7 -> 14220481.45 | N8: =+N5+N6+N7 -> 20113729.9 | P8: RPPTOUMID | Q8: =E23 -> 0.1129999977 | R8: =E43 -> 0.0324923052 | S8: =S7 -> 0.08479999542 | T8: 0.1172923006 | U8: -0.004292302879 | V8: 1400615.452 | W8: 158269.543 | X8: 45509.22474 | Y8: 118772.1839 | Z8: -6011.865738
B9: microFIT | C9: 45434.75 | D9: 1626.91 | E9: =D9/C9 -> 0.03580761422 | P9: RPPTOUOFF | Q9: =E24 -> 0.08200006607 | R9: =R8 -> 0.0324923052 | S9: 0.08479999542 | T9: 0.1172923006 | U9: -0.03529223455 | V9: 4604250.082 | W9: 377548.8109 | X9: 149602.6989 | Y9: 390440.3859 | Z9: -162494.2738
B10: WHOLESALE | C10: 19301261.85 | D10: 637919.72 | E10: =D10/C10 -> 0.03305067435 | K10: Estimated Retail Volume Revenue Data (TLF Included) | L10: RPP/non-RPP Ratios | M10: GA Volumes | N10: Energy Volumes | P10: RPPTOUON | Q10: 0.1700009091 | R10: =R9 -> 0.0324923052 | S10: 0.08479999542 | T10: 0.1172923006 | U10: 0.05270860845 | V10: 1414393.141 | W10: 240448.1197 | X10: 45956.8936 | Y10: 119940.5319 | Z10: 74550.69426
A11: Total Wholesale Electricity | B11: Grand Total | C11: 20113729.9 | D11: 666798.24 | K11: Estimated Retail Revenue Data (Net of Retail Billed/Unbilled) | M11: =+M15 -> 14220481.45 | N11: =+N15 -> 20113729.9 | P11: RPPULOMID | Q11: 0 | R11: 0 | S11: 0 | T11: 0 | U11: 0 | V11: 0 | W11: 0 | X11: 0 | Y11: 0 | Z11: 0
P12: RPPULOOFF | Q12: 0 | R12: 0 | S12: 0 | T12: 0 | U12: 0 | V12: 0 | W12: 0 | X12: 0 | Y12: 0 | Z12: 0
K13: Estimated RPP Sales Quantities | L13: =SUM(C20:C25)/(C30-B64) -> 0.5800879176 | M13: =M8*L13 -> 8249129.471 | N13: =M13 -> 8249129.471 | P13: RPPULOON | Q13: 0 | R13: 0 | S13: 0 | T13: 0 | U13: 0 | V13: 0 | W13: 0 | X13: 0 | Y13: 0 | Z13: 0
A14: RPP Revenue Volume and Price Data | K14: Estimated non-RPP Sales Quantities | L14: =1-L13 -> 0.4199120824 | M14: =M8*L14 -> 5971351.979 | N14: =N8-N13 -> 11864600.43 | P14: RPPULOOVN | Q14: 0 | R14: 0 | S14: 0 | T14: 0 | U14: 0 | V14: 0 | W14: 0 | X14: 0 | Y14: 0 | Z14: 0
B15: bill_year | C15: 2022 | K15: Estimated Retail Revenue kWh Volumes | L15: =+L13+L14 -> 1 | M15: =+M13+M14 -> 14220481.45 | N15: =+N13+N14 -> 20113729.9 | V15: =SUM(V6:V14) -> 8249129.471 | W15: =SUM(W6:W14) -> 860359.9351 | X15: =SUM(X6:X14) -> 267778.4836 | Y15: =SUM(Y6:Y14) -> 699526.1414 | Z15: =SUM(Z6:Z14) -> -106944.6899
B16: bill_month | C16: 5 | Z16: =W15-X15-Y15-Z15 -> 0
K17: Estimated RPP Revenue Volume and Price Data | L17: Actual % | M17: kWh Volumes
B18: Row Labels | C18: usagebilled | D18: amountbilled | E18: Rate | K18: RPPT1 | L18: =C20/SUM($C$20:$C$25) -> 0.08087555437 | M18: =$M$13*L18 -> 667152.919
B19: RPPTIER | K19: RPPT2 | L19: =C21/SUM($C$20:$C$25) -> 0.0197254604 | M19: =$M$13*L19 -> 162717.8767
B20: RPPT1 | C20: 656497.1561 | D20: 64336.62357 | E20: =D20/C20 -> 0.09799985113 | K20: RPPTOUMID | L20: =C23/SUM($C$20:$C$25) -> 0.1697894859 | M20: 1400615.452
B21: RPPT2 | C21: 160118.9476 | D21: 18413.6976 | E21: =D21/C21 -> 0.1150001163 | K21: RPPTOUOFF | L21: =C24/SUM($C$20:$C$25) -> 0.5581498143 | M21: 4604250.082
B22: RPPTOU | K22: RPPTOUON | L22: 0.171459685 | M22: 1414393.141
B23: RPPTOUMID | C23: 1378244.83 | D23: 155741.6627 | E23: 0.1129999977 | K23: RPPULOMID | L23: 0 | M23: 0
B24: RPPTOUOFF | C24: 4530711.024 | D24: 371518.6033 | E24: 0.08200006607 | K24: RPPULOOFF | L24: 0 | M24: 0
B25: RPPTOUON | C25: 1391802.461 | D25: 236607.6836 | E25: 0.1700009091 | K25: RPPULOON | L25: 0 | M25: 0
B26: RETAIL | K26: RPPULOOVN | L26: 0 | M26: 0
B27: NSLS | C27: 3381404.57 | D27: 111369.6732 | E27: 0.03293592084 | L27: =SUM(L18:L26) -> 1 | M27: =SUM(M18:M26) -> 8249129.471
B28: INTERVAL
B29: HOEP | C29: 8387821.457 | D29: 270149.8893 | E29: 0.03220739625
B30: Grand Total | C30: 19886600.45 | D30: 1228137.833
K31: Global Adjustment | L31: per kWh
C32: =C30/C11-1 -> -0.01129225933 | K32: Class B - GA actual8 | L32: =B69/100 -> 0.08479999542 | N32: GA Posted Price
K33: Class B - GA actual IESO billed | L33: =+M33/M8 -> 0.08475504112 | M33: =B76 -> 1205257.49 | N33: GA Billed by IESO CT 148
A37: RPP COP Volume and Price Data
B38: bill_year | C38: 2022
B39: bill_month | C39: 5
B41: Row Labels | C41: usagebilled | D41: amountbilled | E41: Rate
B42: RPPTIERED | C42: 818674.6821 | D42: 26349.31575 | E42: =D42/C42 -> 0.03218533115
B43: RPPTOU | C43: 7301506.619 | D43: 237242.7815 | E43: 0.0324923052
B44: Grand Total | C44: 8120181.301 | D44: 263592.0972
C46: =SUM(C20:C25)-C44 -> -2806.882354
C47: =C46/C44 -> -0.0003456674488
A60: Year | B60: 2022
A62: Class A | B62: Value
A63: kWh
A64: 202205 | B64: 5893248.45
A67: ga_actual | B67: year
A68: month | B68: 2022
A69: 202205 | B69: 8.479999542
A72: chargetype | B72: 148
A74: Sum of chargeamount | B74: year
A75: month | B75: 2022
A76: 202205 | B76: 1205257.49

Sheet I11 Input Rev 05 Init
A1: Reverse IESO Posted
A5: =Admin!B20 -> 202205
A6: RPP Revenue Prices | B6: kWh Volumes | C6: $ RPP Settlement
A7: RPPTiered_1 | B7: 900329.36 | C7: 11741.03
A8: RPPTiered_2 | B8: 217350.37 | C8: -863.22
A9: RPPTOU_MID | B9: 1468863.86 | C9: -4049.79
A10: RPPTOU_OFF | B10: 413034.99 | C10: 142229.99
A11: RPPTOU_ON | B11: 1487951.27 | C11: -88888.27
A12: Grand Total | B12: 4487529.85 | C12: 60169.74

Sheet I12 Input 06 Trueup Sett
A1: Date: | B1: =Admin!B8+5 -> 202206 | C1: Trueup | K1: ="Data for 1st True up of RPP Settlement based on Actual IESO Invoice" -> Data for 1st True up of RPP Settlement based on Actual IESO Invoice | P1: For Reconciliation
A3: Wholesale Electricty | B3: Year | C3: 2022 | E3: Rate | P3: Actual RPP Revenue and GA
B4: dateref | C4: 202206 | K4: Wholesale Volume data per IESO Power Bill: | L4: GA RPP/non-RPP Ratios | M4: GA Volumes | N4: Energy Volumes | P4: =B1 -> 202206
K5: AQEW | M5: =C10 -> 19514417.53 | N5: =+M5 -> 19514417.53 | P5: RPP Revenue Prices | Q5: RPP Rate | R5: Estimated RPP Energy Price | S5: GA actual IESO billed | T5: Total Commodity | U5: Difference | V5: kWh Volumes | W5: $ Estimated RPP Revenue | X5: $ Estimated RPP Energy | Y5: $ Estimated GA | Z5: $ Estimated RPP Settlement
B6: Wholesale | K6: Embedded Generation | M6: =SUM(C8:C9) -> 826201.83 | N6: =+M6 -> 826201.83 | P6: RPPT1 | Q6: =E20 -> 0.09800001889 | R6: =E42 -> 0.03959687534 | S6: =L32 -> 0.07869999886 | T6: =R6+S6 -> 0.1182968742 | U6: =+Q6-T6 -> -0.02029685531 | V6: =M18 -> 641770.1795 | W6: =Q6*V6 -> 62893.48971 | X6: =R6*V6 -> 25412.09379 | Y6: =+V6*S6 -> 50507.31239 | Z6: =W6-X6-Y6 -> -13025.91648
A7: FIT/mFIT | B7: Source | C7: kWh | D7: Total Cost | K7: Class A customer Volumes for GA (TLF included) | M7: =-B64 -> -5505541.05 | P7: RPPT2 | Q7: =E21 -> 0.11499881 | R7: =R6 -> 0.03959687534 | S7: =S6 -> 0.07869999886 | T7: =R7+S7 -> 0.1182968742 | U7: =+Q7-T7 -> -0.003298064195 | V7: =M19 -> 161846.7699 | W7: =Q7*V7 -> 18612.18594 | X7: =R7*V7 -> 6408.626372 | Y7: =+V7*S7 -> 12737.34061 | Z7: =W7-X7-Y7 -> -533.7810369
B8: FIT | C8: 781211.08 | D8: 32961.54 | E8: =D8/C8 -> 0.04219287315 | M8: =+M5+M6+M7 -> 14835078.31 | N8: =+N5+N6+N7 -> 20340619.36 | P8: RPPTOUMID | Q8: =E23 -> 0.1130001221 | R8: =E43 -> 0.04048666995 | S8: =S7 -> 0.07869999886 | T8: 0.1191866688 | U8: -0.006186546707 | V8: 1470478.185 | W8: 166164.2144 | X8: 59534.76492 | Y8: 115726.6314 | Z8: -9097.18197
B9: microFIT | C9: 44990.75 | D9: 1913.58 | E9: =D9/C9 -> 0.04253274284 | P9: RPPTOUOFF | Q9: =E24 -> 0.08199994779 | R9: =R8 -> 0.04048666995 | S9: 0.07869999886 | T9: 0.1191866688 | U9: -0.03718672101 | V9: 4746496.254 | W9: 389212.445 | X9: 192169.8273 | Y9: 373549.2498 | Z9: -176506.632
B10: WHOLESALE | C10: 19514417.53 | D10: 748397.89 | E10: =D10/C10 -> 0.03835102374 | K10: Estimated Retail Volume Revenue Data (TLF Included) | L10: RPP/non-RPP Ratios | M10: GA Volumes | N10: Energy Volumes | P10: RPPTOUON | Q10: 0.1700005716 | R10: =R9 -> 0.04048666995 | S10: 0.07869999886 | T10: 0.1191866688 | U10: 0.05081390283 | V10: 1562922.717 | W10: 265697.7553 | X10: 63277.53619 | Y10: 123002.016 | Z10: 79418.20307
A11: Total Wholesale Electricity | B11: Grand Total | C11: 20340619.36 | D11: 783273.01 | K11: Estimated Retail Revenue Data (Net of Retail Billed/Unbilled) | M11: =+M15 -> 14835078.31 | N11: =+N15 -> 20340619.36 | P11: RPPULOMID | Q11: 0 | R11: 0 | S11: 0 | T11: 0 | U11: 0 | V11: 0 | W11: 0 | X11: 0 | Y11: 0 | Z11: 0
P12: RPPULOOFF | Q12: 0 | R12: 0 | S12: 0 | T12: 0 | U12: 0 | V12: 0 | W12: 0 | X12: 0 | Y12: 0 | Z12: 0
K13: Estimated RPP Sales Quantities | L13: =SUM(C20:C25)/(C30-B64) -> 0.5785958069 | M13: =M8*L13 -> 8583514.105 | N13: =M13 -> 8583514.105 | P13: RPPULOON | Q13: 0 | R13: 0 | S13: 0 | T13: 0 | U13: 0 | V13: 0 | W13: 0 | X13: 0 | Y13: 0 | Z13: 0
A14: RPP Revenue Volume and Price Data | K14: Estimated non-RPP Sales Quantities | L14: =1-L13 -> 0.4214041931 | M14: =M8*L14 -> 6251564.205 | N14: =N8-N13 -> 11757105.25 | P14: RPPULOOVN | Q14: 0 | R14: 0 | S14: 0 | T14: 0 | U14: 0 | V14: 0 | W14: 0 | X14: 0 | Y14: 0 | Z14: 0
B15: bill_year | C15: 2022 | K15: Estimated Retail Revenue kWh Volumes | L15: =+L13+L14 -> 1 | M15: =+M13+M14 -> 14835078.31 | N15: =+N13+N14 -> 20340619.36 | V15: =SUM(V6:V14) -> 8583514.105 | W15: =SUM(W6:W14) -> 902580.0904 | X15: =SUM(X6:X14) -> 346802.8485 | Y15: =SUM(Y6:Y14) -> 675522.5503 | Z15: =SUM(Z6:Z14) -> -119745.3084
B16: bill_month | C16: 6 | Z16: =W15-X15-Y15-Z15 -> 0
K17: Estimated RPP Revenue Volume and Price Data | L17: Actual % | M17: kWh Volumes
B18: Row Labels | C18: usagebilled | D18: amountbilled | E18: Rate | K18: RPPT1 | L18: =C20/SUM($C$20:$C$25) -> 0.07476776663 | M18: =$M$13*L18 -> 641770.1795
B19: RPPTIER | K19: RPPT2 | L19: =C21/SUM($C$20:$C$25) -> 0.01885553724 | M19: =$M$13*L19 -> 161846.7699
B20: RPPT1 | C20: 630479.8264 | D20: 61787.0349 | E20: =D20/C20 -> 0.09800001889 | K20: RPPTOUMID | L20: =C23/SUM($C$20:$C$25) -> 0.1713142387 | M20: 1470478.185
B21: RPPT2 | C21: 158999.4778 | D21: 18284.75073 | E21: =D21/C21 -> 0.11499881 | K21: RPPTOUOFF | L21: =C24/SUM($C$20:$C$25) -> 0.5529782087 | M21: 4746496.254
B22: RPPTOU | K22: RPPTOUON | L22: 0.1820842487 | M22: 1562922.717
B23: RPPTOUMID | C23: 1444608.771 | D23: 163240.9675 | E23: 0.1130001221 | K23: RPPULOMID | L23: 0 | M23: 0
B24: RPPTOUOFF | C24: 4662993.436 | D24: 382365.2183 | E24: 0.08199994779 | K24: RPPULOOFF | L24: 0 | M24: 0
B25: RPPTOUON | C25: 1535426.972 | D25: 261023.4629 | E25: 0.1700005716 | K25: RPPULOON | L25: 0 | M25: 0
B26: RETAIL | K26: RPPULOOVN | L26: 0 | M26: 0
B27: NSLS | C27: 3430979.669 | D27: 132092.8043 | E27: 0.03850002537 | L27: =SUM(L18:L26) -> 1 | M27: =SUM(M18:M26) -> 8583514.105
B28: INTERVAL
B29: HOEP | C29: 8216144.834 | D29: 304063.2133 | E29: 0.03700801525
B30: Grand Total | C30: 20079632.99 | D30: 1322857.452
K31: Global Adjustment | L31: per kWh
C32: =C30/C11-1 -> -0.01283079779 | K32: Class B - GA actual8 | L32: =B69/100 -> 0.07869999886 | N32: GA Posted Price
K33: Class B - GA actual IESO billed | L33: =+M33/M8 -> 0.07868091261 | M33: =B76 -> 1167237.5 | N33: GA Billed by IESO CT 148
A37: RPP COP Volume and Price Data
B38: bill_year | C38: 2022
B39: bill_month | C39: 6
B41: Row Labels | C41: usagebilled | D41: amountbilled | E41: Rate
B42: RPPTIERED | C42: 798338.9006 | D42: 31611.72593 | E42: =D42/C42 -> 0.03959687534
B43: RPPTOU | C43: 7642150.561 | D43: 309405.2275 | E43: 0.04048666995
B44: Grand Total | C44: 8440489.462 | D44: 341016.9534
C46: =SUM(C20:C25)-C44 -> -7980.978212
C47: =C46/C44 -> -0.0009455586963
A60: Year | B60: 2022
A62: Class A | B62: Value
A63: kWh
A64: 202206 | B64: 5505541.05
A67: ga_actual | B67: year
A68: month | B68: 2022
A69: 202206 | B69: 7.869999886
A72: chargetype | B72: 148
A74: Sum of chargeamount | B74: year
A75: month | B75: 2022
A76: 202206 | B76: 1167237.5

Sheet I13 Input Rev 06 Init
A1: Reverse IESO Posted
A5: =Admin!B23 -> 202206
A6: RPP Revenue Prices | B6: kWh Volumes | C6: $ RPP Settlement
A7: RPPTiered_1 | B7: 655199.2 | C7: 11440.93
A8: RPPTiered_2 | B8: 151750.41 | C8: 69.73
A9: RPPTOU_MID | B9: 1333388.04 | C9: 2687.58
A10: RPPTOU_OFF | B10: 4405257.96 | C10: 145425.95
A11: RPPTOU_ON | B11: 1335638.86 | C11: -73442.26
A12: Grand Total | B12: 7881234.47 | C12: 86181.93

Sheet I14 Input 07 Trueup Sett
A1: Date: | B1: =Admin!B8+6 -> 202207 | C1: Trueup | K1: ="Data for 1st True up of RPP Settlement based on Actual IESO Invoice" -> Data for 1st True up of RPP Settlement based on Actual IESO Invoice | P1: For Reconciliation
A3: Wholesale Electricty | B3: Year | C3: 2022 | E3: Rate | P3: Actual RPP Revenue and GA
B4: dateref | C4: 202207 | K4: Wholesale Volume data per IESO Power Bill: | L4: GA RPP/non-RPP Ratios | M4: GA Volumes | N4: Energy Volumes | P4: =B1 -> 202207
K5: AQEW | M5: =C10 -> 21059284.24 | N5: =+M5 -> 21059284.24 | P5: RPP Revenue Prices | Q5: RPP Rate | R5: Estimated RPP Energy Price | S5: GA actual IESO billed | T5: Total Commodity | U5: Difference | V5: kWh Volumes | W5: $ Estimated RPP Revenue | X5: $ Estimated RPP Energy | Y5: $ Estimated GA | Z5: $ Estimated RPP Settlement
B6: Wholesale | K6: Embedded Generation | M6: =SUM(C8:C9) -> 830645.87 | N6: =+M6 -> 830645.87 | P6: RPPT1 | Q6: =E20 -> 0.09800001691 | R6: =E42 -> 0.06372933031 | S6: =L32 -> 0.04010000229 | T6: =R6+S6 -> 0.1038293326 | U6: =+Q6-T6 -> -0.005829315681 | V6: =M18 -> 750963.4178 | W6: =Q6*V6 -> 73594.42764 | X6: =R6*V6 -> 47858.3957 | Y6: =+V6*S6 -> 30113.63477 | Z6: =W6-X6-Y6 -> -4377.602827
A7: FIT/mFIT | B7: Source | C7: kWh | D7: Total Cost | K7: Class A customer Volumes for GA (TLF included) | M7: =-B64 -> -4887870.38 | P7: RPPT2 | Q7: =E21 -> 0.1149994517 | R7: =R6 -> 0.06372933031 | S7: =S6 -> 0.04010000229 | T7: =R7+S7 -> 0.1038293326 | U7: =+Q7-T7 -> 0.01117011914 | V7: =M19 -> 213716.9091 | W7: =Q7*V7 -> 24577.32737 | X7: =R7*V7 -> 13620.03549 | Y7: =+V7*S7 -> 8570.048544 | Z7: =W7-X7-Y7 -> 2387.243337
B8: FIT | C8: 784566.32 | D8: 51733.79 | E8: =D8/C8 -> 0.06593934596 | M8: =+M5+M6+M7 -> 17002059.73 | N8: =+N5+N6+N7 -> 21889930.11 | P8: RPPTOUMID | Q8: =E23 -> 0.1130003044 | R8: =E43 -> 0.06466608726 | S8: =S7 -> 0.04010000229 | T8: 0.1047660895 | U8: 0.008234214895 | V8: 1706630.888 | W8: 192849.8099 | X8: 110361.1419 | Y8: 68435.90251 | Z8: 14052.76548
B9: microFIT | C9: 46079.55 | D9: 3054.32 | E9: =D9/C9 -> 0.06628363341 | P9: RPPTOUOFF | Q9: =E24 -> 0.08200000829 | R9: =R8 -> 0.06466608726 | S9: 0.04010000229 | T9: 0.1047660895 | U9: -0.02276608126 | V9: 5795212.048 | W9: 475207.4359 | X9: 374753.688 | Y9: 232388.0164 | Z9: -131934.2684
B10: WHOLESALE | C10: 21059284.24 | D10: 1286544.3 | E10: =D10/C10 -> 0.06109154923 | K10: Estimated Retail Volume Revenue Data (TLF Included) | L10: RPP/non-RPP Ratios | M10: GA Volumes | N10: Energy Volumes | P10: RPPTOUON | Q10: 0.1700002509 | R10: =R9 -> 0.06466608726 | S10: 0.04010000229 | T10: 0.1047660895 | U10: 0.06523416131 | V10: 1904813.113 | W10: 323818.7071 | X10: 123176.811 | Y10: 76383.01019 | Z10: 124258.8859
A11: Total Wholesale Electricity | B11: Grand Total | C11: 21889930.11 | D11: 1341332.41 | K11: Estimated Retail Revenue Data (Net of Retail Billed/Unbilled) | M11: =+M15 -> 17002059.73 | N11: =+N15 -> 21889930.11 | P11: RPPULOMID | Q11: 0 | R11: 0 | S11: 0 | T11: 0 | U11: 0 | V11: 0 | W11: 0 | X11: 0 | Y11: 0 | Z11: 0
P12: RPPULOOFF | Q12: 0 | R12: 0 | S12: 0 | T12: 0 | U12: 0 | V12: 0 | W12: 0 | X12: 0 | Y12: 0 | Z12: 0
K13: Estimated RPP Sales Quantities | L13: =SUM(C20:C25)/(C30-B64) -> 0.6100047018 | M13: =M8*L13 -> 10371336.38 | N13: =M13 -> 10371336.38 | P13: RPPULOON | Q13: 0 | R13: 0 | S13: 0 | T13: 0 | U13: 0 | V13: 0 | W13: 0 | X13: 0 | Y13: 0 | Z13: 0
A14: RPP Revenue Volume and Price Data | K14: Estimated non-RPP Sales Quantities | L14: =1-L13 -> 0.3899952982 | M14: =M8*L14 -> 6630723.355 | N14: =N8-N13 -> 11518593.73 | P14: RPPULOOVN | Q14: 0 | R14: 0 | S14: 0 | T14: 0 | U14: 0 | V14: 0 | W14: 0 | X14: 0 | Y14: 0 | Z14: 0
B15: bill_year | C15: 2022 | K15: Estimated Retail Revenue kWh Volumes | L15: =+L13+L14 -> 1 | M15: =+M13+M14 -> 17002059.73 | N15: =+N13+N14 -> 21889930.11 | V15: =SUM(V6:V14) -> 10371336.38 | W15: =SUM(W6:W14) -> 1090047.708 | X15: =SUM(X6:X14) -> 669770.072 | Y15: =SUM(Y6:Y14) -> 415890.6124 | Z15: =SUM(Z6:Z14) -> 4387.023462
B16: bill_month | C16: 7 | Z16: =W15-X15-Y15-Z15 -> -2.910383046e-11
K17: Estimated RPP Revenue Volume and Price Data | L17: Actual % | M17: kWh Volumes
B18: Row Labels | C18: usagebilled | D18: amountbilled | E18: Rate | K18: RPPT1 | L18: =C20/SUM($C$20:$C$25) -> 0.07240758477 | M18: =$M$13*L18 -> 750963.4178
B19: RPPTIER | K19: RPPT2 | L19: =C21/SUM($C$20:$C$25) -> 0.02060649673 | M19: =$M$13*L19 -> 213716.9091
B20: RPPT1 | C20: 739463.9719 | D20: 72467.48176 | E20: =D20/C20 -> 0.09800001691 | K20: RPPTOUMID | L20: =C23/SUM($C$20:$C$25) -> 0.1645526503 | M20: 1706630.888
B21: RPPT2 | C21: 210444.2783 | D21: 24200.97662 | E21: =D21/C21 -> 0.1149994517 | K21: RPPTOUOFF | L21: =C24/SUM($C$20:$C$25) -> 0.558771969 | M21: 5795212.048
B22: RPPTOU | K22: RPPTOUON | L22: 0.1836612992 | M22: 1904813.113
B23: RPPTOUMID | C23: 1680497.379 | D23: 189896.7154 | E23: 0.1130003044 | K23: RPPULOMID | L23: 0 | M23: 0
B24: RPPTOUOFF | C24: 5706470.405 | D24: 467930.6205 | E24: 0.08200000829 | K24: RPPULOOFF | L24: 0 | M24: 0
B25: RPPTOUON | C25: 1875644.854 | D25: 318860.0958 | E25: 0.1700002509 | K25: RPPULOON | L25: 0 | M25: 0
B26: RETAIL | K26: RPPULOOVN | L26: 0 | M26: 0
B27: NSLS | C27: 3813605.675 | D27: 236475.9066 | E27: 0.06200848404 | L27: =SUM(L18:L26) -> 1 | M27: =SUM(M18:M26) -> 10371336.38
B28: INTERVAL
B29: HOEP | C29: 7603452.296 | D29: 454755.3977 | E29: 0.0598090683
B30: Grand Total | C30: 21629578.86 | D30: 1764587.194
K31: Global Adjustment | L31: per kWh
C32: =C30/C11-1 -> -0.01189365381 | K32: Class B - GA actual8 | L32: =B69/100 -> 0.04010000229 | N32: GA Posted Price
K33: Class B - GA actual IESO billed | L33: =+M33/M8 -> 0.04007738008 | M33: =B76 -> 681398.01 | N33: GA Billed by IESO CT 148
A37: RPP COP Volume and Price Data
B38: bill_year | C38: 2022
B39: bill_month | C39: 7
B41: Row Labels | C41: usagebilled | D41: amountbilled | E41: Rate
B42: RPPTIERED | C42: 954300.363 | D42: 60816.92305 | E42: =D42/C42 -> 0.06372933031
B43: RPPTOU | C43: 9263491.773 | D43: 599033.7673 | E43: 0.06466608726
B44: Grand Total | C44: 10217792.14 | D44: 659850.6904
C46: =SUM(C20:C25)-C44 -> -5271.247681
C47: =C46/C44 -> -0.000515889109
A60: Year | B60: 2022
A62: Class A | B62: Value
A63: kWh
A64: 202207 | B64: 4887870.38
A67: ga_actual | B67: year
A68: month | B68: 2022
A69: 202207 | B69: 4.010000229
A72: chargetype | B72: 148
A74: Sum of chargeamount | B74: year
A75: month | B75: 2022
A76: 202207 | B76: 681398.01

Sheet I15 Input Rev 07 Init
A1: Reverse IESO Posted
A5: =Admin!B26 -> 202207
A6: RPP Revenue Prices | B6: kWh Volumes | C6: $ RPP Settlement
A7: RPPTiered_1 | B7: 647505.15 | C7: 11721.09
A8: RPPTiered_2 | B8: 163140.38 | C8: 181.08
A9: RPPTOU_MID | B9: 1476150.28 | C9: 4392.96
A10: RPPTOU_OFF | B10: 4712086.82 | C10: 160070.95
A11: RPPTOU_ON | B11: 1562114.93 | C11: -84379.26
A12: Grand Total | B12: 8560997.56 | C12: 91986.82

Sheet I16 Input 08 Trueup Sett
A1: Date: | B1: =Admin!B8+7 -> 202208 | C1: Trueup | K1: ="Data for 1st True up of RPP Settlement based on Actual IESO Invoice" -> Data for 1st True up of RPP Settlement based on Actual IESO Invoice | P1: For Reconciliation
A3: Wholesale Electricty | B3: Year | C3: 2022 | E3: Rate | P3: Actual RPP Revenue and GA
B4: dateref | C4: 202208 | K4: Wholesale Volume data per IESO Power Bill: | L4: GA RPP/non-RPP Ratios | M4: GA Volumes | N4: Energy Volumes | P4: =B1 -> 202208
K5: AQEW | M5: =C10 -> 22479185.13 | N5: =+M5 -> 22479185.13 | P5: RPP Revenue Prices | Q5: RPP Rate | R5: Estimated RPP Energy Price | S5: GA actual IESO billed | T5: Total Commodity | U5: Difference | V5: kWh Volumes | W5: $ Estimated RPP Revenue | X5: $ Estimated RPP Energy | Y5: $ Estimated GA | Z5: $ Estimated RPP Settlement
B6: Wholesale | K6: Embedded Generation | M6: =SUM(C8:C9) -> 805647.89 | N6: =+M6 -> 805647.89 | P6: RPPT1 | Q6: =E20 -> 0.09800009188 | R6: =E42 -> 0.0861811309 | S6: =L32 -> 0.005 | T6: =R6+S6 -> 0.0911811309 | U6: =+Q6-T6 -> 0.006818960975 | V6: =M18 -> 784843.308 | W6: =Q6*V6 -> 76914.7163 | X6: =R6*V6 -> 67638.68387 | Y6: =+V6*S6 -> 3924.21654 | Z6: =W6-X6-Y6 -> 5351.815889
A7: FIT/mFIT | B7: Source | C7: kWh | D7: Total Cost | K7: Class A customer Volumes for GA (TLF included) | M7: =-B64 -> -5153419.01 | P7: RPPT2 | Q7: =E21 -> 0.1149998586 | R7: =R6 -> 0.0861811309 | S7: =S6 -> 0.005 | T7: =R7+S7 -> 0.0911811309 | U7: =+Q7-T7 -> 0.02381872768 | V7: =M19 -> 244856.053 | W7: =Q7*V7 -> 28158.41146 | X7: =R7*V7 -> 21101.97155 | Y7: =+V7*S7 -> 1224.280265 | Z7: =W7-X7-Y7 -> 5832.159646
B8: FIT | C8: 763388.82 | D8: 70885.97 | E8: =D8/C8 -> 0.09285696639 | M8: =+M5+M6+M7 -> 18131414.01 | N8: =+N5+N6+N7 -> 23284833.02 | P8: RPPTOUMID | Q8: =E23 -> 0.112999773 | R8: =E43 -> 0.08613182044 | S8: =S7 -> 0.005 | T8: 0.09113182044 | U8: 0.02186795257 | V8: 1837685.835 | W8: 207658.0823 | X8: 158283.2264 | Y8: 9188.429177 | Z8: 40186.4267
B9: microFIT | C9: 42259.07 | D9: 3946.43 | E9: =D9/C9 -> 0.0933865795 | P9: RPPTOUOFF | Q9: =E24 -> 0.08199998421 | R9: =R8 -> 0.08613182044 | S9: 0.005 | T9: 0.09113182044 | U9: -0.009131836231 | V9: 5927360.19 | W9: 486043.442 | X9: 510534.3236 | Y9: 29636.80095 | Z9: -54127.68254
B10: WHOLESALE | C10: 22479185.13 | D10: 1943497.44 | E10: =D10/C10 -> 0.08645764643 | K10: Estimated Retail Volume Revenue Data (TLF Included) | L10: RPP/non-RPP Ratios | M10: GA Volumes | N10: Energy Volumes | P10: RPPTOUON | Q10: 0.1700003152 | R10: =R9 -> 0.08613182044 | S10: 0.005 | T10: 0.09113182044 | U10: 0.07886849478 | V10: 2126092.158 | W10: 361436.3371 | X10: 183124.188 | Y10: 10630.46079 | Z10: 167681.6883
A11: Total Wholesale Electricity | B11: Grand Total | C11: 23284833.02 | D11: 2018329.84 | K11: Estimated Retail Revenue Data (Net of Retail Billed/Unbilled) | M11: =+M15 -> 18131414.01 | N11: =+N15 -> 23284833.02 | P11: RPPULOMID | Q11: 0 | R11: 0 | S11: 0 | T11: 0 | U11: 0 | V11: 0 | W11: 0 | X11: 0 | Y11: 0 | Z11: 0
P12: RPPULOOFF | Q12: 0 | R12: 0 | S12: 0 | T12: 0 | U12: 0 | V12: 0 | W12: 0 | X12: 0 | Y12: 0 | Z12: 0
K13: Estimated RPP Sales Quantities | L13: =SUM(C20:C25)/(C30-B64) -> 0.6023158227 | M13: =M8*L13 -> 10920837.55 | N13: =M13 -> 10920837.55 | P13: RPPULOON | Q13: 0 | R13: 0 | S13: 0 | T13: 0 | U13: 0 | V13: 0 | W13: 0 | X13: 0 | Y13: 0 | Z13: 0
A14: RPP Revenue Volume and Price Data | K14: Estimated non-RPP Sales Quantities | L14: =1-L13 -> 0.3976841773 | M14: =M8*L14 -> 7210576.465 | N14: =N8-N13 -> 12363995.47 | P14: RPPULOOVN | Q14: 0 | R14: 0 | S14: 0 | T14: 0 | U14: 0 | V14: 0 | W14: 0 | X14: 0 | Y14: 0 | Z14: 0
B15: bill_year | C15: 2022 | K15: Estimated Retail Revenue kWh Volumes | L15: =+L13+L14 -> 1 | M15: =+M13+M14 -> 18131414.01 | N15: =+N13+N14 -> 23284833.02 | V15: =SUM(V6:V14) -> 10920837.55 | W15: =SUM(W6:W14) -> 1160210.989 | X15: =SUM(X6:X14) -> 940682.3935 | Y15: =SUM(Y6:Y14) -> 54604.18773 | Z15: =SUM(Z6:Z14) -> 164924.408
B16: bill_month | C16: 8 | Z16: =W15-X15-Y15-Z15 -> 0
K17: Estimated RPP Revenue Volume and Price Data | L17: Actual % | M17: kWh Volumes
B18: Row Labels | C18: usagebilled | D18: amountbilled | E18: Rate | K18: RPPT1 | L18: =C20/SUM($C$20:$C$25) -> 0.07186658576 | M18: =$M$13*L18 -> 784843.308
B19: RPPTIER | K19: RPPT2 | L19: =C21/SUM($C$20:$C$25) -> 0.02242099582 | M19: =$M$13*L19 -> 244856.053
B20: RPPT1 | C20: 762203.1779 | D20: 74695.98146 | E20: =D20/C20 -> 0.09800009188 | K20: RPPTOUMID | L20: =C23/SUM($C$20:$C$25) -> 0.1682733424 | M20: 1837685.835
B21: RPPT2 | C21: 237792.7668 | D21: 27346.13455 | E21: =D21/C21 -> 0.1149998586 | K21: RPPTOUOFF | L21: =C24/SUM($C$20:$C$25) -> 0.5427569237 | M21: 5927360.19
B22: RPPTOU | K22: RPPTOUON | L22: 0.1946821523 | M22: 2126092.158
B23: RPPTOUMID | C23: 1784674.685 | D23: 201667.8344 | E23: 0.112999773 | K23: RPPULOMID | L23: 0 | M23: 0
B24: RPPTOUOFF | C24: 5756375.479 | D24: 472022.6984 | E24: 0.08199998421 | K24: RPPULOOFF | L24: 0 | M24: 0
B25: RPPTOUON | C25: 2064761.441 | D25: 351010.0958 | E25: 0.1700003152 | K25: RPPULOON | L25: 0 | M25: 0
B26: RETAIL | K26: RPPULOOVN | L26: 0 | M26: 0
B27: NSLS | C27: 4009738.402 | D27: 341812.4503 | E27: 0.08524557364 | L27: =SUM(L18:L26) -> 1 | M27: =SUM(M18:M26) -> 10920837.55
B28: INTERVAL
B29: HOEP | C29: 8146255.822 | D29: 676663.7973 | E29: 0.08306439328
B30: Grand Total | C30: 22761801.77 | D30: 2145218.992
K31: Global Adjustment | L31: per kWh
C32: =C30/C11-1 -> -0.02246231464 | K32: Class B - GA actual8 | L32: =B69/100 -> 0.005 | N32: GA Posted Price
K33: Class B - GA actual IESO billed | L33: =+M33/M8 -> 0.005003324062 | M33: =B76 -> 90717.34 | N33: GA Billed by IESO CT 148
A37: RPP COP Volume and Price Data
B38: bill_year | C38: 2022
B39: bill_month | C39: 8
B41: Row Labels | C41: usagebilled | D41: amountbilled | E41: Rate
B42: RPPTIERED | C42: 1002190.764 | D42: 86369.93346 | E42: =D42/C42 -> 0.0861811309
B43: RPPTOU | C43: 9601060.697 | D43: 826956.836 | E43: 0.08613182044
B44: Grand Total | C44: 10603251.46 | D44: 913326.7695
C46: =SUM(C20:C25)-C44 -> 2556.088925
C47: =C46/C44 -> 0.0002410665195
A60: Year | B60: 2022
A62: Class A | B62: Value
A63: kWh
A64: 202208 | B64: 5153419.01
A67: ga_actual | B67: year
A68: month | B68: 2022
A69: 202208 | B69: 0.5
A72: chargetype | B72: 148
A74: Sum of chargeamount | B74: year
A75: month | B75: 2022
A76: 202208 | B76: 90717.34

Sheet I17 Input Rev 08 Init
A1: Reverse IESO Posted
A5: =Admin!B29 -> 202208
A6: RPP Revenue Prices | B6: kWh Volumes | C6: $ RPP Settlement
A7: RPPTiered_1 | B7: 738836.31 | C7: 4687.86
A8: RPPTiered_2 | B8: 190737.65 | C8: -2032.39
A9: RPPTOU_MID | B9: 1616828.63 | C9: -11529.83
A10: RPPTOU_OFF | B10: 5486943.25 | C10: 130944.6
A11: RPPTOU_ON | B11: 1790748.31 | C11: -114848.6
A12: Grand Total | B12: 9824094.15 | C12: 7221.64

Sheet I18 Input 09 Trueup Sett
A1: Date: | B1: =Admin!B8+8 -> 202209 | C1: Trueup | K1: ="Data for 1st True up of RPP Settlement based on Actual IESO Invoice" -> Data for 1st True up of RPP Settlement based on Actual IESO Invoice | P1: For Reconciliation
A3: Wholesale Electricty | B3: Year | C3: 2022 | E3: Rate | P3: Actual RPP Revenue and GA
B4: dateref | C4: 202209 | K4: Wholesale Volume data per IESO Power Bill: | L4: GA RPP/non-RPP Ratios | M4: GA Volumes | N4: Energy Volumes | P4: =B1 -> 202209
K5: AQEW | M5: =C10 -> 19445268.28 | N5: =+M5 -> 19445268.28 | P5: RPP Revenue Prices | Q5: RPP Rate | R5: Estimated RPP Energy Price | S5: GA actual IESO billed | T5: Total Commodity | U5: Difference | V5: kWh Volumes | W5: $ Estimated RPP Revenue | X5: $ Estimated RPP Energy | Y5: $ Estimated GA | Z5: $ Estimated RPP Settlement
B6: Wholesale | K6: Embedded Generation | M6: =SUM(C8:C9) -> 611669.94 | N6: =+M6 -> 611669.94 | P6: RPPT1 | Q6: =E20 -> 0.09799979579 | R6: =E42 -> 0.0633672628 | S6: =L32 -> 0.0324000001 | T6: =R6+S6 -> 0.09576726289 | U6: =+Q6-T6 -> 0.002232532904 | V6: =M18 -> 668450.2788 | W6: =Q6*V6 -> 65507.99082 | X6: =R6*V6 -> 42357.86448 | Y6: =+V6*S6 -> 21657.7891 | Z6: =W6-X6-Y6 -> 1492.337242
A7: FIT/mFIT | B7: Source | C7: kWh | D7: Total Cost | K7: Class A customer Volumes for GA (TLF included) | M7: =-B64 -> -5350939.96 | P7: RPPT2 | Q7: =E21 -> 0.1149985675 | R7: =R6 -> 0.0633672628 | S7: =S6 -> 0.0324000001 | T7: =R7+S7 -> 0.09576726289 | U7: =+Q7-T7 -> 0.01923130457 | V7: =M19 -> 124247.7646 | W7: =Q7*V7 -> 14288.31494 | X7: =R7*V7 -> 7873.240753 | Y7: =+V7*S7 -> 4025.627586 | Z7: =W7-X7-Y7 -> 2389.446604
B8: FIT | C8: 580517.48 | D8: 40830.64 | E8: =D8/C8 -> 0.07033490189 | M8: =+M5+M6+M7 -> 14705998.26 | N8: =+N5+N6+N7 -> 20056938.22 | P8: RPPTOUMID | Q8: =E23 -> 0.1129998285 | R8: =E43 -> 0.06454629521 | S8: =S7 -> 0.0324000001 | T8: 0.0969462953 | U8: 0.01605353323 | V8: 1422737.888 | W8: 160769.1373 | X8: 91832.45969 | Y8: 46096.70769 | Z8: 22839.96995
B9: microFIT | C9: 31152.46 | D9: 2204.6 | E9: =D9/C9 -> 0.07076808701 | P9: RPPTOUOFF | Q9: =E24 -> 0.08199967124 | R9: =R8 -> 0.06454629521 | S9: 0.0324000001 | T9: 0.0969462953 | U9: -0.01494662406 | V9: 4680837.724 | W9: 383827.1545 | X9: 302130.7336 | Y9: 151659.1427 | Z9: -69962.72177
B10: WHOLESALE | C10: 19445268.28 | D10: 1188438.71 | E10: =D10/C10 -> 0.06111711563 | K10: Estimated Retail Volume Revenue Data (TLF Included) | L10: RPP/non-RPP Ratios | M10: GA Volumes | N10: Energy Volumes | P10: RPPTOUON | Q10: 0.1699996421 | R10: =R9 -> 0.06454629521 | S10: 0.0324000001 | T10: 0.0969462953 | U10: 0.07305334675 | V10: 1510479.262 | W10: 256780.9338 | X10: 97495.84032 | Y10: 48939.52822 | Z10: 110345.5652
A11: Total Wholesale Electricity | B11: Grand Total | C11: 20056938.22 | D11: 1231473.95 | K11: Estimated Retail Revenue Data (Net of Retail Billed/Unbilled) | M11: =+M15 -> 14705998.26 | N11: =+N15 -> 20056938.22 | P11: RPPULOMID | Q11: 0 | R11: 0 | S11: 0 | T11: 0 | U11: 0 | V11: 0 | W11: 0 | X11: 0 | Y11: 0 | Z11: 0
P12: RPPULOOFF | Q12: 0 | R12: 0 | S12: 0 | T12: 0 | U12: 0 | V12: 0 | W12: 0 | X12: 0 | Y12: 0 | Z12: 0
K13: Estimated RPP Sales Quantities | L13: =SUM(C20:C25)/(C30-B64) -> 0.5716546927 | M13: =M8*L13 -> 8406752.917 | N13: =M13 -> 8406752.917 | P13: RPPULOON | Q13: 0 | R13: 0 | S13: 0 | T13: 0 | U13: 0 | V13: 0 | W13: 0 | X13: 0 | Y13: 0 | Z13: 0
A14: RPP Revenue Volume and Price Data | K14: Estimated non-RPP Sales Quantities | L14: =1-L13 -> 0.4283453073 | M14: =M8*L14 -> 6299245.343 | N14: =N8-N13 -> 11650185.3 | P14: RPPULOOVN | Q14: 0 | R14: 0 | S14: 0 | T14: 0 | U14: 0 | V14: 0 | W14: 0 | X14: 0 | Y14: 0 | Z14: 0
B15: bill_year | C15: 2022 | K15: Estimated Retail Revenue kWh Volumes | L15: =+L13+L14 -> 1 | M15: =+M13+M14 -> 14705998.26 | N15: =+N13+N14 -> 20056938.22 | V15: =SUM(V6:V14) -> 8406752.917 | W15: =SUM(W6:W14) -> 881173.5314 | X15: =SUM(X6:X14) -> 541690.1388 | Y15: =SUM(Y6:Y14) -> 272378.7953 | Z15: =SUM(Z6:Z14) -> 67104.59728
B16: bill_month | C16: 9 | Z16: =W15-X15-Y15-Z15 -> 0
K17: Estimated RPP Revenue Volume and Price Data | L17: Actual % | M17: kWh Volumes
B18: Row Labels | C18: usagebilled | D18: amountbilled | E18: Rate | K18: RPPT1 | L18: =C20/SUM($C$20:$C$25) -> 0.07951349177 | M18: =$M$13*L18 -> 668450.2788
B19: RPPTIER | K19: RPPT2 | L19: =C21/SUM($C$20:$C$25) -> 0.01477951902 | M19: =$M$13*L19 -> 124247.7646
B20: RPPT1 | C20: 667536.0105 | D20: 65418.39271 | E20: =D20/C20 -> 0.09799979579 | K20: RPPTOUMID | L20: =C23/SUM($C$20:$C$25) -> 0.1692375049 | M20: 1422737.888
B21: RPPT2 | C21: 124077.8256 | D21: 14268.7722 | E21: =D21/C21 -> 0.1149985675 | K21: RPPTOUOFF | L21: =C24/SUM($C$20:$C$25) -> 0.5567949684 | M21: 4680837.724
B22: RPPTOU | K22: RPPTOUON | L22: 0.179674516 | M22: 1510479.262
B23: RPPTOUMID | C23: 1420791.947 | D23: 160549.2464 | E23: 0.1129998285 | K23: RPPULOMID | L23: 0 | M23: 0
B24: RPPTOUOFF | C24: 4674435.54 | D24: 383302.1775 | E24: 0.08199967124 | K24: RPPULOOFF | L24: 0 | M24: 0
B25: RPPTOUON | C25: 1508413.314 | D25: 256429.7234 | E25: 0.1699996421 | K25: RPPULOON | L25: 0 | M25: 0
B26: RETAIL | K26: RPPULOOVN | L26: 0 | M26: 0
B27: NSLS | C27: 3450255.218 | D27: 216986.1041 | E27: 0.06288987056 | L27: =SUM(L18:L26) -> 1 | M27: =SUM(M18:M26) -> 8406752.917
B28: INTERVAL
B29: HOEP | C29: 8191314.335 | D29: 484706.463 | E29: 0.05917322217
B30: Grand Total | C30: 20036824.19 | D30: 1581660.879
K31: Global Adjustment | L31: per kWh
C32: =C30/C11-1 -> -0.001002846446 | K32: Class B - GA actual8 | L32: =B69/100 -> 0.0324000001 | N32: GA Posted Price
K33: Class B - GA actual IESO billed | L33: =+M33/M8 -> 0.03240810257 | M33: =B76 -> 476593.5 | N33: GA Billed by IESO CT 148
A37: RPP COP Volume and Price Data
B38: bill_year | C38: 2022
B39: bill_month | C39: 9
B41: Row Labels | C41: usagebilled | D41: amountbilled | E41: Rate
B42: RPPTIERED | C42: 794470.5659 | D42: 50343.42513 | E42: =D42/C42 -> 0.0633672628
B43: RPPTOU | C43: 7603656.982 | D43: 490787.8882 | E43: 0.06454629521
B44: Grand Total | C44: 8398127.547 | D44: 541131.3133
C46: =SUM(C20:C25)-C44 -> -2872.910061
C47: =C46/C44 -> -0.000342089358
A60: Year | B60: 2022
A62: Class A | B62: Value
A63: kWh
A64: 202209 | B64: 5350939.96
A67: ga_actual | B67: year
A68: month | B68: 2022
A69: 202209 | B69: 3.24000001
A72: chargetype | B72: 148
A74: Sum of chargeamount | B74: year
A75: month | B75: 2022
A76: 202209 | B76: 476593.5

Sheet I19 Input Rev 09 Init
A1: Reverse IESO Posted
A5: =Admin!B32 -> 202209
A6: RPP Revenue Prices | B6: kWh Volumes | C6: $ RPP Settlement
A7: RPPTiered_1 | B7: 774035.46 | C7: -1491.6
A8: RPPTiered_2 | B8: 225007.43 | C8: -4831.71
A9: RPPTOU_MID | B9: 1786856.34 | C9: -26868.26
A10: RPPTOU_OFF | B10: 5873602.53 | C10: 93786.75
A11: RPPTOU_ON | B11: 2068029.07 | C11: -148987.54
A12: Grand Total | B12: 10727530.83 | C12: -88392.36

Sheet I20 Input 10 Trueup Sett
A1: Date: | B1: =Admin!B8+9 -> 202210 | C1: Trueup | K1: ="Data for 1st True up of RPP Settlement based on Actual IESO Invoice" -> Data for 1st True up of RPP Settlement based on Actual IESO Invoice | P1: For Reconciliation
A3: Wholesale Electricty | B3: Year | C3: 2022 | E3: Rate | P3: Actual RPP Revenue and GA
B4: dateref | C4: 202210 | K4: Wholesale Volume data per IESO Power Bill: | L4: GA RPP/non-RPP Ratios | M4: GA Volumes | N4: Energy Volumes | P4: =B1 -> 202210
K5: AQEW | M5: =C10 -> 19032538.2 | N5: =+M5 -> 19032538.2 | P5: RPP Revenue Prices | Q5: RPP Rate | R5: Estimated RPP Energy Price | S5: GA actual IESO billed | T5: Total Commodity | U5: Difference | V5: kWh Volumes | W5: $ Estimated RPP Revenue | X5: $ Estimated RPP Energy | Y5: $ Estimated GA | Z5: $ Estimated RPP Settlement
B6: Wholesale | K6: Embedded Generation | M6: =SUM(C8:C9) -> 514643.19 | N6: =+M6 -> 514643.19 | P6: RPPT1 | Q6: =E20 -> 0.09731515613 | R6: =E42 -> 0.04487314716 | S6: =L32 -> 0.05769999981 | T6: =R6+S6 -> 0.102573147 | U6: =+Q6-T6 -> -0.005257990838 | V6: =M18 -> 720257.6291 | W6: =Q6*V6 -> 70091.98363 | X6: =R6*V6 -> 32320.22658 | Y6: =+V6*S6 -> 41558.86506 | Z6: =W6-X6-Y6 -> -3787.108014
A7: FIT/mFIT | B7: Source | C7: kWh | D7: Total Cost | K7: Class A customer Volumes for GA (TLF included) | M7: =-B64 -> -4949188.36 | P7: RPPT2 | Q7: =E21 -> 0.1142461982 | R7: =R6 -> 0.04487314716 | S7: =S6 -> 0.05769999981 | T7: =R7+S7 -> 0.102573147 | U7: =+Q7-T7 -> 0.01167305119 | V7: =M19 -> 196998.9635 | W7: =Q7*V7 -> 22506.38262 | X7: =R7*V7 -> 8839.963479 | Y7: =+V7*S7 -> 11366.84016 | Z7: =W7-X7-Y7 -> 2299.578985
B8: FIT | C8: 487965.39 | D8: 22544.09 | E8: =D8/C8 -> 0.04620018235 | M8: =+M5+M6+M7 -> 14597993.03 | N8: =+N5+N6+N7 -> 19547181.39 | P8: RPPTOUMID | Q8: =E23 -> 0.1117103134 | R8: =E43 -> 0.04491122256 | S8: =S7 -> 0.05769999981 | T8: 0.1026112224 | U8: 0.009099091002 | V8: 1415613.803 | W8: 158138.6616 | X8: 63576.94657 | Y8: 81680.91618 | Z8: 12880.79882
B9: microFIT | C9: 26677.8 | D9: 1227.33 | E9: =D9/C9 -> 0.04600566763 | P9: RPPTOUOFF | Q9: =E24 -> 0.08127889944 | R9: =R8 -> 0.04491122256 | S9: 0.05769999981 | T9: 0.1026112224 | U9: -0.02133232292 | V9: 4708825.688 | W9: 382728.1696 | X9: 211479.1184 | Y9: 271699.2413 | Z9: -100450.1901
B10: WHOLESALE | C10: 19032538.2 | D10: 865607.42 | E10: =D10/C10 -> 0.04548039841 | K10: Estimated Retail Volume Revenue Data (TLF Included) | L10: RPP/non-RPP Ratios | M10: GA Volumes | N10: Energy Volumes | P10: RPPTOUON | Q10: 0.1677605134 | R10: =R9 -> 0.04491122256 | S10: 0.05769999981 | T10: 0.1026112224 | U10: 0.06514929106 | V10: 1381485.896 | W10: 231758.7832 | X10: 62044.22052 | Y10: 79711.73592 | Z10: 90002.82671
A11: Total Wholesale Electricity | B11: Grand Total | C11: 19547181.39 | D11: 889378.84 | K11: Estimated Retail Revenue Data (Net of Retail Billed/Unbilled) | M11: =+M15 -> 14597993.03 | N11: =+N15 -> 19547181.39 | P11: RPPULOMID | Q11: 0 | R11: 0 | S11: 0 | T11: 0 | U11: 0 | V11: 0 | W11: 0 | X11: 0 | Y11: 0 | Z11: 0
P12: RPPULOOFF | Q12: 0 | R12: 0 | S12: 0 | T12: 0 | U12: 0 | V12: 0 | W12: 0 | X12: 0 | Y12: 0 | Z12: 0
K13: Estimated RPP Sales Quantities | L13: =SUM(C20:C25)/(C30-B64) -> 0.5770095904 | M13: =M8*L13 -> 8423181.979 | N13: =M13 -> 8423181.979 | P13: RPPULOON | Q13: 0 | R13: 0 | S13: 0 | T13: 0 | U13: 0 | V13: 0 | W13: 0 | X13: 0 | Y13: 0 | Z13: 0
A14: RPP Revenue Volume and Price Data | K14: Estimated non-RPP Sales Quantities | L14: =1-L13 -> 0.4229904096 | M14: =M8*L14 -> 6174811.051 | N14: =N8-N13 -> 11123999.41 | P14: RPPULOOVN | Q14: 0 | R14: 0 | S14: 0 | T14: 0 | U14: 0 | V14: 0 | W14: 0 | X14: 0 | Y14: 0 | Z14: 0
B15: bill_year | C15: 2022 | K15: Estimated Retail Revenue kWh Volumes | L15: =+L13+L14 -> 1 | M15: =+M13+M14 -> 14597993.03 | N15: =+N13+N14 -> 19547181.39 | V15: =SUM(V6:V14) -> 8423181.979 | W15: =SUM(W6:W14) -> 865223.9805 | X15: =SUM(X6:X14) -> 378260.4756 | Y15: =SUM(Y6:Y14) -> 486017.5986 | Z15: =SUM(Z6:Z14) -> 945.9063519
B16: bill_month | C16: 10 | Z16: =W15-X15-Y15-Z15 -> 7.275957614e-11
K17: Estimated RPP Revenue Volume and Price Data | L17: Actual % | M17: kWh Volumes
B18: Row Labels | C18: usagebilled | D18: amountbilled | E18: Rate | K18: RPPT1 | L18: =C20/SUM($C$20:$C$25) -> 0.08550897165 | M18: =$M$13*L18 -> 720257.6291
B19: RPPTIER | K19: RPPT2 | L19: =C21/SUM($C$20:$C$25) -> 0.0233877131 | M19: =$M$13*L19 -> 196998.9635
B20: RPPT1 | C20: 711349.2252 | D20: 69225.06092 | E20: =D20/C20 -> 0.09731515613 | K20: RPPTOUMID | L20: =C23/SUM($C$20:$C$25) -> 0.1680616431 | M20: 1415613.803
B21: RPPT2 | C21: 194562.4099 | D21: 22228.01563 | E21: =D21/C21 -> 0.1142461982 | K21: RPPTOUOFF | L21: =C24/SUM($C$20:$C$25) -> 0.5590316936 | M21: 4708825.688
B22: RPPTOU | K22: RPPTOUON | L22: 0.1640099785 | M22: 1381485.896
B23: RPPTOUMID | C23: 1398104.986 | D23: 156182.7461 | E23: 0.1117103134 | K23: RPPULOMID | L23: 0 | M23: 0
B24: RPPTOUOFF | C24: 4650585.248 | D24: 377994.4507 | E24: 0.08127889944 | K24: RPPULOOFF | L24: 0 | M24: 0
B25: RPPTOUON | C25: 1364399.184 | D25: 228892.3077 | E25: 0.1677605134 | K25: RPPULOON | L25: 0 | M25: 0
B26: RETAIL | K26: RPPULOOVN | L26: 0 | M26: 0
B27: NSLS | C27: 3231532.828 | D27: 145837.7768 | E27: 0.04512959781 | L27: =SUM(L18:L26) -> 1 | M27: =SUM(M18:M26) -> 8423181.979
B28: INTERVAL
B29: HOEP | C29: 7816094.312 | D29: 352717.8081 | E29: 0.04512711772
B30: Grand Total | C30: 19366628.19 | D30: 1353078.166
K31: Global Adjustment | L31: per kWh
C32: =C30/C11-1 -> -0.009236789338 | K32: Class B - GA actual8 | L32: =B69/100 -> 0.05769999981 | N32: GA Posted Price
K33: Class B - GA actual IESO billed | L33: =+M33/M8 -> 0.05770693603 | M33: =B76 -> 842405.45 | N33: GA Billed by IESO CT 148
A37: RPP COP Volume and Price Data
B38: bill_year | C38: 2022
B39: bill_month | C39: 10
B41: Row Labels | C41: usagebilled | D41: amountbilled | E41: Rate
B42: RPPTIERED | C42: 909993.7076 | D42: 40834.28156 | E42: =D42/C42 -> 0.04487314716
B43: RPPTOU | C43: 7413747.841 | D43: 332960.4793 | E43: 0.04491122256
B44: Grand Total | C44: 8323741.549 | D44: 373794.7608
C46: =SUM(C20:C25)-C44 -> -4740.495448
C47: =C46/C44 -> -0.0005695149736
A60: Year | B60: 2022
A62: Class A | B62: Value
A63: kWh
A64: 202210 | B64: 4949188.36
A67: ga_actual | B67: year
A68: month | B68: 2022
A69: 202210 | B69: 5.769999981
A72: chargetype | B72: 148
A74: Sum of chargeamount | B74: year
A75: month | B75: 2022
A76: 202210 | B76: 842405.45

Sheet I21 Input Rev 10 Init
A1: Reverse IESO Posted
A5: =Admin!B35 -> 202210
A6: RPP Revenue Prices | B6: kWh Volumes | C6: $ RPP Settlement
A7: RPPTiered_1 | B7: 678957.35 | C7: -1044.09
A8: RPPTiered_2 | B8: 129756.8 | C8: -2400.01
A9: RPPTOU_MID | B9: 1496185.03 | C9: -22627.72
A10: RPPTOU_OFF | B10: 4806850.29 | C10: 76329.15
A11: RPPTOU_ON | B11: 1621302.96 | C11: -116921.52
A12: Grand Total | B12: 8733052.43 | C12: -66664.19

Sheet I22 Input 11 Trueup Sett
A1: Date: | B1: =Admin!B8+10 -> 202211 | C1: Trueup | K1: ="Data for 1st True up of RPP Settlement based on Actual IESO Invoice" -> Data for 1st True up of RPP Settlement based on Actual IESO Invoice | P1: For Reconciliation
A3: Wholesale Electricty | B3: Year | C3: 2022 | E3: Rate | P3: Actual RPP Revenue and GA
B4: dateref | C4: 202211 | K4: Wholesale Volume data per IESO Power Bill: | L4: GA RPP/non-RPP Ratios | M4: GA Volumes | N4: Energy Volumes | P4: =B1 -> 202211
K5: AQEW | M5: =C10 -> 20702365.44 | N5: =+M5 -> 20702365.44 | P5: RPP Revenue Prices | Q5: RPP Rate | R5: Estimated RPP Energy Price | S5: GA actual IESO billed | T5: Total Commodity | U5: Difference | V5: kWh Volumes | W5: $ Estimated RPP Revenue | X5: $ Estimated RPP Energy | Y5: $ Estimated GA | Z5: $ Estimated RPP Settlement
B6: Wholesale | K6: Embedded Generation | M6: =SUM(C8:C9) -> 263692.76 | N6: =+M6 -> 263692.76 | P6: RPPT1 | Q6: =E21 -> 0.0874493896 | R6: =E43 -> 0.03505616295 | S6: =L32 -> 0.06989999771 | T6: =R6+S6 -> 0.1049561607 | U6: =+Q6-T6 -> -0.01750677107 | V6: =M18 -> 856859.922 | W6: =Q6*V6 -> 74931.87715 | X6: =R6*V6 -> 30038.22105 | Y6: =+V6*S6 -> 59894.50659 | Z6: =W6-X6-Y6 -> -15000.85049
A7: FIT/mFIT | B7: Source | C7: kWh | D7: Total Cost | K7: Class A customer Volumes for GA (TLF included) | M7: =-B64 -> -5051150.44 | P7: RPPT2 | Q7: =E22 -> 0.1042810204 | R7: =R6 -> 0.03505616295 | S7: =S6 -> 0.06989999771 | T7: =R7+S7 -> 0.1049561607 | U7: =+Q7-T7 -> -0.0006751402874 | V7: =M19 -> 181240.7092 | W7: =Q7*V7 -> 18899.96609 | X7: =R7*V7 -> 6353.603836 | Y7: =+V7*S7 -> 12668.72516 | Z7: =W7-X7-Y7 -> -122.3629045
B8: FIT | C8: 248637 | D8: 7629.22 | E8: =D8/C8 -> 0.0306841701 | M8: =+M5+M6+M7 -> 15914907.76 | N8: =+N5+N6+N7 -> 20966058.2 | P8: RPPTOUMID | Q8: =E24 -> 0.1029949577 | R8: =E44 -> 0.03585485469 | S8: =S7 -> 0.06989999771 | T8: 0.1057548524 | U8: -0.002759894731 | V8: 1448848.05 | W8: 149224.0435 | X8: 51948.23628 | Y8: 101274.4754 | Z8: -3998.668098
B9: microFIT | C9: 15055.76 | D9: 457.1 | E9: =D9/C9 -> 0.03036047333 | P9: RPPTOUOFF | Q9: =E25 -> 0.07471070458 | R9: =R8 -> 0.03585485469 | S9: 0.06989999771 | T9: 0.1057548524 | U9: -0.03104414782 | V9: 4584108.123 | W9: 342481.9477 | X9: 164362.5306 | Y9: 320429.1473 | Z9: -142309.7302
B10: WHOLESALE | C10: 20702365.44 | D10: 669517.77 | E10: =D10/C10 -> 0.03234015803 | K10: Estimated Retail Volume Revenue Data (TLF Included) | L10: RPP/non-RPP Ratios | M10: GA Volumes | N10: Energy Volumes | P10: RPPTOUON | Q10: 0.1526929598 | R10: =R9 -> 0.03585485469 | S10: 0.06989999771 | T10: 0.1057548524 | U10: 0.04693810743 | V10: 1535338.225 | W10: 234435.3379 | X10: 55049.32895 | Y10: 107320.1384 | Z10: 72065.87055
A11: Total Wholesale Electricity | B11: Grand Total | C11: 20966058.2 | D11: 677604.09 | K11: Estimated Retail Revenue Data (Net of Retail Billed/Unbilled) | M11: =+M15 -> 15914907.76 | N11: =+N15 -> 20966058.2 | P11: RPPULOMID | Q11: 0 | R11: 0 | S11: 0 | T11: 0 | U11: 0 | V11: 0 | W11: 0 | X11: 0 | Y11: 0 | Z11: 0
P12: RPPULOOFF | Q12: 0 | R12: 0 | S12: 0 | T12: 0 | U12: 0 | V12: 0 | W12: 0 | X12: 0 | Y12: 0 | Z12: 0
K13: Estimated RPP Sales Quantities | L13: =SUM(C21:C26)/(C31-B64) -> 0.5407756776 | M13: =M8*L13 -> 8606395.028 | N13: =M13 -> 8606395.028 | P13: RPPULOON | Q13: 0 | R13: 0 | S13: 0 | T13: 0 | U13: 0 | V13: 0 | W13: 0 | X13: 0 | Y13: 0 | Z13: 0
A14: RPP Revenue Volume and Price Data | K14: Estimated non-RPP Sales Quantities | L14: =1-L13 -> 0.4592243224 | M14: =M8*L14 -> 7308512.732 | N14: =N8-N13 -> 12359663.17 | P14: RPPULOOVN | Q14: 0 | R14: 0 | S14: 0 | T14: 0 | U14: 0 | V14: 0 | W14: 0 | X14: 0 | Y14: 0 | Z14: 0
K15: Estimated Retail Revenue kWh Volumes | L15: =+L13+L14 -> 1 | M15: =+M13+M14 -> 15914907.76 | N15: =+N13+N14 -> 20966058.2 | V15: =SUM(V6:V14) -> 8606395.028 | W15: =SUM(W6:W14) -> 819973.1724 | X15: =SUM(X6:X14) -> 307751.9207 | Y15: =SUM(Y6:Y14) -> 601586.9928 | Z15: =SUM(Z6:Z14) -> -89365.74115
B16: bill_year | C16: 2022
B17: bill_month | C17: 11 | K17: Estimated RPP Revenue Volume and Price Data | L17: Actual % | M17: kWh Volumes
K18: RPPT1 | L18: =C21/SUM($C$21:$C$26) -> 0.09956084042 | M18: =$M$13*L18 -> 856859.922
B19: Row Labels | C19: usagebilled | D19: amountbilled | E19: Rate | K19: RPPT2 | L19: =C22/SUM($C$21:$C$26) -> 0.02105884155 | M19: =$M$13*L19 -> 181240.7092
B20: RPPTIER | K20: RPPTOUMID | L20: =C24/SUM($C$21:$C$26) -> 0.1683455204 | M20: 1448848.05
B21: RPPT1 | C21: 932062.9559 | D21: 81508.33655 | E21: =D21/C21 -> 0.0874493896 | K21: RPPTOUOFF | L21: =C25/SUM($C$21:$C$26) -> 0.5326397531 | M21: 4584108.123
B22: RPPT2 | C22: 197147.453 | D22: 20558.73756 | E22: =D22/C22 -> 0.1042810204 | K22: RPPTOUON | L22: 0.1783950446 | M22: 1535338.225
B23: RPPTOU | K23: RPPULOMID | L23: 0 | M23: 0
B24: RPPTOUMID | C24: 1576007.421 | D24: 162320.8176 | E24: =D24/C24 -> 0.1029949577 | K24: RPPULOOFF | L24: 0 | M24: 0
B25: RPPTOUOFF | C25: 4986436.239 | D25: 372540.1647 | E25: 0.07471070458 | K25: RPPULOON | L25: 0 | M25: 0
B26: RPPTOUON | C26: 1670088.479 | D26: 255010.7531 | E26: 0.1526929598 | K26: RPPULOOVN | L26: 0 | M26: 0
B27: RETAIL | L27: =SUM(L18:L26) -> 1 | M27: =SUM(M18:M26) -> 8606395.028
B28: NSLS | C28: 3642859.76 | D28: 120841.2001 | E28: =D28/C28 -> 0.03317207033
B29: INTERVAL
B30: HOEP | C30: 9358241.197 | D30: 253044.4706 | E30: 0.0270397466
B31: Grand Total | C31: 22362843.5 | D31: 1265824.48 | E31: 0.05660391444 | K31: Global Adjustment | L31: per kWh
C32: =C31/C11-1 -> 0.06662126428 | K32: Class B - GA actual8 | L32: =B69/100 -> 0.06989999771 | N32: GA Posted Price
K33: Class B - GA actual IESO billed | L33: =+M33/M8 -> 0.06989021971 | M33: =B76 -> 1112296.4 | N33: GA Billed by IESO CT 148
A38: RPP COP Volume and Price Data
B39: bill_year | C39: 2022
B40: bill_month | C40: 11
B42: Row Labels | C42: usagebilled | D42: amountbilled | E42: Rate
B43: RPPTIERED | C43: 1166454.406 | D43: 40891.41575 | E43: =D43/C43 -> 0.03505616295
B44: RPPTOU | C44: 9967766.763 | D44: 357392.8288 | E44: 0.03585485469
B45: Grand Total | C45: 11134221.17 | D45: 398284.2446
C47: =SUM(C21:C26)-C45 -> -1772478.621
C48: =C47/C45 -> -0.1591919717
A60: Year | B60: 2022
A62: Class A | B62: Value
A63: kWh
A64: 202211 | B64: 5051150.44
A67: ga_actual | B67: year
A68: month | B68: 2022
A69: 202211 | B69: 6.989999771
A72: chargetype | B72: 148
A74: Sum of chargeamount | B74: year
A75: month | B75: 2022
A76: 202211 | B76: 1112296.4

Sheet I23 Input Rev 11 Init
A1: Reverse IESO Posted
A5: =Admin!B38 -> 202211
A6: RPP Revenue Prices | B6: kWh Volumes | C6: $ RPP Settlement
A7: RPPTiered_1 | B7: 706392.66 | C7: 2210.78
A8: RPPTiered_2 | B8: 184722.04 | C8: -2564.26
A9: RPPTOU_MID | B9: 1315562.34 | C9: -17732.78
A10: RPPTOU_OFF | B10: 4512234.16 | C10: 78523.48
A11: RPPTOU_ON | B11: 1303859.18 | C11: -91676.93
A12: Grand Total | B12: 8022770.38 | C12: -31239.71

Sheet I24 Input 12 Trueup Sett
A1: Date: | B1: =Admin!B8+11 -> 202212 | C1: Trueup | K1: ="Data for 1st True up of RPP Settlement based on Actual IESO Invoice" -> Data for 1st True up of RPP Settlement based on Actual IESO Invoice | P1: For Reconciliation
A3: Wholesale Electricty | B3: Year | C3: 2022 | E3: Rate | P3: Actual RPP Revenue and GA
B4: dateref | C4: 202212 | K4: Wholesale Volume data per IESO Power Bill: | L4: GA RPP/non-RPP Ratios | M4: GA Volumes | N4: Energy Volumes | P4: =B1 -> 202212
K5: AQEW | M5: =C10 -> 21635057.81 | N5: =+M5 -> 21635057.81 | P5: RPP Revenue Prices | Q5: RPP Rate | R5: Estimated RPP Energy Price | S5: GA actual IESO billed | T5: Total Commodity | U5: Difference | V5: kWh Volumes | W5: $ Estimated RPP Revenue | X5: $ Estimated RPP Energy | Y5: $ Estimated GA | Z5: $ Estimated RPP Settlement
B6: Wholesale | K6: Embedded Generation | M6: =SUM(C8:C9) -> 92878 | N6: =+M6 -> 92878 | P6: RPPT1 | Q6: =E21 -> 0.08700040379 | R6: =E43 -> 0.05411936404 | S6: =L32 -> 0.03430000067 | T6: =R6+S6 -> 0.08841936471 | U6: =+Q6-T6 -> -0.001418960916 | V6: =M18 -> 1497657.91 | W6: =Q6*V6 -> 130296.8429 | X6: =R6*V6 -> 81052.29364 | Y6: =+V6*S6 -> 51369.66731 | Z6: =W6-X6-Y6 -> -2125.118041
A7: FIT/mFIT | B7: Source | C7: kWh | D7: Total Cost | K7: Class A customer Volumes for GA (TLF included) | M7: =-B64 -> -3763142.8 | P7: RPPT2 | Q7: =E22 -> 0.1029999299 | R7: =R6 -> 0.05411936404 | S7: =S6 -> 0.03430000067 | T7: =R7+S7 -> 0.08841936471 | U7: =+Q7-T7 -> 0.01458056522 | V7: =M19 -> 308762.9923 | W7: =Q7*V7 -> 31802.56658 | X7: =R7*V7 -> 16710.05678 | Y7: =+V7*S7 -> 10590.57084 | Z7: =W7-X7-Y7 -> 4501.938947
B8: FIT | C8: 84872.27 | D8: 4212.21 | E8: =D8/C8 -> 0.04962999104 | M8: =+M5+M6+M7 -> 17964793.01 | N8: =+N5+N6+N7 -> 21727935.81 | P8: RPPTOUMID | Q8: =E24 -> 0.1019969986 | R8: =E44 -> 0.05375306456 | S8: =S7 -> 0.03430000067 | T8: 0.08805306523 | U8: 0.0139439334 | V8: 1734630.685 | W8: 176927.1236 | X8: 93241.71521 | Y8: 59497.83366 | Z8: 24187.57475
B9: microFIT | C9: 8005.73 | D9: 445.21 | E9: =D9/C9 -> 0.05561141832 | P9: RPPTOUOFF | Q9: =E25 -> 0.07399766274 | R9: =R8 -> 0.05375306456 | S9: 0.03430000067 | T9: 0.08805306523 | U9: -0.01405540249 | V9: 6643051.309 | W9: 491570.2703 | X9: 357084.3659 | Y9: 227856.6643 | Z9: -93370.75989
B10: WHOLESALE | C10: 21635057.81 | D10: 1211664.07 | E10: =D10/C10 -> 0.05600466061 | K10: Estimated Retail Volume Revenue Data (TLF Included) | L10: RPP/non-RPP Ratios | M10: GA Volumes | N10: Energy Volumes | P10: RPPTOUON | Q10: 0.1509991441 | R10: =R9 -> 0.05375306456 | S10: 0.03430000067 | T10: 0.08805306523 | U10: 0.06294607889 | V10: 1815112.025 | W10: 274080.3622 | X10: 97567.83385 | Y10: 62258.34366 | Z10: 114254.1847
A11: Total Wholesale Electricity | B11: Grand Total | C11: 21727935.81 | D11: 1216321.49 | K11: Estimated Retail Revenue Data (Net of Retail Billed/Unbilled) | M11: =+M15 -> 17964793.01 | N11: =+N15 -> 21727935.81 | P11: RPPULOMID | Q11: 0 | R11: =E45 -> 0 | S11: 0.03430000067 | T11: 0.03430000067 | U11: -0.03430000067 | V11: 0 | W11: 0 | X11: 0 | Y11: 0 | Z11: 0
P12: RPPULOOFF | Q12: 0 | R12: =R11 -> 0 | S12: 0.03430000067 | T12: 0.03430000067 | U12: -0.03430000067 | V12: 0 | W12: 0 | X12: 0 | Y12: 0 | Z12: 0
K13: Estimated RPP Sales Quantities | L13: =SUM(C21:C26)/(C31-B64) -> 0.6679294838 | M13: =M8*L13 -> 11999214.92 | N13: =M13 -> 11999214.92 | P13: RPPULOON | Q13: 0 | R13: =R12 -> 0 | S13: 0.03430000067 | T13: 0.03430000067 | U13: -0.03430000067 | V13: 0 | W13: 0 | X13: 0 | Y13: 0 | Z13: 0
A14: RPP Revenue Volume and Price Data | K14: Estimated non-RPP Sales Quantities | L14: =1-L13 -> 0.3320705162 | M14: =M8*L14 -> 5965578.089 | N14: =N8-N13 -> 9728720.889 | P14: RPPULOOVN | Q14: 0 | R14: 0 | S14: 0.03430000067 | T14: 0.03430000067 | U14: -0.03430000067 | V14: 0 | W14: 0 | X14: 0 | Y14: 0 | Z14: 0
K15: Estimated Retail Revenue kWh Volumes | L15: =+L13+L14 -> 1 | M15: =+M13+M14 -> 17964793.01 | N15: =+N13+N14 -> 21727935.81 | V15: =SUM(V6:V14) -> 11999214.92 | W15: =SUM(W6:W14) -> 1104677.166 | X15: =SUM(X6:X14) -> 645656.2654 | Y15: =SUM(Y6:Y14) -> 411573.0798 | Z15: =SUM(Z6:Z14) -> 47447.82046
B16: bill_year | C16: 2022
B17: bill_month | C17: 12 | K17: Estimated RPP Revenue Volume and Price Data | L17: Actual % | M17: kWh Volumes
K18: RPPT1 | L18: =C21/SUM($C$21:$C$26) -> 0.1248129915 | M18: =$M$13*L18 -> 1497657.91
B19: Row Labels | C19: usagebilled | D19: amountbilled | E19: Rate | K19: RPPT2 | L19: =C22/SUM($C$21:$C$26) -> 0.02573193283 | M19: =$M$13*L19 -> 308762.9923
B20: RPPTIER | K20: RPPTOUMID | L20: =C24/SUM($C$21:$C$26) -> 0.1445620148 | M20: 1734630.685
B21: RPPT1 | C21: 1449704.992 | D21: 126124.9197 | E21: =D21/C21 -> 0.08700040379 | K21: RPPTOUOFF | L21: =C25/SUM($C$21:$C$26) -> 0.5536238289 | M21: 6643051.309
B22: RPPT2 | C22: 298876.8319 | D22: 30784.29274 | E22: 0.1029999299 | K22: RPPTOUON | L22: 0.1512692319 | M22: 1815112.025
B23: RPPTOU | K23: RPPULOMID | L23: 0 | M23: 0
B24: RPPTOUMID | C24: 1679090.23 | D24: 171262.1639 | E24: 0.1019969986 | K24: RPPULOOFF | L24: 0 | M24: 0
B25: RPPTOUOFF | C25: 6430350.07 | D25: 475830.8758 | E25: 0.07399766274 | K25: RPPULOON | L25: 0 | M25: 0
B26: RPPTOUON | C26: 1756994.669 | D26: 265304.6912 | E26: 0.1509991441 | K26: RPPULOOVN | L26: 0 | M26: 0
B27: RETAIL | L27: =SUM(L18:L26) -> 1 | M27: =SUM(M18:M26) -> 11999214.92
B28: NSLS | C28: 3436618.364 | D28: 189953.8516 | E28: 0.0552734786
B29: INTERVAL
B30: HOEP | C30: 6101093.033 | D30: 333793.5727 | E30: 0.05471045448
B31: Grand Total | C31: 21152728.19 | D31: 1593054.368 | E31: 0.07531200483 | K31: Global Adjustment | L31: per kWh
C32: =C31/C11-1 -> -0.02647318293 | K32: Class B - GA actual8 | L32: =B69/100 -> 0.03430000067 | N32: GA Posted Price
K33: Class B - GA actual IESO billed | L33: =+M33/M8 -> 0.03426832581 | M33: =B76 -> 615623.38 | N33: GA Billed by IESO CT 148
A38: RPP COP Volume and Price Data
B39: bill_year | C39: 2022
B40: bill_month | C40: 12
B42: Row Labels | C42: usagebilled | D42: amountbilled | E42: Rate
B43: RPPTIERED | C43: 1385150.982 | D43: 74963.49026 | E43: =D43/C43 -> 0.05411936404
B44: RPPTOU | C44: 9866157.04 | D44: 530336.1763 | E44: 0.05375306456
B45: Grand Total | C45: 11251308.02 | D45: 605299.6666
C47: =SUM(C21:C26)-C45 -> 363708.7709
C48: =C47/C45 -> 0.03232591004
A60: Year | B60: 2022
A62: Class A | B62: Value
A63: kWh
A64: 202212 | B64: 3763142.8
A67: ga_actual | B67: year
A68: month | B68: 2022
A69: 202212 | B69: 3.430000067
A72: chargetype | B72: 148
A74: Sum of chargeamount | B74: year
A75: month | B75: 2022
A76: 202212 | B76: 615623.38

Sheet I25 Input Rev 12 Init
A1: Reverse IESO Posted
A5: =Admin!B41 -> 202212
A6: RPP Revenue Prices | B6: kWh Volumes | C6: $ RPP Settlement
A7: RPPTiered_1 | B7: 822235.84 | C7: 10871.9
A8: RPPTiered_2 | B8: 198450.94 | C8: -800.24
A9: RPPTOU_MID | B9: 1563852.26 | C9: -5152.41
A10: RPPTOU_OFF | B10: 4936617.72 | C10: 124916.73
A11: RPPTOU_ON | B11: 1635224.76 | C11: -87736.77
A12: Grand Total | B12: 9156381.52 | C12: 42099.21

Sheet Rec1 1588 Commodity
A1: Lakefront Utilities Inc.
A2: =ProcessYear[Process Year]& " 1588 Commodity RSVA" -> 2022 1588 Commodity RSVA
A3: Commodity
B5: 4006-4055 | E5: 4705 | L5: 1588
B6: GL Revenue | C6: Unbilled | D6: Total Revenue | E6: Energy Cost (code 101) | F6: RPP GA (code 148) | G6: IESO RPP Settlement | H6: FIT/mFIT | I6: Misc | J6: IESO Code 118 - Energy Rebate | K6: Total Cost | L6: Variance | M6: Y.T.D. | N6: G.L. Balance
A7: Opening Balance
A8: January | B8: -1489690.54 | C8: =D8-B8 -> -104911.0505 | D8: =-'I1a ER Summary'!AF5 -> -1594601.591 | E8: ='I1a ER Summary'!K5 -> 1103037.86 | F8: ='I1a ER Summary'!E5 -> 520745.6757 | G8: ='I1a ER Summary'!F5 -> 95251.05651 | H8: ='I1a ER Summary'!M5 -> 6028.74 | K8: =SUM(E8:J8) -> 1725063.332 | L8: =D8+K8 -> 130461.7417 | M8: =L8 -> 130461.7417 | N8: =N7+L8 -> 130461.7417
A9: February | B9: -1586858.87 | C9: =D9-B9 -> -24732.13001 | D9: =-'I1a ER Summary'!AF6 -> -1611591 | E9: ='I1a ER Summary'!K6 -> 906990.38 | F9: ='I1a ER Summary'!E6 -> 597285.1063 | G9: ='I1a ER Summary'!F6 -> 31741.9864 | H9: ='I1a ER Summary'!M6 -> 10245.39 | K9: 1546262.863 | L9: -65328.1373 | M9: =M8+L9 -> 65133.60436 | N9: =N8+L9 -> 65133.60436
A10: March | B10: -1625953.15 | C10: 20656.75857 | D10: =-'I1a ER Summary'!AF7 -> -1605296.391 | E10: ='I1a ER Summary'!K7 -> 888860.74 | F10: ='I1a ER Summary'!E7 -> 645659.6323 | G10: ='I1a ER Summary'!F7 -> 62477.5406 | H10: ='I1a ER Summary'!M7 -> 15895.25 | K10: 1612893.163 | L10: 7596.771483 | M10: =M9+L10 -> 72730.37584 | N10: 72730.37584
A11: April | B11: -1608264.68 | C11: 354979.4357 | D11: =-'I1a ER Summary'!AF8 -> -1253285.244 | E11: ='I1a ER Summary'!K8 -> 574730.45 | F11: ='I1a ER Summary'!E8 -> 746187.5913 | G11: ='I1a ER Summary'!F8 -> -77847.74177 | H11: ='I1a ER Summary'!M8 -> 20430.02 | K11: 1263500.32 | L11: 10215.07527 | M11: 82945.45112 | N11: 82945.45112
A12: May | B12: -1281071.99 | C12: 52934.15666 | D12: =-'I1a ER Summary'!AF9 -> -1228137.833 | E12: ='I1a ER Summary'!K9 -> 637919.72 | F12: ='I1a ER Summary'!E9 -> 699526.1414 | G12: ='I1a ER Summary'!F9 -> -106944.6899 | H12: ='I1a ER Summary'!M9 -> 28878.52 | K12: 1259379.692 | L12: 31241.85818 | M12: 114187.3093 | N12: 114187.3093
A13: June | B13: -1200294.56 | C13: -122562.892 | D13: =-'I1a ER Summary'!AF10 -> -1322857.452 | E13: ='I1a ER Summary'!K10 -> 748397.89 | F13: ='I1a ER Summary'!E10 -> 675522.5503 | G13: ='I1a ER Summary'!F10 -> -119745.3084 | H13: ='I1a ER Summary'!M10 -> 34875.12 | K13: 1339050.252 | L13: 16192.79989 | M13: 130380.1092 | N13: 130380.1092
A14: July | B14: -1329125.05 | C14: -435462.1443 | D14: =-'I1a ER Summary'!AF11 -> -1764587.194 | E14: ='I1a ER Summary'!K11 -> 1286544.3 | F14: ='I1a ER Summary'!E11 -> 415890.6124 | G14: ='I1a ER Summary'!F11 -> 4387.023462 | H14: ='I1a ER Summary'!M11 -> 54788.11 | K14: 1761610.046 | L14: -2977.148482 | M14: 127402.9607 | N14: 127402.9607
A15: August | B15: -1717881.59 | C15: -427337.4022 | D15: =-'I1a ER Summary'!AF12 -> -2145218.992 | E15: ='I1a ER Summary'!K12 -> 1943497.44 | F15: ='I1a ER Summary'!E12 -> 54604.18773 | G15: ='I1a ER Summary'!F12 -> 164924.408 | H15: ='I1a ER Summary'!M12 -> 74832.4 | K15: 2237858.436 | L15: 92639.44352 | M15: 220042.4042 | N15: 220042.4042
A16: September | B16: -2163448.72 | C16: 581787.8406 | D16: =-'I1a ER Summary'!AF13 -> -1581660.879 | E16: ='I1a ER Summary'!K13 -> 1188438.71 | F16: ='I1a ER Summary'!E13 -> 272378.7953 | G16: ='I1a ER Summary'!F13 -> 67104.59728 | H16: ='I1a ER Summary'!M13 -> 43035.24 | K16: 1570957.343 | L16: -10703.53678 | M16: 209338.8674 | N16: 209338.8674
A17: October | B17: -1625828.35 | C17: 272750.184 | D17: =-'I1a ER Summary'!AF14 -> -1353078.166 | E17: ='I1a ER Summary'!K14 -> 865607.42 | F17: ='I1a ER Summary'!E14 -> 486017.5986 | G17: ='I1a ER Summary'!F14 -> 945.9063519 | H17: ='I1a ER Summary'!M14 -> 23771.42 | K17: 1376342.345 | L17: 23264.17896 | M17: 232603.0464 | N17: 232603.0464
A18: November | B18: -1331708.2 | C18: 65883.71974 | D18: =-'I1a ER Summary'!AF15 -> -1265824.48 | E18: ='I1a ER Summary'!K15 -> 669517.77 | F18: ='I1a ER Summary'!E15 -> 601586.9928 | G18: ='I1a ER Summary'!F15 -> -89365.74115 | H18: ='I1a ER Summary'!M15 -> 8086.32 | K18: 1189825.342 | L18: -75999.13862 | M18: 156603.9078 | N18: 156603.9078
A19: December | B19: -1255009.15 | C19: -338045.2176 | D19: =-'I1a ER Summary'!AF16 -> -1593054.368 | E19: ='I1a ER Summary'!K16 -> 1211664.07 | F19: ='I1a ER Summary'!E16 -> 411573.0798 | G19: ='I1a ER Summary'!F16 -> 47447.82046 | H19: ='I1a ER Summary'!M16 -> 4657.42 | K19: 1675342.39 | L19: 82288.02263 | M19: 238891.9304 | N19: 238891.9304
B20: =SUM(B8:B19) -> -18215134.85 | C20: =SUM(C8:C19) -> -104058.7413 | D20: -18319193.59 | E20: 12025206.75 | F20: 6126977.964 | G20: 80376.85785 | H20: 325523.95 | I20: 0 | J20: 0 | K20: 18558085.52 | L20: 238891.9304
A22: Per GL | F22: 6634219.67 | G22: 76850.27
A23: Adjustments | F23: =F20-F22 -> -507241.7061 | G23: =G20-G22 -> 3526.587854
F25: 4705-0002 | G25: 4705-0001

Sheet Rec2 1589 Class B
A1: Lakefront Utilities Inc.
A2: =ProcessYear[Process Year]& " 1589 ClassB RSVA" -> 2022 1589 ClassB RSVA
A3: Global Adjustment Class B Only
B5: 4006-4055 | E5: 4707 | K5: 1589
B6: Revenue - Class B only | C6: Unbilled | D6: Total Revenue | E6: IESO Code 148 | F6: RPP GA (code 148) | G6: Class B GA (Code 148) | H6: Class B Deferral | I6: Misc | J6: Class B GA | K6: Variance | L6: Y.T.D. | M6: G.L. Balance
A7: Opening Balance
A8: January | B8: -329376.64 | C8: =D8-B8 -> 21196.96968 | D8: -308179.6703 | E8: ='I1a ER Summary'!Q5 -> 855471.19 | F8: =-'Rec1 1588 Commodity'!F8 -> -520745.6757 | G8: =E8+F8 -> 334725.5143 | J8: =SUM(G8:I8) -> 334725.5143 | K8: =D8+J8 -> 26545.84398 | L8: =K8 -> 26545.84398 | M8: =M7+K8 -> 26545.84398
A9: February | B9: -310891.95 | C9: =D9-B9 -> -26048.74035 | D9: -336940.6904 | E9: ='I1a ER Summary'!Q6 -> 894892.81 | F9: =-'Rec1 1588 Commodity'!F9 -> -597285.1063 | G9: =E9+F9 -> 297607.7037 | J9: =SUM(G9:I9) -> 297607.7037 | K9: =D9+J9 -> -39332.98667 | L9: =L8+K9 -> -12787.14269 | M9: =M8+K9 -> -12787.14269
A10: March | B10: -359744.06 | C10: -449.5917659 | D10: -360193.6518 | E10: ='I1a ER Summary'!Q7 -> 1039095.69 | F10: =-'Rec1 1588 Commodity'!F10 -> -645659.6323 | G10: 393436.0577 | J10: 393436.0577 | K10: 33242.40592 | L10: =L9+K10 -> 20455.26323 | M10: 20455.26323
A11: April | B11: -349797.85 | C11: 14311.17795 | D11: -335486.672 | E11: ='I1a ER Summary'!Q8 -> 1225503.02 | F11: =-'Rec1 1588 Commodity'!F11 -> -746187.5913 | G11: 479315.4287 | J11: 479315.4287 | K11: 143828.7566 | L11: 164284.0199 | M11: 164284.0199
A12: May | B12: -346904.78 | C12: -13184.13915 | D12: -360088.9192 | E12: ='I1a ER Summary'!Q9 -> 1205257.49 | F12: =-'Rec1 1588 Commodity'!F12 -> -699526.1414 | G12: 505731.3486 | J12: 505731.3486 | K12: 145642.4295 | L12: 309926.4493 | M12: 309926.4493
A13: June | B13: -348932.27 | C13: -153756.7787 | D13: -502689.0487 | E13: ='I1a ER Summary'!Q10 -> 1167237.5 | F13: =-'Rec1 1588 Commodity'!F13 -> -675522.5503 | G13: 491714.9497 | J13: 491714.9497 | K13: -10974.09895 | L13: 298952.3504 | M13: 298952.3504
A14: July | B14: -505349.42 | C14: -41279.26158 | D14: -546628.6816 | E14: ='I1a ER Summary'!Q11 -> 681398.01 | F14: =-'Rec1 1588 Commodity'!F14 -> -415890.6124 | G14: 265507.3976 | J14: 265507.3976 | K14: -281121.284 | L14: 17831.06642 | M14: 17831.06642
A15: August | B15: -553555.24 | C15: 206406.036 | D15: -347149.204 | E15: ='I1a ER Summary'!Q12 -> 90717.34 | F15: =-'Rec1 1588 Commodity'!F15 -> -54604.18773 | G15: 36113.15227 | J15: 36113.15227 | K15: -311036.0517 | L15: -293204.9853 | M15: -293204.9853
A16: September | B16: -353909.52 | C16: 107434.3624 | D16: -246475.1576 | E16: ='I1a ER Summary'!Q13 -> 476593.5 | F16: =-'Rec1 1588 Commodity'!F16 -> -272378.7953 | G16: 204214.7047 | J16: 204214.7047 | K16: -42260.45291 | L16: -335465.4382 | M16: -335465.4382
A17: October | B17: -250327.9 | C17: 211569.6348 | D17: -38758.26517 | E17: ='I1a ER Summary'!Q14 -> 842405.45 | F17: =-'Rec1 1588 Commodity'!F17 -> -486017.5986 | G17: 356387.8514 | J17: 356387.8514 | K17: 317629.5862 | L17: -17835.85194 | M17: -17835.85194
A18: November | B18: -38144.21 | C18: -265137.9829 | D18: -303282.1929 | E18: ='I1a ER Summary'!Q15 -> 1112296.4 | F18: =-'Rec1 1588 Commodity'!F18 -> -601586.9928 | G18: 510709.4072 | J18: 510709.4072 | K18: 207427.2143 | L18: 189591.3623 | M18: 189591.3623
A19: December | B19: -300608.68 | C19: -82887.2147 | D19: -383495.8947 | E19: ='I1a ER Summary'!Q16 -> 615623.38 | F19: =-'Rec1 1588 Commodity'!F19 -> -411573.0798 | G19: 204050.3002 | J19: 204050.3002 | K19: -179445.5945 | L19: 10145.76782 | M19: 10145.76782
B20: =SUM(B8:B19) -> -4047542.52 | C20: -21825.5283 | D20: -4069368.048 | E20: 10206491.78 | F20: -6126977.964 | G20: 4079513.816 | H20: 0 | I20: 0 | J20: 4079513.816 | K20: 10145.76782
A22: Per GL | J22: 3572272.84
A23: Adjustments | J23: =J20-J22 -> 507240.9761
J25: 4707-0000

Sheet Rev1UFE
A1: Lakefront Utilities Inc.
A2: 2023 RSVA
A3: Unaccounted for Energy Summary For USoA 1588
C5: Total Energy Purchases | D5: Total Retail Sales | E5: Uaccounted for Energy | F5: UFE | G5: Total Energy Purchases | H5: Total Retail Sales | I5: UFE | J5: UFE | N5: Energy Purchases RPP and non-RPP | P5: RPP Settlement Amounts | T5: Energy Sales Revenue | V5: Energy Sales Volumes | X5: Energy Sales/kWh
B6: Version | C6: kWH | D6: kWh | E6: kWh | F6: % | G6: $ Amount | H6: $ Amount | I6: $ Amount | J6: % | K6: Revenue Per kWh | L6: UFE $ Cost per kWh | N6: Energy for RPP and non-RPP | O6: Final GA for RPP | P6: Initial Settlement | Q6: First True-Up | R6: Final True-Up | S6: RPP Settlement Amount | T6: RPP Sales | U6: Non-RPP Sales | V6: RPP kWh | W6: Non-RPP kWH | X6: RPP | Y6: Non-RPP
A7: January | B7: Final | C7: ='I1a ER Summary'!S5 -> 24832844.84 | D7: ='I1a ER Summary'!T5 -> 23589286.32 | E7: =+C7-D7 -> 1243558.52 | F7: =+E7/C7 -> 0.05007716707 | G7: =+N7+O7+S7 -> 1725063.332 | H7: =+T7+U7 -> 1594601.591 | I7: =+G7-H7 -> 130461.7417 | J7: =+I7/G7 -> 0.07562721856 | K7: =+H7/D7 -> 0.06759855169 | L7: =+I7/E7 -> 0.1049100139 | N7: ='I1a ER Summary'!O5 -> 1109066.6 | O7: ='I1a ER Summary'!E5 -> 520745.6757 | P7: 0 | Q7: 0 | R7: ='I1a ER Summary'!F5 -> 95251.05651 | S7: =SUM(P7:R7) -> 95251.05651 | T7: ='I1a ER Summary'!C5 -> 1129443.382 | U7: ='I1a ER Summary'!AH5 -> 465158.2084 | V7: ='I1a ER Summary'!AJ5 -> 11211768.91 | W7: ='I1a ER Summary'!AK5 -> 12377517.41 | X7: =+T7/V7 -> 0.1007373048 | Y7: 0.03758089711
A8: February | B8: Final | C8: ='I1a ER Summary'!S6 -> 22410006.21 | D8: ='I1a ER Summary'!T6 -> 23175841.15 | E8: =+C8-D8 -> -765834.9376 | F8: =+E8/C8 -> -0.03417379408 | G8: =+N8+O8+S8 -> 1546262.863 | H8: =+T8+U8 -> 1611591 | I8: =+G8-H8 -> -65328.1373 | J8: =+I8/G8 -> -0.04224905019 | K8: =+H8/D8 -> 0.06953754083 | L8: 0.08530315619 | N8: ='I1a ER Summary'!O6 -> 917235.77 | O8: ='I1a ER Summary'!E6 -> 597285.1063 | P8: 0 | Q8: 0 | R8: ='I1a ER Summary'!F6 -> 31741.9864 | S8: 31741.9864 | T8: ='I1a ER Summary'!C6 -> 1102783.676 | U8: ='I1a ER Summary'!AH6 -> 508807.3243 | V8: ='I1a ER Summary'!AJ6 -> 11887577.87 | W8: ='I1a ER Summary'!AK6 -> 11288263.28 | X8: 0.09276773521 | Y8: 0.04507401286
A9: March | B9: Final | C9: ='I1a ER Summary'!S7 -> 23577080.87 | D9: ='I1a ER Summary'!T7 -> 23333231.19 | E9: 243849.6848 | F9: 0.01034265803 | G9: 1612893.163 | H9: 1605296.391 | I9: 7596.771483 | J9: 0.004710027705 | K9: 0.06879871796 | L9: 0.03115350134 | N9: ='I1a ER Summary'!O7 -> 904755.99 | O9: ='I1a ER Summary'!E7 -> 645659.6323 | P9: 0 | Q9: 0 | R9: ='I1a ER Summary'!F7 -> 62477.5406 | S9: 62477.5406 | T9: ='I1a ER Summary'!C7 -> 1136877.916 | U9: ='I1a ER Summary'!AH7 -> 468418.4751 | V9: ='I1a ER Summary'!AJ7 -> 10718127.15 | W9: ='I1a ER Summary'!AK7 -> 12615104.04 | X9: 0.1060705756 | Y9: 0.03713155863
A10: April | B10: Final | C10: ='I1a ER Summary'!S8 -> 20377542.12 | D10: ='I1a ER Summary'!T8 -> 20181338.08 | E10: 196204.0357 | F10: 0.009628444615 | G10: 1263500.32 | H10: 1253285.244 | I10: 10215.07527 | J10: 0.008084742929 | K10: 0.06210119661 | L10: 0.05206353294 | N10: ='I1a ER Summary'!O8 -> 595160.47 | O10: ='I1a ER Summary'!E8 -> 746187.5913 | P10: 0 | Q10: 0 | R10: ='I1a ER Summary'!F8 -> -77847.74177 | S10: -77847.74177 | T10: ='I1a ER Summary'!C8 -> 935635.5154 | U10: ='I1a ER Summary'!AH8 -> 317649.7289 | V10: ='I1a ER Summary'!AJ8 -> 8881239.85 | W10: ='I1a ER Summary'!AK8 -> 11300098.23 | X10: 0.1053496506 | Y10: 0.02811035111
A11: May | B11: Final | C11: ='I1a ER Summary'!S9 -> 20113729.9 | D11: ='I1a ER Summary'!T9 -> 19886600.45 | E11: 227129.4542 | F11: 0.01129225933 | G11: 1259379.692 | H11: 1228137.833 | I11: 31241.85818 | J11: 0.0248073384 | K11: 0.06175705278 | L11: 0.1375508883 | N11: ='I1a ER Summary'!O9 -> 666798.24 | O11: ='I1a ER Summary'!E9 -> 699526.1414 | P11: 0 | Q11: 0 | R11: ='I1a ER Summary'!F9 -> -106944.6899 | S11: -106944.6899 | T11: ='I1a ER Summary'!C9 -> 860359.9351 | U11: ='I1a ER Summary'!AH9 -> 367777.8982 | V11: ='I1a ER Summary'!AJ9 -> 8117374.419 | W11: ='I1a ER Summary'!AK9 -> 11769226.03 | X11: 0.1059899286 | Y11: 0.03124911505
A12: June | B12: Final | C12: ='I1a ER Summary'!S10 -> 20340619.36 | D12: ='I1a ER Summary'!T10 -> 20079632.99 | E12: 260986.374 | F12: 0.01283079779 | G12: 1339050.252 | H12: 1322857.452 | I12: 16192.79989 | J12: 0.01209274997 | K12: 0.06588055932 | L12: 0.06204461803 | N12: ='I1a ER Summary'!O10 -> 783273.01 | O12: ='I1a ER Summary'!E10 -> 675522.5503 | P12: 0 | Q12: 0 | R12: ='I1a ER Summary'!F10 -> -119745.3084 | S12: -119745.3084 | T12: ='I1a ER Summary'!C10 -> 902580.0904 | U12: ='I1a ER Summary'!AH10 -> 420277.3616 | V12: ='I1a ER Summary'!AJ10 -> 8432508.484 | W12: ='I1a ER Summary'!AK10 -> 11647124.5 | X12: 0.1070357761 | Y12: 0.03608421645
A13: July | B13: Final | C13: ='I1a ER Summary'!S11 -> 21889930.11 | D13: ='I1a ER Summary'!T11 -> 21629578.86 | E13: 260351.2507 | F13: 0.01189365381 | G13: 1761610.046 | H13: 1764587.194 | I13: -2977.148482 | J13: -0.001690015614 | K13: 0.0815821337 | L13: -0.01143512265 | N13: ='I1a ER Summary'!O11 -> 1341332.41 | O13: ='I1a ER Summary'!E11 -> 415890.6124 | P13: 0 | Q13: 0 | R13: ='I1a ER Summary'!F11 -> 4387.023462 | S13: 4387.023462 | T13: ='I1a ER Summary'!C11 -> 1090047.708 | U13: ='I1a ER Summary'!AH11 -> 674539.4864 | V13: ='I1a ER Summary'!AJ11 -> 10212520.89 | W13: ='I1a ER Summary'!AK11 -> 11417057.97 | X13: 0.1067363993 | Y13: 0.05908172562
A14: August | B14: Final | C14: ='I1a ER Summary'!S12 -> 23284833.02 | D14: ='I1a ER Summary'!T12 -> 22761801.77 | E14: 523031.2455 | F14: 0.02246231464 | G14: 2237858.436 | H14: 2145218.992 | I14: 92639.44352 | J14: 0.04139647175 | K14: 0.09424644909 | L14: 0.1771202855 | N14: ='I1a ER Summary'!O12 -> 2018329.84 | O14: ='I1a ER Summary'!E12 -> 54604.18773 | P14: 0 | Q14: 0 | R14: ='I1a ER Summary'!F12 -> 164924.408 | S14: 164924.408 | T14: ='I1a ER Summary'!C12 -> 1160210.989 | U14: ='I1a ER Summary'!AH12 -> 985008.003 | V14: ='I1a ER Summary'!AJ12 -> 10605807.55 | W14: ='I1a ER Summary'!AK12 -> 12155994.22 | X14: 0.1093939319 | Y14: 0.08103064092
A15: September | B15: Final | C15: ='I1a ER Summary'!S13 -> 20056938.22 | D15: ='I1a ER Summary'!T13 -> 20036824.19 | E15: 20114.02921 | F15: 0.001002846446 | G15: 1570957.343 | H15: 1581660.879 | I15: -10703.53678 | J15: -0.006813384736 | K15: 0.07893770312 | L15: -0.5321428474 | N15: ='I1a ER Summary'!O13 -> 1231473.95 | O15: ='I1a ER Summary'!E13 -> 272378.7953 | P15: 0 | Q15: 0 | R15: ='I1a ER Summary'!F13 -> 67104.59728 | S15: 67104.59728 | T15: ='I1a ER Summary'!C13 -> 881173.5314 | U15: ='I1a ER Summary'!AH13 -> 700487.348 | V15: ='I1a ER Summary'!AJ13 -> 8395254.637 | W15: ='I1a ER Summary'!AK13 -> 11641569.55 | X15: 0.1049609058 | Y15: 0.06017121186
A16: October | B16: Final | C16: ='I1a ER Summary'!S14 -> 19547181.39 | D16: ='I1a ER Summary'!T14 -> 19366628.19 | E16: 180553.1967 | F16: 0.009236789338 | G16: 1376342.345 | H16: 1353078.166 | I16: 23264.17896 | J16: 0.0169029014 | K16: 0.06986648127 | L16: 0.1288494437 | N16: ='I1a ER Summary'!O14 -> 889378.84 | O16: ='I1a ER Summary'!E14 -> 486017.5986 | P16: 0 | Q16: 0 | R16: ='I1a ER Summary'!F14 -> 945.9063519 | S16: 945.9063519 | T16: ='I1a ER Summary'!C14 -> 865223.9805 | U16: ='I1a ER Summary'!AH14 -> 487854.1855 | V16: ='I1a ER Summary'!AJ14 -> 8319001.053 | W16: ='I1a ER Summary'!AK14 -> 11047627.14 | X16: 0.1040057544 | Y16: 0.04415918271
A17: November | B17: Final | C17: ='I1a ER Summary'!S15 -> 20966058.2 | D17: ='I1a ER Summary'!T15 -> 22362843.5 | E17: -1396785.304 | F17: -0.06662126428 | G17: 1189825.342 | H17: 1265824.48 | I17: -75999.13862 | J17: -0.0638741973 | K17: 0.05660391444 | L17: 0.05441003595 | N17: ='I1a ER Summary'!O15 -> 677604.09 | O17: ='I1a ER Summary'!E15 -> 601586.9928 | P17: 0 | Q17: 0 | R17: ='I1a ER Summary'!F15 -> -89365.74115 | S17: -89365.74115 | T17: ='I1a ER Summary'!C15 -> 819973.1724 | U17: ='I1a ER Summary'!AH15 -> 445851.3079 | V17: ='I1a ER Summary'!AJ15 -> 7691654.069 | W17: ='I1a ER Summary'!AK15 -> 14671189.44 | X17: 0.1066055708 | Y17: 0.03038958156
A18: December | B18: Final | C18: ='I1a ER Summary'!S16 -> 21727935.81 | D18: ='I1a ER Summary'!T16 -> 21152728.19 | E18: 575207.6193 | F18: 0.02647318293 | G18: 1675342.39 | H18: 1593054.368 | I18: 82288.02263 | J18: 0.04911713755 | K18: 0.07531200483 | L18: 0.1430579496 | N18: ='I1a ER Summary'!O16 -> 1216321.49 | O18: ='I1a ER Summary'!E16 -> 411573.0798 | P18: 0 | Q18: 0 | R18: ='I1a ER Summary'!F16 -> 47447.82046 | S18: 47447.82046 | T18: ='I1a ER Summary'!C16 -> 1104677.166 | U18: ='I1a ER Summary'!AH16 -> 488377.202 | V18: ='I1a ER Summary'!AJ16 -> 9858022.124 | W18: ='I1a ER Summary'!AK16 -> 11294706.07 | X18: 0.1120587022 | Y18: 0.04323947866
A19: Total | C19: =SUM(C7:C18) -> 259124700.1 | D19: =SUM(D7:D18) -> 257556334.9 | E19: =SUM(E7:E18) -> 1568365.168 | F19: 0.006052549864 | G19: =SUM(G7:G18) -> 18558085.52 | H19: =SUM(H7:H18) -> 18319193.59 | I19: =SUM(I7:I18) -> 238891.9304 | J19: 0.01287266028 | K19: 0.0711269385 | L19: 0.1523190742 | N19: =SUM(N7:N18) -> 12350730.7 | O19: 6126977.964 | P19: 0 | Q19: 0 | R19: 80376.85785 | S19: 80376.85785 | T19: 11382095.66 | U19: 3626059.63 | V19: 114330857 | W19: 143225477.9 | X19: 0.09955401335 | Y19: 0.02531714108

Sheet Rev2 GA Purchases
A1: Lakefront Utilities Inc.
A2: 2023 RSVA
A3: Non-RPP Global Adjustment
B5: Non-RPP Class B GA | E5: RPP Class B GA | H5: Total Class B GA | M5: GA non-RPP Cost Amounts Booked
B6: Cost Amount | C6: kWh | D6: Avg Cost | E6: Cost Amount | F6: kWh | G6: Avg Cost | H6: Cost Amount | I6: kWh | J6: Avg Cost | M6: G/L 4707 | N6: True-Ups | O6: Total | P6: Difference
A7: January | B7: ='Rec2 1589 Class B'!J8 -> 334725.5143 | C7: ='I1a ER Summary'!AK5 -> 12377517.41 | D7: =+B7/C7 -> 0.02704302512 | E7: ='Rec1 1588 Commodity'!F8 -> 520745.6757 | F7: ='I1a ER Summary'!AJ5 -> 11211768.91 | G7: =+E7/F7 -> 0.04644634402 | H7: =+B7+E7 -> 855471.19 | I7: 23589286.32 | J7: =+H7/I7 -> 0.03626524255 | M7: 368354.797 | O7: =+M7+N7 -> 368354.797 | P7: =+O7-B7 -> 33629.28267
A8: February | B8: ='Rec2 1589 Class B'!J9 -> 297607.7037 | C8: ='I1a ER Summary'!AK6 -> 11288263.28 | D8: 0.0263643482 | E8: ='Rec1 1588 Commodity'!F9 -> 597285.1063 | F8: ='I1a ER Summary'!AJ6 -> 11887577.87 | G8: 0.05024447478 | H8: 894892.81 | I8: 23175841.15 | J8: 0.038613175 | M8: 517400.4514 | O8: =+M8+N8 -> 517400.4514 | P8: 219792.7477
A9: March | B9: ='Rec2 1589 Class B'!J10 -> 393436.0577 | C9: ='I1a ER Summary'!AK7 -> 12615104.04 | D9: 0.03118769822 | E9: ='Rec1 1588 Commodity'!F10 -> 645659.6323 | F9: ='I1a ER Summary'!AJ7 -> 10718127.15 | G9: 0.06023996761 | H9: 1039095.69 | I9: 23333231.19 | J9: 0.04453286738 | M9: 550805.5586 | O9: =+N9+M9 -> 550805.5586 | P9: 157369.5009
A10: April | B10: ='Rec2 1589 Class B'!J11 -> 479315.4287 | C10: ='I1a ER Summary'!AK8 -> 11300098.23 | D10: 0.04241692583 | E10: ='Rec1 1588 Commodity'!F11 -> 746187.5913 | F10: ='I1a ER Summary'!AJ8 -> 8881239.85 | G10: 0.08401840327 | H10: 1225503.02 | I10: 20181338.08 | J10: 0.06072456717 | M10: 582775.4046 | O10: 582775.4046 | P10: 103459.9759
A11: May | B11: ='Rec2 1589 Class B'!J12 -> 505731.3486 | C11: ='I1a ER Summary'!AK9 -> 11769226.03 | D11: 0.04297065478 | E11: ='Rec1 1588 Commodity'!F12 -> 699526.1414 | F11: ='I1a ER Summary'!AJ9 -> 8117374.419 | G11: 0.0861764045 | H11: 1205257.49 | I11: 19886600.45 | J11: 0.06060651207 | M11: 606116.3272 | O11: 606116.3272 | P11: 100384.9786
A12: June | B12: ='Rec2 1589 Class B'!J13 -> 491714.9497 | C12: ='I1a ER Summary'!AK10 -> 11647124.5 | D12: 0.04221771216 | E12: ='Rec1 1588 Commodity'!F13 -> 675522.5503 | F12: ='I1a ER Summary'!AJ10 -> 8432508.484 | G12: 0.08010932353 | H12: 1167237.5 | I12: 20079632.99 | J12: 0.05813042005 | M12: 513680.4991 | O12: 513680.4991 | P12: 21965.54936
A13: July | B13: ='Rec2 1589 Class B'!J14 -> 265507.3976 | C13: ='I1a ER Summary'!AK11 -> 11417057.97 | D13: 0.02325532535 | E13: ='Rec1 1588 Commodity'!F14 -> 415890.6124 | F13: ='I1a ER Summary'!AJ11 -> 10212520.89 | G13: 0.04072359968 | H13: 681398.01 | I13: 21629578.86 | J13: 0.03150306413 | M13: 337855.3545 | O13: 337855.3545 | P13: 72347.95689
A14: August | B14: ='Rec2 1589 Class B'!J15 -> 36113.15227 | C14: ='I1a ER Summary'!AK12 -> 12155994.22 | D14: 0.002970810253 | E14: ='Rec1 1588 Commodity'!F15 -> 54604.18773 | F14: ='I1a ER Summary'!AJ12 -> 10605807.55 | G14: 0.005148517684 | H14: 90717.34 | I14: 22761801.77 | J14: 0.003985507865 | M14: 484646.4102 | O14: 484646.4102 | P14: 448533.2579
A15: September | B15: ='Rec2 1589 Class B'!J16 -> 204214.7047 | C15: ='I1a ER Summary'!AK13 -> 11641569.55 | D15: 0.01754185325 | E15: ='Rec1 1588 Commodity'!F16 -> 272378.7953 | F15: ='I1a ER Summary'!AJ13 -> 8395254.637 | G15: 0.03244437567 | H15: 476593.5 | I15: 20036824.19 | J15: 0.02378588021 | M15: 351972.6143 | O15: 351972.6143 | P15: 147757.9096
A16: October | B16: ='Rec2 1589 Class B'!J17 -> 356387.8514 | C16: ='I1a ER Summary'!AK14 -> 11047627.14 | D16: 0.03225922154 | E16: ='Rec1 1588 Commodity'!F17 -> 486017.5986 | F16: ='I1a ER Summary'!AJ14 -> 8319001.053 | G16: 0.0584225913 | H16: 842405.45 | I16: 19366628.19 | J16: 0.04349778607 | M16: 508645.545 | O16: 508645.545 | P16: 152257.6936
A17: November | B17: ='Rec2 1589 Class B'!J18 -> 510709.4072 | C17: ='I1a ER Summary'!AK15 -> 14671189.44 | D17: 0.03481036145 | E17: ='Rec1 1588 Commodity'!F18 -> 601586.9928 | F17: ='I1a ER Summary'!AJ15 -> 7691654.069 | G17: 0.0782129549 | H17: 1112296.4 | I17: 22362843.5 | J17: 0.04973859428 | M17: 446213.3479 | O17: 446213.3479 | P17: -64496.05928
A18: December | B18: ='Rec2 1589 Class B'!J19 -> 204050.3002 | C18: ='I1a ER Summary'!AK16 -> 11294706.07 | D18: 0.01806601243 | E18: ='Rec1 1588 Commodity'!F19 -> 411573.0798 | F18: ='I1a ER Summary'!AJ16 -> 9858022.124 | G18: 0.04175006656 | H18: 615623.38 | I18: 21152728.19 | J18: 0.02910373425 | M18: 408485.058 | O18: 408485.058 | P18: 204434.7578
B19: =SUM(B7:B18) -> 4079513.816 | C19: =SUM(C7:C18) -> 143225477.9 | D19: 0.0284831573 | E19: =SUM(E7:E18) -> 6126977.964 | F19: =SUM(F7:F18) -> 114330857 | G19: 0.05358988925 | H19: =SUM(H7:H18) -> 10206491.78 | I19: =SUM(I7:I18) -> 257556334.9 | J19: 0.03962819157 | M19: =SUM(M7:M18) -> 5676951.368 | N19: =SUM(N7:N18) -> 0 | O19: =SUM(O7:O18) -> 5676951.368 | P19: =SUM(P7:P18) -> 1597437.552

Sheet Rev3 GA Analysis
F2: Consumption Data Excluding for Loss Factor (Data to agree with RRR as applicable)
F3: Year | H3: =ProcessYear[Process Year] -> 2022
F4: Total Metered excluding WMP | G4: C = A+B | H4: =H5+H6 -> 257556334.9 | I4: kWh | J4: 1
F5: RPP | G5: A | H5: ='Rev2 GA Purchases'!F19 -> 114330857 | I5: kWh | J5: 0.5303752085
F6: Non RPP | G6: B = D+E | H6: =H7+H8 -> 143225477.9 | I6: kWh | J6: 0.4696247915
F7: Non-RPP Class A | G7: D | H7: ='I1a ER Summary'!AN17 -> 62860858.67 | I7: kWh | J7: 0.1815554551
F8: Non-RPP Class B* | G8: E | H8: ='Rev2 GA Purchases'!C19-H7 -> 80364619.22 | I8: kWh | J8: 0.2880693364
F9: *Non-RPP Class B consumption reported in this table is not expected to directly agree with the Non-RPP Class B Including Loss Adjusted Billed Consumption in the GA Analysis of Expected Balance table below. The difference should be equal to the loss factor.
A12: Note 4 | B12: Analysis of Expected GA Amount
B13: Year | C13: =ProcessYear[Process Year] -> 2022
B14: Calendar Month | C14: Non-RPP Class B Including Loss Factor Billed Consumption (kWh) | D14: Deduct Previous Month Unbilled Loss Adjusted Consumption (kWh) | E14: Add Current Month Unbilled Loss Adjusted Consumption (kWh) | F14: Non-RPP Class B Including Loss Adjusted Consumption, Adjusted for Unbilled (kWh) | G14: GA Rate Billed ($/kWh) | H14: $ Consumption at GA Rate Billed | I14: GA Actual Rate Paid ($/kWh) | J14: $ Consumption at Actual Rate Paid | K14: Expected GA Variance ($) | M14: Revenue per Continuity Schedule | N14: Difference | P14: Expense per Continuity Schedule | Q14: Difference | T14: 2022
C15: F | D15: G | E15: H | F15: I = F-G+H | G15: J | H15: K = I*J | I15: L | J15: M = I*L | K15: =M-K | N15: =H-M | Q15: =J-P | S15: ($/kWh) | T15: First Estimate | U15: Second Estimate | V15: Actual
B16: January | C16: ='I1a ER Summary'!AP5 -> 7148197.394 | F16: =C16-D16+E16 -> 7148197.394 | G16: 0.04829 | H16: =F16*G16 -> 345186.4521 | I16: 0.04353 | J16: =F16*I16 -> 311161.0326 | K16: =J16-H16 -> -34025.41959 | M16: ='Rec2 1589 Class B'!D8 -> -308179.6703 | N16: =H16+M16 -> 37006.78182 | P16: ='Rec2 1589 Class B'!J8 -> 334725.5143 | Q16: =J16-P16 -> -23564.48175 | S16: January | T16: =48.29/1000 -> 0.04829 | U16: =45.14/1000 -> 0.04514 | V16: =43.53/1000 -> 0.04353
B17: February | C17: ='I1a ER Summary'!AP6 -> 5938130.261 | F17: =C17-D17+E17 -> 5938130.261 | G17: 0.05019 | H17: =F17*G17 -> 298034.7578 | I17: 0.05246 | J17: =F17*I17 -> 311514.3135 | K17: =J17-H17 -> 13479.55569 | M17: ='Rec2 1589 Class B'!D9 -> -336940.6904 | N17: =H17+M17 -> -38905.93255 | P17: ='Rec2 1589 Class B'!J9 -> 297607.7037 | Q17: =J17-P17 -> 13906.60982 | S17: February | T17: =50.19/1000 -> 0.05019 | U17: =53.25/1000 -> 0.05325 | V17: =52.46/1000 -> 0.05246
B18: March | C18: ='I1a ER Summary'!AP7 -> 6526205.996 | F18: =C18-D18+E18 -> 6526205.996 | G18: 0.055 | H18: =F18*G18 -> 358941.3298 | I18: 0.05941 | J18: =F18*I18 -> 387721.8982 | K18: 28780.56844 | M18: ='Rec2 1589 Class B'!D10 -> -360193.6518 | N18: -1252.321996 | P18: ='Rec2 1589 Class B'!J10 -> 393436.0577 | Q18: -5714.159479 | S18: March | T18: =55/1000 -> 0.055 | U18: =53.86/1000 -> 0.05386 | V18: =59.41/1000 -> 0.05941
B19: April | C19: ='I1a ER Summary'!AP8 -> 5662091.094 | F19: =C19-D19+E19 -> 5662091.094 | G19: 0.05915 | H19: =F19*G19 -> 334912.6882 | I19: 0.08293 | J19: =F19*I19 -> 469557.2144 | K19: 134644.5262 | M19: ='Rec2 1589 Class B'!D11 -> -335486.672 | N19: -573.9838324 | P19: ='Rec2 1589 Class B'!J11 -> 479315.4287 | Q19: =J19-P19 -> -9758.214263 | S19: April | T19: =59.15/1000 -> 0.05915 | U19: =86.4/1000 -> 0.0864 | V19: =82.93/1000 -> 0.08293
B20: May | C20: ='I1a ER Summary'!AP9 -> 5875977.577 | F20: 5875977.577 | G20: 0.05968 | H20: 350678.3418 | I20: 0.08475 | J20: =F20*I20 -> 497989.0996 | K20: =J20-H20 -> 147310.7579 | M20: ='Rec2 1589 Class B'!D12 -> -360088.9192 | N20: -9410.577366 | P20: ='Rec2 1589 Class B'!J12 -> 505731.3486 | Q20: =J20-P20 -> -7742.248977 | S20: May | T20: =59.68/1000 -> 0.05968 | U20: =86.85/1000 -> 0.08685 | V20: =84.75/1000 -> 0.08475
B21: June | C21: ='I1a ER Summary'!AP10 -> 6141583.452 | F21: 6141583.452 | G21: 0.08293 | H21: 509321.5157 | I21: 0.07868 | J21: 483219.786 | K21: -26101.72967 | M21: ='Rec2 1589 Class B'!D13 -> -502689.0487 | N21: 6632.467018 | P21: ='Rec2 1589 Class B'!J13 -> 491714.9497 | Q21: -8495.163704 | S21: June | T21: =82.93/1000 -> 0.08293 | U21: =87.64/1000 -> 0.08764 | V21: =78.68/1000 -> 0.07868
B22: July | C22: ='I1a ER Summary'!AP11 -> 6529187.591 | F22: 6529187.591 | G22: 0.08475 | H22: 553348.6483 | I22: 0.04008 | J22: 261689.8386 | K22: -291658.8097 | M22: ='Rec2 1589 Class B'!D14 -> -546628.6816 | N22: 6719.966754 | P22: ='Rec2 1589 Class B'!J14 -> 265507.3976 | Q22: -3817.558963 | S22: July | T22: =84.75/1000 -> 0.08475 | U22: =37.04/1000 -> 0.03704 | V22: =40.08/1000 -> 0.04008
B23: August | C23: ='I1a ER Summary'!AP12 -> 7002575.214 | F23: 7002575.214 | G23: 0.04871 | H23: 341095.4387 | I23: 0.00499 | J23: 34942.85032 | K23: -306152.5884 | M23: ='Rec2 1589 Class B'!D15 -> -347149.204 | N23: -6053.765285 | P23: ='Rec2 1589 Class B'!J15 -> 36113.15227 | Q23: -1170.301955 | S23: August | T23: =48.71/1000 -> 0.04871 | U23: =0.34/1000 -> 0.00034 | V23: =4.99/1000 -> 0.00499
B24: September | C24: ='I1a ER Summary'!AP13 -> 6290629.593 | F24: 6290629.593 | G24: 0.04008 | H24: 252128.4341 | I24: 0.03241 | J24: 203879.3051 | K24: -48249.12898 | M24: ='Rec2 1589 Class B'!D16 -> -246475.1576 | N24: 5653.276497 | P24: ='Rec2 1589 Class B'!J16 -> 204214.7047 | Q24: -335.3995791 | S24: September | T24: =40.08/1000 -> 0.04008 | U24: =27.55/1000 -> 0.02755 | V24: =32.41/1000 -> 0.03241
B25: October | C25: ='I1a ER Summary'!AP14 -> 6098438.78 | F25: 6098438.78 | G25: 0.00499 | H25: 30431.20951 | I25: 0.05771 | J25: 351940.902 | K25: 321509.6925 | M25: ='Rec2 1589 Class B'!D17 -> -38758.26517 | N25: -8327.055661 | P25: ='Rec2 1589 Class B'!J17 -> 356387.8514 | Q25: -4446.949402 | S25: October | T25: =4.99/1000 -> 0.00499 | U25: =68.03/1000 -> 0.06803 | V25: =57.71/1000 -> 0.05771
B26: November | C26: ='I1a ER Summary'!AP15 -> 9620038.996 | F26: 9620038.996 | G26: 0.04739 | H26: 455893.648 | I26: 0.06989 | J26: 672344.5254 | K26: 216450.8774 | M26: ='Rec2 1589 Class B'!D18 -> -303282.1929 | N26: 152611.4551 | P26: ='Rec2 1589 Class B'!J18 -> 510709.4072 | Q26: 161635.1182 | S26: November | T26: =47.39/1000 -> 0.04739 | U26: =67.19/1000 -> 0.06719 | V26: =69.89/1000 -> 0.06989
B27: December | C27: ='I1a ER Summary'!AP16 -> 7531563.267 | F27: 7531563.267 | G27: 0.05962 | H27: 449031.802 | I27: 0.03427 | J27: 258106.6731 | K27: -190925.1288 | M27: ='Rec2 1589 Class B'!D19 -> -383495.8947 | N27: 65535.90726 | P27: ='Rec2 1589 Class B'!J19 -> 204050.3002 | Q27: 54056.37295 | S27: December | T27: =59.62/1000 -> 0.05962 | U27: =35.81/1000 -> 0.03581 | V27: =34.27/1000 -> 0.03427
B29: Net Change in Expected GA Balance in the Year (i.e. Transactions in the Year) | C29: =SUM(C16:C27) -> 80364619.22 | D29: 0 | E29: 0 | F29: =SUM(F16:F27) -> 80364619.22 | H29: =SUM(H16:H27) -> 4279004.266 | J29: =SUM(J16:J27) -> 4244067.439 | K29: =SUM(K16:K27) -> -34936.827 | M29: =SUM(M16:M28) -> -4069368.048 | N29: =SUM(N16:N28) -> 209636.2177 | P29: =SUM(P16:P28) -> 4079513.816 | Q29: =SUM(Q16:Q28) -> 164553.6229
C36: Annual Non-RPP Class B Wholesale kWh * | D36: Annual Non-RPP Class B Retail billed kWh | E36: Annual Unaccounted for Energy Loss kWh | F36: Weighted Average GA Actual Rate Paid ($/kWh)** | G36: Expected GA Volume Variance ($)
C37: O | D37: P | E37: Q=O-P | F37: R | G37: P= Q*R
C38: =(Rev1UFE!C19-H7)*'Rev3 GA Analysis '!H8/(H5+H8) -> 81011994.65 | D38: =F29 -> 80364619.22 | E38: =C38-D38 -> 647375.4397 | F38: =H29/F29 -> 0.05324487701 | G38: =E38*F38 -> 34469.42567 | I38: =D38/C38 -> 0.992008894
C39: *Equal to (AQEW - Class A + embedded generation kWh)*(Non-RPP Class B retail kwh/Total retail Class B kWh)
C40: **Equal to annual Non-RPP Class B $ GA paid (i.e. non-RPP portion of CT 148 on IESO invoice) divided by Non-RPP Class B Wholesale kWh (as quantified in column O in the table above)
F41: Total Expected GA Variance | G41: =K29+G38 -> -467.4013359
A48: Note 5 | B48: Reconciling Items
B50: Item | C50: Applicability of Reconciling Item (Y/N) | D50: Amount (Quantify if it is a significant reconciling item) | E50: Explanation
A51: Net Change in Principal Balance in the GL (i.e. Transactions in the Year) | D51: =M29+P29 -> 10145.76782
A52: 1a | B52: Remove impacts to GA from prior year RPP Settlement true up process that are booked in current year | C52: N
A53: 1b | B53: Add impacts to GA from current year RPP Settlement true up process that are booked in subsequent year | C53: N
A54: 2a | B54: Remove prior year end unbilled to actual revenue differences | C54: N
A55: 2b | B55: Add current year end unbilled to actual revenue differences | C55: N
A56: 3a | B56: Remove difference between prior year accrual to forecast from long term load transfers | C56: N
A57: 3b | B57: Add difference between current year accrual to forecast from long term load transfers | C57: N
A58: 4 | B58: Remove GA balances pertaining to Class A customers | C58: N
A59: 5 | B59: Significant prior period billing adjustments included in current year GL balance but would not be included in the billing consumption used in the GA Analysis | C59: N
A60: 6 | B60: Differences in GA IESO posted rate and rate charged on IESO invoice | C60: N
A61: 7 | D61: 0
A62: 9
A63: 10
A64: Note 6 | B64: Adjusted Net Change in Principal Balance in the GL | D64: =SUM(D51:D63) -> 10145.76782
B65: Net Change in Expected GA Balance in the Year Per Analysis | D65: =G41 -> -467.4013359
B66: Unresolved Difference | D66: =D64-D65 -> 10613.16916
B67: Unresolved Difference as % of Expected GA Payments to IESO | D67: =IF(ISERROR(D66/J29),0,D66/J29) -> 0.002500707001 | E67: =IF(AND(D67<0.01,D67>-0.01),"","Unresolved differences of greater than + or - 1% should be explained") -> 
A70: Note 7 | B70: Summary of GA (if multiple years requested for disposition)
B72: Year | C72: Annual Net Change in Expected GA Balance from GA Analysis (cell K59) | D72: Net Change in Principal Balance in the GL (cell D65) | E72: Reconciling Items (sum of cells D66 to D78) | F72: Adjusted Net Change in Principal Balance in the GL | G72: Unresolved Difference | H72: Payments to IESO (cell J59) | I72: Unresolved Difference as % of Expected GA Payments to IESO
B73: 2023 | C73: =G41 -> -467.4013359 | D73: =D51 -> 10145.76782 | E73: =SUM(D52:D63) -> 0 | F73: =SUM(D73:E73) -> 10145.76782 | G73: =F73-C73 -> 10613.16916 | H73: =J29 -> 4244067.439 | I73: =IF(ISERROR(G73/H73),0,G73/H73) -> 0.002500707001
F74: =SUM(D74:E74) -> 0 | G74: =F74-C74 -> 0 | I74: =IF(ISERROR(G74/H74),0,G74/H74) -> 0
F75: =SUM(D75:E75) -> 0 | G75: =F75-C75 -> 0 | I75: =IF(ISERROR(G75/H75),0,G75/H75) -> 0
F76: =SUM(D76:E76) -> 0 | G76: =F76-C76 -> 0 | I76: =IF(ISERROR(G76/H76),0,G76/H76) -> 0
B77: Cumulative Balance | C77: =SUM(C73:C76) -> -467.4013359 | D77: 10145.76782 | E77: 0 | F77: 10145.76782 | G77: =SUM(G73:G76) -> 10613.16916 | H77: 4244067.439 | I77: N/A
B80: Additional Notes and Comments
B95: Account 1588 Reasonability Test
C97: Account 1588 - RSVA Power | F97: Account 4705 - Power Purchased | G97: Account 1588 as % of Account 4705
B98: Year | C98: Transactions1 | D98: Principal Adjustments1 | E98: Total Activity in Calendar Year
B99: 2023 | D99: ='Rec1 1588 Commodity'!L20 -> 238891.9304 | E99: =SUM(C99:D99) -> 238891.9304 | F99: ='Rec1 1588 Commodity'!K20 -> 18558085.52 | G99: =IFERROR(E99/F99,0) -> 0.01287266028
B102: Notes
B103: 1) The transactions should equal the "Transaction" column in the DVA Continuity Schedule. This is also expected to equal the transactions in the general ledger (excluding transactions relating to the removal of approved disposition amounts as that is shown in a separate column in the DVA Continuity Schedule)
B104: 2) Principal adjustments should equal the "Principal Adjustments" column in the DVA Continuity Schedule. Principal adjustments adjust the transactions in the general ledger to the amount that should be requested for disposition.
